Authority,Vendor Name,Invoice Reference,Payment Date,Service Responsible for Spend,Service,Cost Centre,Subjective,Sub Description,Amount Exc Tax (�),Type
Northumberland County Council,1ST COVERALL COMPANY LIMITED,300001245644232,05-06-2020,,Procurement,125040,140012,Health & Safety,334999.80,Expense
Northumberland County Council,3D TAXIS,300001228436204,02-06-2020,General Fund,Home to School Transport,204120,136000,Pupils - Travel,517.50,Expense
Northumberland County Council,3D TAXIS,300001303309100,30-06-2020,General Fund,Home to School Transport,204120,136000,Pupils - Travel,759.00,Expense
Northumberland County Council,555 CREATIVE,300001274551937,19-06-2020,Finance,Firefighters as role models,29170,101100,Staff Training & Development,300.00,Expense
Northumberland County Council,A & J KEITH LTD,300001253325955,10-06-2020,,Fixed Asset Account,990120,500133,CIP - land and Buildings,3600.00,Asset
Northumberland County Council,A & P SUTTON,300001228677476,02-06-2020,General Fund,Home to School Transport,204120,136000,Pupils - Travel,960.75,Expense
Northumberland County Council,A & P SUTTON,300001228677479,02-06-2020,General Fund,Home to School Transport,204120,136000,Pupils - Travel,810.00,Expense
Northumberland County Council,A & P SUTTON,300001228677482,02-06-2020,General Fund,Home to School Transport,204120,136000,Pupils - Travel,810.00,Expense
Northumberland County Council,A & P SUTTON,300001228677485,02-06-2020,General Fund,Home to School Transport,204120,136000,Pupils - Travel,1350.00,Expense
Northumberland County Council,A & P SUTTON,300001228677488,02-06-2020,General Fund,Home to School Transport,204120,136000,Pupils - Travel,891.00,Expense
Northumberland County Council,A & P SUTTON,300001228677491,02-06-2020,General Fund,Home to School Transport,204120,136000,Pupils - Travel,630.00,Expense
Northumberland County Council,A & P SUTTON,300001228677494,02-06-2020,General Fund,Home to School Transport,204120,136000,Pupils - Travel,819.00,Expense
Northumberland County Council,A & P SUTTON,300001303309983,30-06-2020,General Fund,Home to School Transport,204120,136000,Pupils - Travel,1409.10,Expense
Northumberland County Council,A & P SUTTON,300001303309987,30-06-2020,General Fund,Home to School Transport,204120,136000,Pupils - Travel,1188.00,Expense
Northumberland County Council,A & P SUTTON,300001303309990,30-06-2020,General Fund,Home to School Transport,204120,136000,Pupils - Travel,1188.00,Expense
Northumberland County Council,A & P SUTTON,300001303309993,30-06-2020,General Fund,Home to School Transport,204120,136000,Pupils - Travel,1980.00,Expense
Northumberland County Council,A & P SUTTON,300001303309996,30-06-2020,General Fund,Home to School Transport,204120,136000,Pupils - Travel,1306.80,Expense
Northumberland County Council,A & P SUTTON,300001303309999,30-06-2020,General Fund,Home to School Transport,204120,136000,Pupils - Travel,924.00,Expense
Northumberland County Council,A & P SUTTON,300001305923002,30-06-2020,General Fund,Home to School Transport,204120,136000,Pupils - Travel,1201.20,Expense
Northumberland County Council,A A TAXIS AND PRIVATE HIRE OF NORTHUMBERLAND,300001228436256,02-06-2020,General Fund,Home to School Transport,204120,136000,Pupils - Travel,562.50,Expense
Northumberland County Council,A A TAXIS AND PRIVATE HIRE OF NORTHUMBERLAND,300001228436263,02-06-2020,General Fund,Home to School Transport,204120,136000,Pupils - Travel,360.00,Expense
Northumberland County Council,A A TAXIS AND PRIVATE HIRE OF NORTHUMBERLAND,300001228436272,02-06-2020,General Fund,Home to School Transport,204120,136000,Pupils - Travel,639.60,Expense
Northumberland County Council,A A TAXIS AND PRIVATE HIRE OF NORTHUMBERLAND,300001228436286,02-06-2020,General Fund,SEN Transport,204190,136000,Pupils - Travel,738.00,Expense
Northumberland County Council,A A TAXIS AND PRIVATE HIRE OF NORTHUMBERLAND,300001228436289,02-06-2020,General Fund,Home to School Transport,204120,136000,Pupils - Travel,810.00,Expense
Northumberland County Council,A AND B TAXI SERVICES,300001235379240,02-06-2020,General Fund,Home to School Transport,204120,136000,Pupils - Travel,900.00,Expense
Northumberland County Council,A AND B TAXI SERVICES,300001235379253,02-06-2020,General Fund,SEN Transport,204190,136000,Pupils - Travel,379.50,Expense
Northumberland County Council,A AND B TAXI SERVICES,300001303362087,29-06-2020,General Fund,Home to School Transport,204120,136000,Pupils - Travel,1320.00,Expense
Northumberland County Council,A J BENNETT LTD,300001195747503,02-06-2020,,Fixed Asset Account,990120,500133,CIP - land and Buildings,11015.71,Asset
Northumberland County Council,A J BENNETT LTD,300001255497062,10-06-2020,,Fixed Asset Account,990120,500133,CIP - land and Buildings,4038.11,Asset
Northumberland County Council,A SCUDAMORE,300001235379325,09-06-2020,General Fund,Home to School Transport,204120,136000,Pupils - Travel,1338.54,Expense
Northumberland County Council,A SCUDAMORE,300001253661107,09-06-2020,General Fund,Home to School Transport,204120,136000,Pupils - Travel,-382.44,Expense
Northumberland County Council,A1 CABS (BERWICK),300001235379184,05-06-2020,General Fund,SEN Transport,204190,136000,Pupils - Travel,1080.00,Expense
Northumberland County Council,A1 CABS (BERWICK),300001235379187,03-06-2020,General Fund,SEN Transport,204190,136000,Pupils - Travel,787.50,Expense
Northumberland County Council,A1 CABS (BERWICK),300001235379190,05-06-2020,General Fund,Home to School Transport,204120,136000,Pupils - Travel,506.25,Expense
Northumberland County Council,A1 CABS (BERWICK),300001235379198,03-06-2020,General Fund,SEN Transport,204190,136000,Pupils - Travel,2137.50,Expense
Northumberland County Council,A1 CABS (BERWICK),300001303362059,30-06-2020,General Fund,Home to School Transport,204120,136000,Pupils - Travel,742.50,Expense
Northumberland County Council,A1 PRIVATE HIRE,300001235379494,08-06-2020,General Fund,SEN Transport,204190,136000,Pupils - Travel,945.00,Expense
Northumberland County Council,A2B TAXIS HEXHAM,300001226209571,02-06-2020,General Fund,SEN Transport,204190,136000,Pupils - Travel,551.25,Expense
Northumberland County Council,A2B TAXIS HEXHAM,300001226209610,02-06-2020,General Fund,Home to School Transport,204120,136000,Pupils - Travel,371.25,Expense
Northumberland County Council,AAA CHEMICALS LIMITED,3346694,17-06-2020,,HfN - Stock in Hand,990013,500170,Stock in Hand,335.28,Asset
Northumberland County Council,AARK,300001269876367,16-06-2020,Total Cost Centre,Community Safety Department,29100,142000,Clothing / Uniform,140.25,Expense
Northumberland County Council,AARK,300001269876367,16-06-2020,Total Cost Centre,Community Safety Department,29100,142000,Clothing / Uniform,114.75,Expense
Northumberland County Council,AARK,300001269876367,16-06-2020,Total Cost Centre,Community Safety Department,29100,142000,Clothing / Uniform,153.00,Expense
Northumberland County Council,AARK,300001269876367,16-06-2020,Total Cost Centre,Community Safety Department,29100,142000,Clothing / Uniform,127.50,Expense
Northumberland County Council,AARK,300001269876367,16-06-2020,Total Cost Centre,Community Safety Department,29100,142000,Clothing / Uniform,63.00,Expense
Northumberland County Council,AARK,300001269876367,16-06-2020,Total Cost Centre,Community Safety Department,29100,142000,Clothing / Uniform,56.00,Expense
Northumberland County Council,AARK,300001269876367,16-06-2020,Total Cost Centre,Community Safety Department,29100,142000,Clothing / Uniform,77.00,Expense
Northumberland County Council,AARK,300001269876367,16-06-2020,Total Cost Centre,Community Safety Department,29100,142000,Clothing / Uniform,77.00,Expense
Northumberland County Council,AARK,300001269876367,16-06-2020,Total Cost Centre,Community Safety Department,29100,142000,Clothing / Uniform,60.00,Expense
Northumberland County Council,AARK,300001269876367,16-06-2020,Total Cost Centre,Community Safety Department,29100,142000,Clothing / Uniform,60.00,Expense
Northumberland County Council,AARK,300001269876367,16-06-2020,Total Cost Centre,Community Safety Department,29100,142000,Clothing / Uniform,60.00,Expense
Northumberland County Council,AARK,300001269876367,16-06-2020,Total Cost Centre,Community Safety Department,29100,142000,Clothing / Uniform,72.00,Expense
Northumberland County Council,AARK,300001269876367,16-06-2020,Total Cost Centre,Community Safety Department,29100,142000,Clothing / Uniform,24.00,Expense
Northumberland County Council,AARK,300001269876367,16-06-2020,Total Cost Centre,Community Safety Department,29100,142000,Clothing / Uniform,24.00,Expense
Northumberland County Council,AARK,300001269876367,16-06-2020,Total Cost Centre,Community Safety Department,29100,142000,Clothing / Uniform,260.00,Expense
Northumberland County Council,AARK,300001269876367,16-06-2020,Total Cost Centre,Community Safety Department,29100,142000,Clothing / Uniform,312.00,Expense
Northumberland County Council,AARK,300001269876367,16-06-2020,Total Cost Centre,Community Safety Department,29100,142000,Clothing / Uniform,312.00,Expense
Northumberland County Council,AARK,300001269876367,16-06-2020,Total Cost Centre,Community Safety Department,29100,142000,Clothing / Uniform,88.00,Expense
Northumberland County Council,AARK,300001269876367,16-06-2020,Total Cost Centre,Community Safety Department,29100,142000,Clothing / Uniform,88.00,Expense
Northumberland County Council,AARK,300001269876367,16-06-2020,Total Cost Centre,Community Safety Department,29100,142000,Clothing / Uniform,88.00,Expense
Northumberland County Council,AARK,300001269876367,16-06-2020,Total Cost Centre,Community Safety Department,29100,142000,Clothing / Uniform,88.00,Expense
Northumberland County Council,ABBEYFIELD NORTH NORTHUMBERLAND EXTRA CARE SOCIETY,3233594,05-06-2020,Adult Social Care & Commissioning,Older Pdi North - PNLTA,306405,167007,Residential Care,1092.78,Expense
Northumberland County Council,ABBEYFIELD NORTH NORTHUMBERLAND EXTRA CARE SOCIETY,3233594,05-06-2020,Adult Social Care & Commissioning,Older Pdi North - PNLTA,306405,167007,Residential Care,54.64,Expense
Northumberland County Council,ABBEYFIELD NORTH NORTHUMBERLAND EXTRA CARE SOCIETY,3233595,05-06-2020,Adult Social Care & Commissioning,Older Pdi North - PNLTA,306405,167007,Residential Care,2585.76,Expense
Northumberland County Council,ABBEYFIELD NORTH NORTHUMBERLAND EXTRA CARE SOCIETY,3233595,05-06-2020,Adult Social Care & Commissioning,Older Pdi North - PNLTA,306405,167007,Residential Care,129.29,Expense
Northumberland County Council,ABBEYFIELD NORTH NORTHUMBERLAND EXTRA CARE SOCIETY,3233595,05-06-2020,Adult Social Care & Commissioning,Older MH North - PNMB1 - Two,306408,167007,Residential Care,2539.28,Expense
Northumberland County Council,ABBEYFIELD NORTH NORTHUMBERLAND EXTRA CARE SOCIETY,3233595,05-06-2020,Adult Social Care & Commissioning,Older MH North - PNMB1 - Two,306408,167007,Residential Care,126.96,Expense
Northumberland County Council,ABBEYFIELD NORTH NORTHUMBERLAND EXTRA CARE SOCIETY,3340608,16-06-2020,,Adults Infection Control Grant,990400,500222,Expenditure - Adults Infection Control Payments,12392.25,Liability
Northumberland County Council,ABC TAXIS,300001238150547,03-06-2020,General Fund,Home to School Transport,204120,136000,Pupils - Travel,822.15,Expense
Northumberland County Council,ABOUT ME CARE AND SUPPORT LTD,3205599,01-06-2020,Total Cost Centre,Covid19 - Emergency Payments,306640,167008,Homecare,1200.00,Expense
Northumberland County Council,ABOUT ME CARE AND SUPPORT LTD,3205600,01-06-2020,Total Cost Centre,Covid19 - Emergency Payments,306640,167008,Homecare,2561.87,Expense
Northumberland County Council,ACCESS INTELLIGENCE MEDIA & COMMUNICATIONS LTD,300001238863564,03-06-2020,,Communications,107001,144051,Advertising / Publicity,9950.00,Expense
Northumberland County Council,ACCESS INTELLIGENCE MEDIA & COMMUNICATIONS LTD,300001238863567,03-06-2020,,Communications,107001,144051,Advertising / Publicity,350.00,Expense
Northumberland County Council,ACCESS INTELLIGENCE MEDIA & COMMUNICATIONS LTD,300001238863581,03-06-2020,,Communications,107001,144051,Advertising / Publicity,350.00,Expense
Northumberland County Council,ACOMB FIRST SCHOOL,300001300872815,30-06-2020,,Accounts Receivable,990004,500166,AR - Autoinvoice Clearing,732.00,Asset
Northumberland County Council,ACORN LANDSCAPES (NE) LTD,3212707,03-06-2020,Finance,Former Alnwick Lindisfarne Middle,295095,119000,Grounds Maintenance,593.75,Expense
Northumberland County Council,ACROL AIR CONDITIONING CO LTD,3346719,17-06-2020,Total Cost Centre,NCC Property Maintenance,128151,140017,Consumable Materials,1974.54,Expense
Northumberland County Council,ACROL AIR CONDITIONING CO LTD,3372673,19-06-2020,Total Cost Centre,NCC Property Maintenance,128151,140017,Consumable Materials,275.38,Expense
Northumberland County Council,ACS BUSINESS SUPPLIES LIMITED,2837851,10-06-2020,,Fixed Asset Account,990120,500133,CIP - land and Buildings,5535.00,Asset
Northumberland County Council,ACS BUSINESS SUPPLIES LIMITED,2957548,03-06-2020,,Infrastructure - Management,127300,145002,Computer hardware,789.00,Expense
Northumberland County Council,ACS BUSINESS SUPPLIES LIMITED,300001154309916,03-06-2020,,Infrastructure - Management,127300,145002,Computer hardware,-789.00,Expense
Northumberland County Council,ACTION FOR CHILDREN SERVICES LIMITED,300001240360524,03-06-2020,Total Cost Centre,FACT Teams Disability,15006,167012,Block Contracts,46602.97,Expense
Northumberland County Council,ACTION FOR CHILDREN SERVICES LIMITED,300001286932622,23-06-2020,General Fund,Participation,17025,151000,Other Supplies and Services Expenditure,1944.80,Expense
Northumberland County Council,ACTION GROUP,3346755,19-06-2020,,Housing Voids,550135,140017,Consumable Materials,1674.86,Expense
Northumberland County Council,ACTION GROUP,3386630,22-06-2020,,Housing Maintenance,550130,140017,Consumable Materials,884.97,Expense
Northumberland County Council,ACTION GROUP,3386643,22-06-2020,,Housing Voids,550135,140017,Consumable Materials,3891.50,Expense
Northumberland County Council,ACTION GROUP,3386645,22-06-2020,,Housing Voids,550135,140017,Consumable Materials,1994.15,Expense
Northumberland County Council,ACTION GROUP,3386648,22-06-2020,,Housing Voids,550135,140017,Consumable Materials,1698.54,Expense
Northumberland County Council,ACTION GROUP,3450596,29-06-2020,,Housing Voids,550135,140017,Consumable Materials,6228.41,Expense
Northumberland County Council,ACTION GROUP,3450598,29-06-2020,,Housing Voids,550135,140017,Consumable Materials,2351.23,Expense
Northumberland County Council,ACTIVE ASSISTANCE,3212844,03-06-2020,Adult Social Care & Commissioning,Older MH North - PNMB1 - Two,306408,167007,Residential Care,5911.92,Expense
Northumberland County Council,ACTIVE ASSISTANCE,3212844,03-06-2020,Adult Social Care & Commissioning,Older MH North - PNMB1 - Two,306408,167007,Residential Care,295.60,Expense
Northumberland County Council,ACTIVE ASSISTANCE,3212845,03-06-2020,Adult Social Care & Commissioning,Older Pdi North - PNLTA,306405,167006,Care Homes with Nursing,4936.92,Expense
Northumberland County Council,ACTIVE ASSISTANCE,3212845,03-06-2020,Adult Social Care & Commissioning,Older Pdi North - PNLTA,306405,167006,Care Homes with Nursing,246.85,Expense
Northumberland County Council,ACTIVE ASSISTANCE,3212846,03-06-2020,Adult Social Care & Commissioning,Older Pdi North - PNLTA,306405,167006,Care Homes with Nursing,4936.92,Expense
Northumberland County Council,ACTIVE ASSISTANCE,3212847,03-06-2020,Adult Social Care & Commissioning,Older Pdi North - PNLTA,306405,167006,Care Homes with Nursing,4936.92,Expense
Northumberland County Council,ACTIVE ASSISTANCE,3212848,03-06-2020,Adult Social Care & Commissioning,Older MH North - PNMB1 - Two,306408,167007,Residential Care,5911.92,Expense
Northumberland County Council,ACTIVE ASSISTANCE,3212849,03-06-2020,Adult Social Care & Commissioning,Older Pdi North - PNLTA,306405,167006,Care Homes with Nursing,4936.92,Expense
Northumberland County Council,ACTIVE ASSISTANCE,3212850,03-06-2020,Adult Social Care & Commissioning,Older MH North - PNMB1 - Two,306408,167007,Residential Care,5911.92,Expense
Northumberland County Council,ACTIVE ASSISTANCE,3212851,03-06-2020,Adult Social Care & Commissioning,Older Pdi North - PNLTA,306405,167006,Care Homes with Nursing,4936.92,Expense
Northumberland County Council,ACTIVE ASSISTANCE,3212851,03-06-2020,Adult Social Care & Commissioning,Older Pdi North - PNLTA,306405,167006,Care Homes with Nursing,246.85,Expense
Northumberland County Council,ACTIVE ASSISTANCE,3212852,03-06-2020,Adult Social Care & Commissioning,Older Pdi North - PNLTA,306405,167006,Care Homes with Nursing,4936.92,Expense
Northumberland County Council,ACTIVE ASSISTANCE,3212852,03-06-2020,Adult Social Care & Commissioning,Older Pdi North - PNLTA,306405,167006,Care Homes with Nursing,246.85,Expense
Northumberland County Council,ACTIVE ASSISTANCE,3212853,03-06-2020,Adult Social Care & Commissioning,Older MH North - PNMB1 - Two,306408,167007,Residential Care,5911.92,Expense
Northumberland County Council,ACTIVE ASSISTANCE,3212853,03-06-2020,Adult Social Care & Commissioning,Older MH North - PNMB1 - Two,306408,167007,Residential Care,295.60,Expense
Northumberland County Council,ACTIVE ASSISTANCE,3275595,11-06-2020,Total Cost Centre,Covid19 - Emergency Payments,306640,167008,Homecare,11735.71,Expense
Northumberland County Council,ACTIVE ASSISTANCE,3321586,15-06-2020,Adult Social Care & Commissioning,Older MH North - PNMB1 - Two,306408,167007,Residential Care,5911.92,Expense
Northumberland County Council,ACTIVE ASSISTANCE,3321586,15-06-2020,Adult Social Care & Commissioning,Older MH North - PNMB1 - Two,306408,167007,Residential Care,295.60,Expense
Northumberland County Council,ACTIVE ASSISTANCE,3321587,15-06-2020,Adult Social Care & Commissioning,Older MH North - PNMB1 - Two,306408,167007,Residential Care,5911.92,Expense
Northumberland County Council,AD HOC UK SECURITY,300001241196143,04-06-2020,Total Cost Centre,Small Holdings,128002,144016,Security Services,750.00,Expense
Northumberland County Council,AD HOC UK SECURITY,300001241196143,04-06-2020,Total Cost Centre,Small Holdings,128002,144016,Security Services,150.00,Expense
Northumberland County Council,ADAPT,3385595,22-06-2020,General Fund,Block Contracts,303001,167012,Block Contracts,20416.00,Expense
Northumberland County Council,ADAPT,300001286260739,23-06-2020,General Fund,Supported Bus Services,204160,136002,Support - rural bus routes,946.96,Expense
Northumberland County Council,ADAPT,300001286260739,23-06-2020,General Fund,Supported Bus Services,204160,136002,Support - rural bus routes,1082.24,Expense
Northumberland County Council,ADAPT,300001286260748,23-06-2020,General Fund,SEN Transport,204190,136000,Pupils - Travel,751.20,Expense
Northumberland County Council,ADAPT,300001286260751,23-06-2020,General Fund,SEN Transport,204190,136000,Pupils - Travel,577.20,Expense
Northumberland County Council,ADAPT,300001286260759,23-06-2020,General Fund,Supported Bus Services,204160,136002,Support - rural bus routes,281.20,Expense
Northumberland County Council,ADAPT,300001286260759,23-06-2020,General Fund,Supported Bus Services,204160,136002,Support - rural bus routes,281.20,Expense
Northumberland County Council,ADAPT,300001286260762,23-06-2020,General Fund,Supported Bus Services,204160,136002,Support - rural bus routes,351.50,Expense
Northumberland County Council,ADAPT,300001286260762,23-06-2020,General Fund,Supported Bus Services,204160,136002,Support - rural bus routes,281.20,Expense
Northumberland County Council,ADAPT,300001286260765,25-06-2020,General Fund,Home to School Transport,204120,136000,Pupils - Travel,528.00,Expense
Northumberland County Council,ADMIRE TAXIS,300001235379033,01-06-2020,Total Cost Centre,South East Locality FACT,16012,181002,Other Leaving Care Payments,450.00,Expense
Northumberland County Council,ADMIRE TAXIS,300001235379033,01-06-2020,Total Cost Centre,South East Locality FACT,16012,181002,Other Leaving Care Payments,60.00,Expense
Northumberland County Council,ADT FIRE AND SECURITY,300001255873000,11-06-2020,Total Cost Centre,Family Placement Service,17012,110003,Repair and Maintenance,374.29,Expense
Northumberland County Council,ADVANCE NORTHUMBERLAND (COMMERCIAL) LTD,300001240360989,04-06-2020,Total Cost Centre,Family Placement Service,17012,113000,Rents and Leases,4625.00,Expense
Northumberland County Council,ADVANCE NORTHUMBERLAND (COMMERCIAL) LTD,300001240931329,04-06-2020,,Capital Works - Kitchens,550140,119999,Internal Premises Recharges In / Out,933.33,Expense
Northumberland County Council,ADVANCE NORTHUMBERLAND (COMMERCIAL) LTD,300001240931340,04-06-2020,,Blyth North and Cramlington,550060,151008,Storage of Goods,356.25,Expense
Northumberland County Council,ADVANCE NORTHUMBERLAND (COMMERCIAL) LTD,300001240931340,04-06-2020,,Blyth North and Cramlington,550060,151008,Storage of Goods,117.08,Expense
Northumberland County Council,ADVANCE NORTHUMBERLAND (COMMERCIAL) LTD,300001291489170,24-06-2020,Finance,"Wansbeck Square, Ashington - Running Costs",294959,113000,Rents and Leases,18750.00,Expense
Northumberland County Council,ADVANCED RADIATORS LTD,3240966,05-06-2020,General Fund,Hexham Tyne Mills Workshop,205280,130001,Vehicle Repairs and maintenance,495.00,Expense
Northumberland County Council,ADVANCED TAXIS,3216597,02-06-2020,General Fund,Home to School Transport,204120,136000,Pupils - Travel,623.28,Expense
Northumberland County Council,ADVANCED TAXIS,3216599,02-06-2020,General Fund,Home to School Transport,204120,136000,Pupils - Travel,474.00,Expense
Northumberland County Council,ADVANCED TAXIS,3216602,02-06-2020,General Fund,Home to School Transport,204120,136000,Pupils - Travel,324.00,Expense
Northumberland County Council,ADVANCED TAXIS,3216603,02-06-2020,General Fund,Home to School Transport,204120,136000,Pupils - Travel,1898.78,Expense
Northumberland County Council,ADVANCED TAXIS,3216604,02-06-2020,General Fund,Home to School Transport,204120,136000,Pupils - Travel,655.02,Expense
Northumberland County Council,ADVANCED TAXIS,3216605,02-06-2020,General Fund,SEN Transport,204190,136000,Pupils - Travel,414.00,Expense
Northumberland County Council,ADVANCED TAXIS,3216606,02-06-2020,General Fund,Home to School Transport,204120,136000,Pupils - Travel,1853.44,Expense
Northumberland County Council,ADVANCED TAXIS,3216607,02-06-2020,General Fund,SEN Transport,204190,136000,Pupils - Travel,398.40,Expense
Northumberland County Council,ADVANCED TAXIS,3216609,02-06-2020,General Fund,Home to School Transport,204120,136000,Pupils - Travel,446.76,Expense
Northumberland County Council,ADVANCED TAXIS,3216610,02-06-2020,General Fund,Home to School Transport,204120,136000,Pupils - Travel,1692.75,Expense
Northumberland County Council,ADVANCED TAXIS,3216613,02-06-2020,General Fund,Home to School Transport,204120,136000,Pupils - Travel,1223.66,Expense
Northumberland County Council,ADVANCED TAXIS,3216615,02-06-2020,General Fund,Home to School Transport,204120,136000,Pupils - Travel,570.00,Expense
Northumberland County Council,ADVANCED TAXIS,3216617,02-06-2020,General Fund,Home to School Transport,204120,136000,Pupils - Travel,1321.20,Expense
Northumberland County Council,ADVANCED TAXIS,3216618,02-06-2020,General Fund,Home to School Transport,204120,136000,Pupils - Travel,424.20,Expense
Northumberland County Council,ADVANCED TAXIS,3216619,02-06-2020,General Fund,Home to School Transport,204120,136000,Pupils - Travel,512.52,Expense
Northumberland County Council,ADVANCED TAXIS,3216622,02-06-2020,General Fund,Home to School Transport,204120,136000,Pupils - Travel,455.70,Expense
Northumberland County Council,ADVANCED TAXIS,300001236243643,02-06-2020,General Fund,Home to School Transport,204120,136000,Pupils - Travel,391.80,Expense
Northumberland County Council,ADVANCED TAXIS,300001236243657,02-06-2020,General Fund,Home to School Transport,204120,136000,Pupils - Travel,547.50,Expense
Northumberland County Council,ADVANCED WORKSHOPS LIMITED,3423669,24-06-2020,General Fund,Blyth Workshop,205210,140000,Equipment,1745.00,Expense
Northumberland County Council,ADVENTURE NUTRITION LTD,300001190157445,29-06-2020,Finance,Fire Support Services,30200,140002,Specialist Equipment for Service Provision,129.60,Expense
Northumberland County Council,ADVENTURE NUTRITION LTD,300001190157445,29-06-2020,Finance,Fire Support Services,30200,140002,Specialist Equipment for Service Provision,259.80,Expense
Northumberland County Council,AECOM LTD,300001241196585,04-06-2020,Total Cost Centre,Design,202150,100600,Temporary / Agency Staff,3968.98,Expense
Northumberland County Council,AECOM LTD,300001259964974,12-06-2020,Total Cost Centre,Design,202150,100600,Temporary / Agency Staff,5011.78,Expense
Northumberland County Council,AECOM LTD,300001274990829,22-06-2020,,Fixed Asset Account,990120,500171,CIP - Infrastructure,2540.00,Asset
Northumberland County Council,AFFINITY SUPPORTING PEOPLE LTD,3212648,02-06-2020,Total Cost Centre,Covid19 - Emergency Payments,306640,167008,Homecare,2560.23,Expense
Northumberland County Council,AG & P JACKSON (CHARTERED SURVEYOR),300001220349018,19-06-2020,General Fund,Strategic & Urban Development Management,240010,144025,Professional Services,462.00,Expense
Northumberland County Council,AGE UK NORTHUMBERLAND,3212652,02-06-2020,Total Cost Centre,Covid19 - Emergency Payments,306640,167008,Homecare,8231.92,Expense
Northumberland County Council,AGE UK NORTHUMBERLAND,3231592,04-06-2020,Total Cost Centre,Covid19 - Emergency Payments,306640,167008,Homecare,107077.93,Expense
Northumberland County Council,AGE UK NORTHUMBERLAND,3231592,04-06-2020,Total Cost Centre,Covid19 - Emergency Payments,306640,167008,Homecare,5353.90,Expense
Northumberland County Council,AGE UK NORTHUMBERLAND,3250618,08-06-2020,Total Cost Centre,Covid19 - Emergency Payments,306640,167008,Homecare,1199.49,Expense
Northumberland County Council,AGE UK NORTHUMBERLAND,3251591,08-06-2020,Total Cost Centre,Covid19 - Emergency Payments,306640,167009,Day Care,335.40,Expense
Northumberland County Council,AGE UK NORTHUMBERLAND,3251592,08-06-2020,Total Cost Centre,Covid19 - Emergency Payments,306640,167009,Day Care,804.96,Expense
Northumberland County Council,AGE UK NORTHUMBERLAND,3251593,08-06-2020,Total Cost Centre,Covid19 - Emergency Payments,306640,167009,Day Care,626.08,Expense
Northumberland County Council,AGE UK NORTHUMBERLAND,3251594,08-06-2020,Total Cost Centre,Covid19 - Emergency Payments,306640,167009,Day Care,983.84,Expense
Northumberland County Council,AGE UK NORTHUMBERLAND,3251595,08-06-2020,Total Cost Centre,Covid19 - Emergency Payments,306640,167009,Day Care,804.96,Expense
Northumberland County Council,AGE UK NORTHUMBERLAND,3251596,08-06-2020,Total Cost Centre,Covid19 - Emergency Payments,306640,167009,Day Care,357.76,Expense
Northumberland County Council,AGE UK NORTHUMBERLAND,3251597,08-06-2020,Total Cost Centre,Covid19 - Emergency Payments,306640,167009,Day Care,894.40,Expense
Northumberland County Council,AGE UK NORTHUMBERLAND,3278586,12-06-2020,Total Cost Centre,Covid19 - Emergency Payments,306640,167008,Homecare,-5995.82,Expense
Northumberland County Council,AGE UK NORTHUMBERLAND,3305592,12-06-2020,Total Cost Centre,Covid19 - Emergency Payments,306640,167008,Homecare,106381.15,Expense
Northumberland County Council,AGE UK NORTHUMBERLAND,3305592,12-06-2020,Total Cost Centre,Covid19 - Emergency Payments,306640,167008,Homecare,5319.06,Expense
Northumberland County Council,AGE UK NORTHUMBERLAND,3306603,12-06-2020,Total Cost Centre,Covid19 - Emergency Payments,306640,167009,Day Care,537.50,Expense
Northumberland County Council,AGE UK NORTHUMBERLAND,3333654,16-06-2020,General Fund,Block Contracts,303001,167008,Homecare,1143.00,Expense
Northumberland County Council,AGE UK NORTHUMBERLAND,3333655,16-06-2020,General Fund,Block Contracts,303001,167008,Homecare,2083.00,Expense
Northumberland County Council,AGE UK NORTHUMBERLAND,3372596,19-06-2020,Total Cost Centre,Covid19 - Emergency Payments,306640,167008,Homecare,61715.28,Expense
Northumberland County Council,AGE UK NORTHUMBERLAND,3372596,19-06-2020,Total Cost Centre,Covid19 - Emergency Payments,306640,167008,Homecare,3085.76,Expense
Northumberland County Council,AGE UK NORTHUMBERLAND,3417598,23-06-2020,Total Cost Centre,Covid19 - Emergency Payments,306640,167008,Homecare,43694.69,Expense
Northumberland County Council,AGE UK NORTHUMBERLAND,3417598,23-06-2020,Total Cost Centre,Covid19 - Emergency Payments,306640,167008,Homecare,2184.73,Expense
Northumberland County Council,AGE UK NORTHUMBERLAND,3433616,25-06-2020,Total Cost Centre,Covid19 - Emergency Payments,306640,167008,Homecare,105440.73,Expense
Northumberland County Council,AGE UK NORTHUMBERLAND,3433616,25-06-2020,Total Cost Centre,Covid19 - Emergency Payments,306640,167008,Homecare,5272.03,Expense
Northumberland County Council,AGE UK NORTHUMBERLAND,3462169,29-06-2020,Total Cost Centre,Covid19 - Emergency Payments,306640,167008,Homecare,844.92,Expense
Northumberland County Council,AIMRANGE (NE) LTD,3346730,19-06-2020,,Housing Maintenance,550130,140017,Consumable Materials,296.00,Expense
Northumberland County Council,AIMRANGE (NE) LTD,3372612,19-06-2020,,Housing Maintenance,550130,140017,Consumable Materials,365.00,Expense
Northumberland County Council,AIMRANGE (NE) LTD,300001238150483,02-06-2020,General Fund,A69 NPLG,200550,167000,Private Contractors,742.00,Expense
Northumberland County Council,AIMRANGE (NE) LTD,300001243948573,05-06-2020,,Fixed Asset Account,990120,500171,CIP - Infrastructure,1860.00,Asset
Northumberland County Council,AIMRANGE (NE) LTD,300001243948580,05-06-2020,,Fixed Asset Account,990120,500171,CIP - Infrastructure,1640.00,Asset
Northumberland County Council,AIMRANGE (NE) LTD,300001243948583,05-06-2020,,Fixed Asset Account,990120,500171,CIP - Infrastructure,980.00,Asset
Northumberland County Council,AIMRANGE (NE) LTD,300001243948586,05-06-2020,,Fixed Asset Account,990120,500171,CIP - Infrastructure,1480.00,Asset
Northumberland County Council,AIMRANGE (NE) LTD,300001243948589,05-06-2020,,Fixed Asset Account,990120,500171,CIP - Infrastructure,1480.00,Asset
Northumberland County Council,AIMRANGE (NE) LTD,300001243948592,05-06-2020,,Fixed Asset Account,990120,500171,CIP - Infrastructure,1220.00,Asset
Northumberland County Council,AIMRANGE (NE) LTD,300001243948595,05-06-2020,,Fixed Asset Account,990120,500171,CIP - Infrastructure,1480.00,Asset
Northumberland County Council,AIMRANGE (NE) LTD,300001279501703,19-06-2020,General Fund,A69 NPLG,200550,167000,Private Contractors,1484.00,Expense
Northumberland County Council,AIMRANGE (NE) LTD,300001279501739,19-06-2020,General Fund,A69 NPLG,200550,167000,Private Contractors,742.00,Expense
Northumberland County Council,AIMRANGE (NE) LTD,300001303309277,30-06-2020,,Fixed Asset Account,990120,500172,CIP - Plant and Equipment,2076.00,Asset
Northumberland County Council,AIMRANGE (NE) LTD,300001303309285,30-06-2020,,Fixed Asset Account,990120,500172,CIP - Plant and Equipment,3852.00,Asset
Northumberland County Council,AIRWAVE SOLUTIONS LIMITED,300001241196656,04-06-2020,Finance,Fire Support Services,30200,145001,Data Lines,1293.56,Expense
Northumberland County Council,AIRWAVE SOLUTIONS LIMITED,300001258516858,11-06-2020,Finance,Fire Support Services,30200,145001,Data Lines,1340.51,Expense
Northumberland County Council,AIT MITRA,3221598,03-06-2020,General Fund,D.O.L's,303253,144025,Professional Services,875.00,Expense
Northumberland County Council,AIT MITRA,3337624,16-06-2020,General Fund,D.O.L's,303253,144025,Professional Services,525.00,Expense
Northumberland County Council,AKARI CARE,3198647,01-06-2020,Adult Social Care & Commissioning,CHC Packages,306420,167007,Residential Care,858.51,Expense
Northumberland County Council,AKARI CARE,3198647,01-06-2020,Adult Social Care & Commissioning,CHC Packages,306420,167007,Residential Care,42.93,Expense
Northumberland County Council,AKARI CARE,3198648,01-06-2020,Adult Social Care & Commissioning,CHC Packages,306420,167006,Care Homes with Nursing,1550.78,Expense
Northumberland County Council,AKARI CARE,3198648,01-06-2020,Adult Social Care & Commissioning,CHC Packages,306420,167006,Care Homes with Nursing,77.54,Expense
Northumberland County Council,AKARI CARE,3243600,08-06-2020,Adult Social Care & Commissioning,CHC Packages,306420,167006,Care Homes with Nursing,747.51,Expense
Northumberland County Council,AKARI CARE,3243600,08-06-2020,Adult Social Care & Commissioning,CHC Packages,306420,167006,Care Homes with Nursing,37.38,Expense
Northumberland County Council,AKARI CARE,3243624,08-06-2020,Adult Social Care & Commissioning,Older PDI West - PWLTH - One,306412,167007,Residential Care,2463.48,Expense
Northumberland County Council,AKARI CARE,3243624,08-06-2020,Adult Social Care & Commissioning,Older PDI West - PWLTH - One,306412,167007,Residential Care,123.17,Expense
Northumberland County Council,AKARI CARE,3283586,11-06-2020,Adult Social Care & Commissioning,F.N.C.,306421,167006,Care Homes with Nursing,735.68,Expense
Northumberland County Council,AKARI CARE,3283587,11-06-2020,Adult Social Care & Commissioning,Older MH Central - PCMM1- Two,306404,167006,Care Homes with Nursing,2499.12,Expense
Northumberland County Council,AKARI CARE,3283587,11-06-2020,Adult Social Care & Commissioning,Older MH Central - PCMM1- Two,306404,167006,Care Homes with Nursing,124.96,Expense
Northumberland County Council,AKARI CARE,3283587,11-06-2020,Adult Social Care & Commissioning,Older MH South - PSMB1,306411,167006,Care Homes with Nursing,2499.12,Expense
Northumberland County Council,AKARI CARE,3283587,11-06-2020,Adult Social Care & Commissioning,Older MH South - PSMB1,306411,167006,Care Homes with Nursing,124.96,Expense
Northumberland County Council,AKARI CARE,3283587,11-06-2020,Adult Social Care & Commissioning,F.N.C.,306421,167006,Care Homes with Nursing,1471.36,Expense
Northumberland County Council,AKARI CARE,3283589,11-06-2020,Adult Social Care & Commissioning,Older PDI Central - PCLB1 - Two,306401,167006,Care Homes with Nursing,2285.88,Expense
Northumberland County Council,AKARI CARE,3283589,11-06-2020,Adult Social Care & Commissioning,Older PDI Central - PCLB1 - Two,306401,167006,Care Homes with Nursing,114.29,Expense
Northumberland County Council,AKARI CARE,3283589,11-06-2020,Adult Social Care & Commissioning,Older PDI Central - PCLB1 - Two,306401,167007,Residential Care,2348.56,Expense
Northumberland County Council,AKARI CARE,3283589,11-06-2020,Adult Social Care & Commissioning,Older PDI Central - PCLB1 - Two,306401,167007,Residential Care,117.43,Expense
Northumberland County Council,AKARI CARE,3283589,11-06-2020,Adult Social Care & Commissioning,Older MH Central - PCMM1- Two,306404,167006,Care Homes with Nursing,2285.88,Expense
Northumberland County Council,AKARI CARE,3283589,11-06-2020,Adult Social Care & Commissioning,Older MH Central - PCMM1- Two,306404,167006,Care Homes with Nursing,114.29,Expense
Northumberland County Council,AKARI CARE,3283589,11-06-2020,Adult Social Care & Commissioning,F.N.C.,306421,167006,Care Homes with Nursing,2207.04,Expense
Northumberland County Council,AKARI CARE,3283590,11-06-2020,Adult Social Care & Commissioning,CHC Packages,306420,167006,Care Homes with Nursing,2079.52,Expense
Northumberland County Council,AKARI CARE,3283590,11-06-2020,Adult Social Care & Commissioning,CHC Packages,306420,167006,Care Homes with Nursing,103.98,Expense
Northumberland County Council,AKARI CARE,3283591,11-06-2020,Adult Social Care & Commissioning,Older PDI Central - PCLB1 - Two,306401,167006,Care Homes with Nursing,4571.76,Expense
Northumberland County Council,AKARI CARE,3283591,11-06-2020,Adult Social Care & Commissioning,Older PDI Central - PCLB1 - Two,306401,167006,Care Homes with Nursing,228.59,Expense
Northumberland County Council,AKARI CARE,3283591,11-06-2020,Adult Social Care & Commissioning,Older MH Central - PCMM1- Two,306404,167006,Care Homes with Nursing,2499.12,Expense
Northumberland County Council,AKARI CARE,3283591,11-06-2020,Adult Social Care & Commissioning,Older MH Central - PCMM1- Two,306404,167006,Care Homes with Nursing,124.96,Expense
Northumberland County Council,AKARI CARE,3283591,11-06-2020,Adult Social Care & Commissioning,Older PDI South - PSLTC - Two,306410,167006,Care Homes with Nursing,2285.88,Expense
Northumberland County Council,AKARI CARE,3283591,11-06-2020,Adult Social Care & Commissioning,Older PDI South - PSLTC - Two,306410,167006,Care Homes with Nursing,114.29,Expense
Northumberland County Council,AKARI CARE,3283591,11-06-2020,Adult Social Care & Commissioning,Older MH South - PSMB1,306411,167006,Care Homes with Nursing,2499.12,Expense
Northumberland County Council,AKARI CARE,3283591,11-06-2020,Adult Social Care & Commissioning,Older MH South - PSMB1,306411,167006,Care Homes with Nursing,124.96,Expense
Northumberland County Council,AKARI CARE,3283591,11-06-2020,Adult Social Care & Commissioning,CHC Packages,306420,167006,Care Homes with Nursing,3757.24,Expense
Northumberland County Council,AKARI CARE,3283591,11-06-2020,Adult Social Care & Commissioning,CHC Packages,306420,167006,Care Homes with Nursing,187.86,Expense
Northumberland County Council,AKARI CARE,3283591,11-06-2020,Adult Social Care & Commissioning,F.N.C.,306421,167006,Care Homes with Nursing,2942.72,Expense
Northumberland County Council,AKARI CARE,3283592,11-06-2020,Adult Social Care & Commissioning,Older PDI Central - PCLB1 - Two,306401,167006,Care Homes with Nursing,2285.88,Expense
Northumberland County Council,AKARI CARE,3283592,11-06-2020,Adult Social Care & Commissioning,Older PDI Central - PCLB1 - Two,306401,167006,Care Homes with Nursing,114.29,Expense
Northumberland County Council,AKARI CARE,3283592,11-06-2020,Adult Social Care & Commissioning,Older MH Central - PCMM1- Two,306404,167006,Care Homes with Nursing,2499.12,Expense
Northumberland County Council,AKARI CARE,3283592,11-06-2020,Adult Social Care & Commissioning,Older MH Central - PCMM1- Two,306404,167006,Care Homes with Nursing,124.96,Expense
Northumberland County Council,AKARI CARE,3283592,11-06-2020,Adult Social Care & Commissioning,CHC Packages,306420,167006,Care Homes with Nursing,6469.60,Expense
Northumberland County Council,AKARI CARE,3283592,11-06-2020,Adult Social Care & Commissioning,CHC Packages,306420,167006,Care Homes with Nursing,323.48,Expense
Northumberland County Council,AKARI CARE,3283592,11-06-2020,Adult Social Care & Commissioning,F.N.C.,306421,167006,Care Homes with Nursing,1471.36,Expense
Northumberland County Council,AKARI CARE,3283593,11-06-2020,Adult Social Care & Commissioning,Older PDI Central - PCLB1 - Two,306401,167006,Care Homes with Nursing,6857.64,Expense
Northumberland County Council,AKARI CARE,3283593,11-06-2020,Adult Social Care & Commissioning,Older PDI Central - PCLB1 - Two,306401,167006,Care Homes with Nursing,342.88,Expense
Northumberland County Council,AKARI CARE,3283593,11-06-2020,Adult Social Care & Commissioning,Older MH Central - PCMM1- Two,306404,167006,Care Homes with Nursing,2499.12,Expense
Northumberland County Council,AKARI CARE,3283593,11-06-2020,Adult Social Care & Commissioning,Older MH Central - PCMM1- Two,306404,167006,Care Homes with Nursing,124.96,Expense
Northumberland County Council,AKARI CARE,3283593,11-06-2020,Adult Social Care & Commissioning,Older MH South - PSMB1,306411,167006,Care Homes with Nursing,2499.12,Expense
Northumberland County Council,AKARI CARE,3283593,11-06-2020,Adult Social Care & Commissioning,Older MH South - PSMB1,306411,167006,Care Homes with Nursing,124.96,Expense
Northumberland County Council,AKARI CARE,3283593,11-06-2020,Adult Social Care & Commissioning,F.N.C.,306421,167006,Care Homes with Nursing,3678.40,Expense
Northumberland County Council,AKARI CARE,3283594,11-06-2020,Adult Social Care & Commissioning,CHC Packages,306420,167007,Residential Care,879.81,Expense
Northumberland County Council,AKARI CARE,3283594,11-06-2020,Adult Social Care & Commissioning,CHC Packages,306420,167007,Residential Care,43.99,Expense
Northumberland County Council,AKARI CARE,3283595,11-06-2020,Adult Social Care & Commissioning,Older PDI Central - PCLB1 - Two,306401,167007,Residential Care,8653.69,Expense
Northumberland County Council,AKARI CARE,3283595,11-06-2020,Adult Social Care & Commissioning,Older PDI Central - PCLB1 - Two,306401,167007,Residential Care,432.68,Expense
Northumberland County Council,AKARI CARE,3283595,11-06-2020,Adult Social Care & Commissioning,Older MH Central - PCMM1- Two,306404,167007,Residential Care,7035.24,Expense
Northumberland County Council,AKARI CARE,3283595,11-06-2020,Adult Social Care & Commissioning,Older MH Central - PCMM1- Two,306404,167007,Residential Care,351.76,Expense
Northumberland County Council,AKARI CARE,3283595,11-06-2020,Adult Social Care & Commissioning,Older PDI South - PSLTC - Two,306410,167007,Residential Care,4749.36,Expense
Northumberland County Council,AKARI CARE,3283595,11-06-2020,Adult Social Care & Commissioning,Older PDI South - PSLTC - Two,306410,167007,Residential Care,237.47,Expense
Northumberland County Council,AKARI CARE,3283595,11-06-2020,Adult Social Care & Commissioning,CHC Packages,306420,167006,Care Homes with Nursing,431.65,Expense
Northumberland County Council,AKARI CARE,3283595,11-06-2020,Adult Social Care & Commissioning,CHC Packages,306420,167006,Care Homes with Nursing,21.59,Expense
Northumberland County Council,AKARI CARE,3283596,11-06-2020,Adult Social Care & Commissioning,Older PDI Central - PCLB1 - Two,306401,167007,Residential Care,816.39,Expense
Northumberland County Council,AKARI CARE,3283596,11-06-2020,Adult Social Care & Commissioning,Older PDI Central - PCLB1 - Two,306401,167007,Residential Care,40.82,Expense
Northumberland County Council,AKARI CARE,3283597,11-06-2020,Adult Social Care & Commissioning,Older PDI Central - PCLB1 - Two,306401,167007,Residential Care,1224.58,Expense
Northumberland County Council,AKARI CARE,3283597,11-06-2020,Adult Social Care & Commissioning,Older PDI Central - PCLB1 - Two,306401,167007,Residential Care,61.23,Expense
Northumberland County Council,AKARI CARE,3283598,11-06-2020,Adult Social Care & Commissioning,Older PDI Central - PCLB1 - Two,306401,167007,Residential Care,6857.64,Expense
Northumberland County Council,AKARI CARE,3283598,11-06-2020,Adult Social Care & Commissioning,Older PDI Central - PCLB1 - Two,306401,167007,Residential Care,342.88,Expense
Northumberland County Council,AKARI CARE,3283598,11-06-2020,Adult Social Care & Commissioning,Older MH Central - PCMM1- Two,306404,167007,Residential Care,2463.48,Expense
Northumberland County Council,AKARI CARE,3283598,11-06-2020,Adult Social Care & Commissioning,Older MH Central - PCMM1- Two,306404,167007,Residential Care,123.17,Expense
Northumberland County Council,AKARI CARE,3283598,11-06-2020,Adult Social Care & Commissioning,CHC Packages,306420,167006,Care Homes with Nursing,1966.08,Expense
Northumberland County Council,AKARI CARE,3283598,11-06-2020,Adult Social Care & Commissioning,CHC Packages,306420,167006,Care Homes with Nursing,98.30,Expense
Northumberland County Council,AKARI CARE,3283599,11-06-2020,Adult Social Care & Commissioning,Older PDI Central - PCLB1 - Two,306401,167007,Residential Care,-408.19,Expense
Northumberland County Council,AKARI CARE,3283599,11-06-2020,Adult Social Care & Commissioning,Older PDI Central - PCLB1 - Two,306401,167007,Residential Care,-20.41,Expense
Northumberland County Council,AKARI CARE,3283600,11-06-2020,Adult Social Care & Commissioning,Older MH Central - PCMM1- Two,306404,167007,Residential Care,9321.12,Expense
Northumberland County Council,AKARI CARE,3283600,11-06-2020,Adult Social Care & Commissioning,Older MH Central - PCMM1- Two,306404,167007,Residential Care,466.06,Expense
Northumberland County Council,AKARI CARE,3283600,11-06-2020,Adult Social Care & Commissioning,Older MH South - PSMB1,306411,167007,Residential Care,4749.36,Expense
Northumberland County Council,AKARI CARE,3283600,11-06-2020,Adult Social Care & Commissioning,Older MH South - PSMB1,306411,167007,Residential Care,237.47,Expense
Northumberland County Council,AKARI CARE,3283600,11-06-2020,Adult Social Care & Commissioning,Older MH West - PWMH1,306414,167007,Residential Care,2285.88,Expense
Northumberland County Council,AKARI CARE,3283600,11-06-2020,Adult Social Care & Commissioning,Older MH West - PWMH1,306414,167007,Residential Care,114.29,Expense
Northumberland County Council,AKARI CARE,3283601,11-06-2020,Adult Social Care & Commissioning,Older MH Central - PCMM1- Two,306404,167007,Residential Care,2285.88,Expense
Northumberland County Council,AKARI CARE,3283601,11-06-2020,Adult Social Care & Commissioning,Older MH Central - PCMM1- Two,306404,167007,Residential Care,114.29,Expense
Northumberland County Council,AKARI CARE,3283613,11-06-2020,Adult Social Care & Commissioning,Older PDI West - PWLTH - One,306412,167006,Care Homes with Nursing,-3364.97,Expense
Northumberland County Council,AKARI CARE,3283613,11-06-2020,Adult Social Care & Commissioning,Older PDI West - PWLTH - One,306412,167006,Care Homes with Nursing,-168.25,Expense
Northumberland County Council,AKARI CARE,3283614,11-06-2020,Adult Social Care & Commissioning,Older MH West - PWMH1,306414,167006,Care Homes with Nursing,735.68,Expense
Northumberland County Council,AKARI CARE,3283614,11-06-2020,Adult Social Care & Commissioning,Older MH West - PWMH1,306414,167006,Care Homes with Nursing,36.78,Expense
Northumberland County Council,AKARI CARE,3283614,11-06-2020,Adult Social Care & Commissioning,F.N.C.,306421,167006,Care Homes with Nursing,735.68,Expense
Northumberland County Council,AKARI CARE,3283615,11-06-2020,Adult Social Care & Commissioning,Older PDI West - PWLTH - One,306412,167006,Care Homes with Nursing,4571.76,Expense
Northumberland County Council,AKARI CARE,3283615,11-06-2020,Adult Social Care & Commissioning,Older PDI West - PWLTH - One,306412,167006,Care Homes with Nursing,228.59,Expense
Northumberland County Council,AKARI CARE,3283615,11-06-2020,Adult Social Care & Commissioning,CHC Packages,306420,167006,Care Homes with Nursing,3101.56,Expense
Northumberland County Council,AKARI CARE,3283615,11-06-2020,Adult Social Care & Commissioning,CHC Packages,306420,167006,Care Homes with Nursing,155.07,Expense
Northumberland County Council,AKARI CARE,3283615,11-06-2020,Adult Social Care & Commissioning,F.N.C.,306421,167006,Care Homes with Nursing,1471.36,Expense
Northumberland County Council,AKARI CARE,3283616,11-06-2020,Adult Social Care & Commissioning,Older MH West - PWMH1,306414,167006,Care Homes with Nursing,2185.28,Expense
Northumberland County Council,AKARI CARE,3283616,11-06-2020,Adult Social Care & Commissioning,F.N.C.,306421,167006,Care Homes with Nursing,721.24,Expense
Northumberland County Council,AKARI CARE,3283617,11-06-2020,Adult Social Care & Commissioning,Older PDI West - PWLTH - One,306412,167006,Care Homes with Nursing,2285.88,Expense
Northumberland County Council,AKARI CARE,3283617,11-06-2020,Adult Social Care & Commissioning,Older PDI West - PWLTH - One,306412,167006,Care Homes with Nursing,114.29,Expense
Northumberland County Council,AKARI CARE,3283617,11-06-2020,Adult Social Care & Commissioning,Older MH West - PWMH1,306414,167006,Care Homes with Nursing,4571.76,Expense
Northumberland County Council,AKARI CARE,3283617,11-06-2020,Adult Social Care & Commissioning,Older MH West - PWMH1,306414,167006,Care Homes with Nursing,228.59,Expense
Northumberland County Council,AKARI CARE,3283617,11-06-2020,Adult Social Care & Commissioning,CHC Packages,306420,167006,Care Homes with Nursing,20.00,Expense
Northumberland County Council,AKARI CARE,3283617,11-06-2020,Adult Social Care & Commissioning,CHC Packages,306420,167006,Care Homes with Nursing,1.00,Expense
Northumberland County Council,AKARI CARE,3283617,11-06-2020,Adult Social Care & Commissioning,CHC Packages,306420,167007,Residential Care,571.47,Expense
Northumberland County Council,AKARI CARE,3283617,11-06-2020,Adult Social Care & Commissioning,CHC Packages,306420,167007,Residential Care,28.57,Expense
Northumberland County Council,AKARI CARE,3283617,11-06-2020,Adult Social Care & Commissioning,F.N.C.,306421,167006,Care Homes with Nursing,2207.04,Expense
Northumberland County Council,AKARI CARE,3283619,11-06-2020,Adult Social Care & Commissioning,Older PDI West - PWLTH - One,306412,167007,Residential Care,2285.88,Expense
Northumberland County Council,AKARI CARE,3283619,11-06-2020,Adult Social Care & Commissioning,Older PDI West - PWLTH - One,306412,167007,Residential Care,114.29,Expense
Northumberland County Council,AKARI CARE,3283619,11-06-2020,Adult Social Care & Commissioning,Older MH West - PWMH1,306414,167007,Residential Care,7498.76,Expense
Northumberland County Council,AKARI CARE,3283619,11-06-2020,Adult Social Care & Commissioning,Older MH West - PWMH1,306414,167007,Residential Care,374.93,Expense
Northumberland County Council,AKARI CARE,3283620,11-06-2020,Adult Social Care & Commissioning,Older PDI West - PWLTH - One,306412,167007,Residential Care,5239.19,Expense
Northumberland County Council,AKARI CARE,3283620,11-06-2020,Adult Social Care & Commissioning,Older PDI West - PWLTH - One,306412,167007,Residential Care,261.96,Expense
Northumberland County Council,AKARI CARE,3283622,11-06-2020,Adult Social Care & Commissioning,Older PDI West - PWLTH - One,306412,167007,Residential Care,7053.44,Expense
Northumberland County Council,AKARI CARE,3283622,11-06-2020,Adult Social Care & Commissioning,Older PDI West - PWLTH - One,306412,167007,Residential Care,352.67,Expense
Northumberland County Council,AKARI CARE,3283622,11-06-2020,Adult Social Care & Commissioning,Older MH West - PWMH1,306414,167007,Residential Care,4926.96,Expense
Northumberland County Council,AKARI CARE,3283622,11-06-2020,Adult Social Care & Commissioning,Older MH West - PWMH1,306414,167007,Residential Care,246.35,Expense
Northumberland County Council,AKARI CARE,3283622,11-06-2020,Adult Social Care & Commissioning,CHC Packages,306420,167007,Residential Care,1142.94,Expense
Northumberland County Council,AKARI CARE,3283622,11-06-2020,Adult Social Care & Commissioning,CHC Packages,306420,167007,Residential Care,57.15,Expense
Northumberland County Council,AKARI CARE,3283624,11-06-2020,Adult Social Care & Commissioning,Older PDI West - PWLTH - One,306412,167007,Residential Care,4926.96,Expense
Northumberland County Council,AKARI CARE,3283624,11-06-2020,Adult Social Care & Commissioning,Older PDI West - PWLTH - One,306412,167007,Residential Care,246.35,Expense
Northumberland County Council,AKARI CARE,3283624,11-06-2020,Adult Social Care & Commissioning,Older MH West - PWMH1,306414,167007,Residential Care,2365.88,Expense
Northumberland County Council,AKARI CARE,3283624,11-06-2020,Adult Social Care & Commissioning,Older MH West - PWMH1,306414,167007,Residential Care,118.29,Expense
Northumberland County Council,AKARI CARE,3300964,12-06-2020,,Adults Infection Control Grant,990400,500222,Expenditure - Adults Infection Control Payments,30237.00,Liability
Northumberland County Council,AKARI CARE,3301586,12-06-2020,,Adults Infection Control Grant,990400,500222,Expenditure - Adults Infection Control Payments,24785.50,Liability
Northumberland County Council,AKARI CARE,3301587,12-06-2020,,Adults Infection Control Grant,990400,500222,Expenditure - Adults Infection Control Payments,24784.50,Liability
Northumberland County Council,AKARI CARE,3338600,16-06-2020,Adult Social Care & Commissioning,F.N.C.,306421,167006,Care Homes with Nursing,334.87,Expense
Northumberland County Council,AKARI CARE,3338601,16-06-2020,Adult Social Care & Commissioning,Older MH Central - PCMM1- Two,306404,167006,Care Homes with Nursing,357.01,Expense
Northumberland County Council,AKARI CARE,3338601,16-06-2020,Adult Social Care & Commissioning,Older MH Central - PCMM1- Two,306404,167006,Care Homes with Nursing,17.85,Expense
Northumberland County Council,AKARI CARE,3338603,16-06-2020,Adult Social Care & Commissioning,Older MH Central - PCMM1- Two,306404,167007,Residential Care,546.32,Expense
Northumberland County Council,AKARI CARE,3414587,23-06-2020,Adult Social Care & Commissioning,Older MH South - PSMB1,306411,167007,Residential Care,9089.28,Expense
Northumberland County Council,AKARI CARE,3414587,23-06-2020,Adult Social Care & Commissioning,Older MH South - PSMB1,306411,167007,Residential Care,454.46,Expense
Northumberland County Council,AKARI CARE,3414587,23-06-2020,Adult Social Care & Commissioning,CHC Packages,306420,167007,Residential Care,2227.84,Expense
Northumberland County Council,AKARI CARE,3414587,23-06-2020,Adult Social Care & Commissioning,CHC Packages,306420,167007,Residential Care,111.39,Expense
Northumberland County Council,AKARI CARE,3414588,23-06-2020,Adult Social Care & Commissioning,Older PDI South - PSLTC - Two,306410,167007,Residential Care,2405.76,Expense
Northumberland County Council,AKARI CARE,3414588,23-06-2020,Adult Social Care & Commissioning,Older PDI South - PSLTC - Two,306410,167007,Residential Care,120.29,Expense
Northumberland County Council,AKARI CARE,3414588,23-06-2020,Adult Social Care & Commissioning,Older MH South - PSMB1,306411,167007,Residential Care,7217.28,Expense
Northumberland County Council,AKARI CARE,3414588,23-06-2020,Adult Social Care & Commissioning,Older MH South - PSMB1,306411,167007,Residential Care,360.86,Expense
Northumberland County Council,AKARI CARE,3414589,23-06-2020,Adult Social Care & Commissioning,Older PDI Central - PCLB1 - Two,306401,167007,Residential Care,2227.84,Expense
Northumberland County Council,AKARI CARE,3414589,23-06-2020,Adult Social Care & Commissioning,Older PDI Central - PCLB1 - Two,306401,167007,Residential Care,111.39,Expense
Northumberland County Council,AKARI CARE,3414589,23-06-2020,Adult Social Care & Commissioning,Older PDI South - PSLTC - Two,306410,167007,Residential Care,4633.60,Expense
Northumberland County Council,AKARI CARE,3414589,23-06-2020,Adult Social Care & Commissioning,Older PDI South - PSLTC - Two,306410,167007,Residential Care,231.68,Expense
Northumberland County Council,AKARI CARE,3414589,23-06-2020,Adult Social Care & Commissioning,Older MH South - PSMB1,306411,167007,Residential Care,9445.12,Expense
Northumberland County Council,AKARI CARE,3414589,23-06-2020,Adult Social Care & Commissioning,Older MH South - PSMB1,306411,167007,Residential Care,472.26,Expense
Northumberland County Council,AKARI CARE,3414589,23-06-2020,Adult Social Care & Commissioning,CHC Packages,306420,167007,Residential Care,2405.76,Expense
Northumberland County Council,AKARI CARE,3414589,23-06-2020,Adult Social Care & Commissioning,CHC Packages,306420,167007,Residential Care,120.29,Expense
Northumberland County Council,AKARI CARE,3414590,23-06-2020,Adult Social Care & Commissioning,Older MH South - PSMB1,306411,167007,Residential Care,343.68,Expense
Northumberland County Council,AKARI CARE,3414590,23-06-2020,Adult Social Care & Commissioning,Older MH South - PSMB1,306411,167007,Residential Care,17.18,Expense
Northumberland County Council,AKARI CARE,3414591,23-06-2020,Adult Social Care & Commissioning,Older PDI South - PSLTC - Two,306410,167007,Residential Care,4633.60,Expense
Northumberland County Council,AKARI CARE,3414591,23-06-2020,Adult Social Care & Commissioning,Older PDI South - PSLTC - Two,306410,167007,Residential Care,231.68,Expense
Northumberland County Council,AKARI CARE,3414591,23-06-2020,Adult Social Care & Commissioning,Older MH South - PSMB1,306411,167007,Residential Care,4811.52,Expense
Northumberland County Council,AKARI CARE,3414591,23-06-2020,Adult Social Care & Commissioning,Older MH South - PSMB1,306411,167007,Residential Care,240.58,Expense
Northumberland County Council,AKARI CARE,3414591,23-06-2020,Adult Social Care & Commissioning,CHC Packages,306420,167007,Residential Care,343.68,Expense
Northumberland County Council,AKARI CARE,3414591,23-06-2020,Adult Social Care & Commissioning,CHC Packages,306420,167007,Residential Care,17.18,Expense
Northumberland County Council,AKARI CARE,3414592,23-06-2020,Adult Social Care & Commissioning,Older PDI South - PSLTC - Two,306410,167007,Residential Care,2227.84,Expense
Northumberland County Council,AKARI CARE,3414592,23-06-2020,Adult Social Care & Commissioning,Older PDI South - PSLTC - Two,306410,167007,Residential Care,111.39,Expense
Northumberland County Council,AKARI CARE,3414592,23-06-2020,Adult Social Care & Commissioning,Older MH South - PSMB1,306411,167007,Residential Care,7217.28,Expense
Northumberland County Council,AKARI CARE,3414592,23-06-2020,Adult Social Care & Commissioning,Older MH South - PSMB1,306411,167007,Residential Care,360.86,Expense
Northumberland County Council,AKARI CARE,3414593,23-06-2020,Adult Social Care & Commissioning,Older PDI South - PSLTC - Two,306410,167007,Residential Care,2307.84,Expense
Northumberland County Council,AKARI CARE,3414593,23-06-2020,Adult Social Care & Commissioning,Older PDI South - PSLTC - Two,306410,167007,Residential Care,115.39,Expense
Northumberland County Council,AKARI CARE,3414593,23-06-2020,Adult Social Care & Commissioning,Older MH South - PSMB1,306411,167007,Residential Care,2227.84,Expense
Northumberland County Council,AKARI CARE,3414593,23-06-2020,Adult Social Care & Commissioning,Older MH South - PSMB1,306411,167007,Residential Care,111.39,Expense
Northumberland County Council,AKARI CARE,3414593,23-06-2020,Adult Social Care & Commissioning,CHC Packages,306420,167007,Residential Care,2782.08,Expense
Northumberland County Council,AKARI CARE,3414593,23-06-2020,Adult Social Care & Commissioning,CHC Packages,306420,167007,Residential Care,139.11,Expense
Northumberland County Council,AKK CONSUMABLES,3241024,05-06-2020,General Fund,Hexham Tyne Mills Workshop,205280,140000,Equipment,585.45,Expense
Northumberland County Council,AKK CONSUMABLES,3241024,05-06-2020,General Fund,Hexham Tyne Mills Workshop,205280,140003,Tools,110.00,Expense
Northumberland County Council,AKK CONSUMABLES,3241024,05-06-2020,General Fund,Hexham Tyne Mills Workshop,205280,140003,Tools,360.00,Expense
Northumberland County Council,AKK CONSUMABLES,3241027,05-06-2020,General Fund,Hexham Tyne Mills Workshop,205280,130001,Vehicle Repairs and maintenance,14.82,Expense
Northumberland County Council,AKK CONSUMABLES,3241027,05-06-2020,General Fund,Hexham Tyne Mills Workshop,205280,130001,Vehicle Repairs and maintenance,16.87,Expense
Northumberland County Council,AKK CONSUMABLES,3241027,05-06-2020,General Fund,Hexham Tyne Mills Workshop,205280,130001,Vehicle Repairs and maintenance,105.00,Expense
Northumberland County Council,AKK CONSUMABLES,3241027,05-06-2020,General Fund,Hexham Tyne Mills Workshop,205280,130001,Vehicle Repairs and maintenance,25.00,Expense
Northumberland County Council,AKK CONSUMABLES,3241027,05-06-2020,General Fund,Hexham Tyne Mills Workshop,205280,130001,Vehicle Repairs and maintenance,65.00,Expense
Northumberland County Council,AKK CONSUMABLES,3241027,05-06-2020,General Fund,Hexham Tyne Mills Workshop,205280,130001,Vehicle Repairs and maintenance,25.00,Expense
Northumberland County Council,AKK CONSUMABLES,3269667,10-06-2020,General Fund,Stakeford Workshop,205220,130001,Vehicle Repairs and maintenance,66.30,Expense
Northumberland County Council,AKK CONSUMABLES,3269667,10-06-2020,General Fund,Stakeford Workshop,205220,130001,Vehicle Repairs and maintenance,198.90,Expense
Northumberland County Council,AKK CONSUMABLES,3269675,10-06-2020,General Fund,Hexham Tyne Mills Workshop,205280,130001,Vehicle Repairs and maintenance,31.50,Expense
Northumberland County Council,AKK CONSUMABLES,3269675,10-06-2020,General Fund,Hexham Tyne Mills Workshop,205280,130001,Vehicle Repairs and maintenance,108.00,Expense
Northumberland County Council,AKK CONSUMABLES,3269675,10-06-2020,General Fund,Hexham Tyne Mills Workshop,205280,130001,Vehicle Repairs and maintenance,15.60,Expense
Northumberland County Council,AKK CONSUMABLES,3269675,10-06-2020,General Fund,Hexham Tyne Mills Workshop,205280,130001,Vehicle Repairs and maintenance,29.00,Expense
Northumberland County Council,AKK CONSUMABLES,3269675,10-06-2020,General Fund,Hexham Tyne Mills Workshop,205280,130001,Vehicle Repairs and maintenance,25.00,Expense
Northumberland County Council,AKK CONSUMABLES,3269675,10-06-2020,General Fund,Hexham Tyne Mills Workshop,205280,130001,Vehicle Repairs and maintenance,62.50,Expense
Northumberland County Council,AKK CONSUMABLES,3269675,10-06-2020,General Fund,Hexham Tyne Mills Workshop,205280,130001,Vehicle Repairs and maintenance,29.40,Expense
Northumberland County Council,AKK CONSUMABLES,3269675,10-06-2020,General Fund,Hexham Tyne Mills Workshop,205280,130001,Vehicle Repairs and maintenance,105.00,Expense
Northumberland County Council,AKK CONSUMABLES,3269675,10-06-2020,General Fund,Hexham Tyne Mills Workshop,205280,130001,Vehicle Repairs and maintenance,33.20,Expense
Northumberland County Council,AKK CONSUMABLES,3269675,10-06-2020,General Fund,Hexham Tyne Mills Workshop,205280,130001,Vehicle Repairs and maintenance,5.70,Expense
Northumberland County Council,AKK CONSUMABLES,3269675,10-06-2020,General Fund,Hexham Tyne Mills Workshop,205280,130001,Vehicle Repairs and maintenance,65.00,Expense
Northumberland County Council,AKK CONSUMABLES,3269675,10-06-2020,General Fund,Hexham Tyne Mills Workshop,205280,130001,Vehicle Repairs and maintenance,9.75,Expense
Northumberland County Council,AKK CONSUMABLES,3423662,24-06-2020,General Fund,Hexham Tyne Mills Workshop,205280,130001,Vehicle Repairs and maintenance,105.00,Expense
Northumberland County Council,AKK CONSUMABLES,3423662,24-06-2020,General Fund,Hexham Tyne Mills Workshop,205280,130001,Vehicle Repairs and maintenance,65.00,Expense
Northumberland County Council,AKK CONSUMABLES,3423662,24-06-2020,General Fund,Hexham Tyne Mills Workshop,205280,130001,Vehicle Repairs and maintenance,85.50,Expense
Northumberland County Council,AKK CONSUMABLES,3423662,24-06-2020,General Fund,Hexham Tyne Mills Workshop,205280,130001,Vehicle Repairs and maintenance,25.00,Expense
Northumberland County Council,AKK CONSUMABLES,3423662,24-06-2020,General Fund,Hexham Tyne Mills Workshop,205280,130001,Vehicle Repairs and maintenance,35.10,Expense
Northumberland County Council,AKK CONSUMABLES,300001303901445,30-06-2020,General Fund,Sign Shop,200480,140016,Highways Materials,271.00,Expense
Northumberland County Council,AKK CONSUMABLES,300001303901445,30-06-2020,General Fund,Sign Shop,200480,140016,Highways Materials,12.15,Expense
Northumberland County Council,AKK CONSUMABLES,300001303901445,30-06-2020,General Fund,Sign Shop,200480,140016,Highways Materials,50.61,Expense
Northumberland County Council,AKK CONSUMABLES,300001303901445,30-06-2020,General Fund,Sign Shop,200480,140016,Highways Materials,10.43,Expense
Northumberland County Council,AKK CONSUMABLES,300001303901445,30-06-2020,General Fund,Sign Shop,200480,140016,Highways Materials,21.91,Expense
Northumberland County Council,AKK CONSUMABLES,300001303901445,30-06-2020,General Fund,Sign Shop,200480,140016,Highways Materials,23.00,Expense
Northumberland County Council,ALBANY HOUSE,3244590,05-06-2020,Adult Social Care & Commissioning,Older MH Central - PCMM1- Two,306404,167007,Residential Care,1961.56,Expense
Northumberland County Council,ALBANY HOUSE,3244590,05-06-2020,Adult Social Care & Commissioning,Older MH Central - PCMM1- Two,306404,167007,Residential Care,98.08,Expense
Northumberland County Council,ALBURY CARE GROUP,3219594,04-06-2020,Adult Social Care & Commissioning,Older Pdi North - PNLTA,306405,167007,Residential Care,2353.68,Expense
Northumberland County Council,ALBURY CARE GROUP,3219594,04-06-2020,Adult Social Care & Commissioning,Older Pdi North - PNLTA,306405,167007,Residential Care,117.68,Expense
Northumberland County Council,ALBURY CARE GROUP,3219594,04-06-2020,Adult Social Care & Commissioning,Older MH North - PNMB1 - Two,306408,167007,Residential Care,2531.28,Expense
Northumberland County Council,ALBURY CARE GROUP,3219594,04-06-2020,Adult Social Care & Commissioning,Older MH North - PNMB1 - Two,306408,167007,Residential Care,126.56,Expense
Northumberland County Council,ALBURY CARE GROUP,3255586,08-06-2020,,Adults Infection Control Grant,990400,500222,Expenditure - Adults Infection Control Payments,5948.28,Liability
Northumberland County Council,ALBURY CARE GROUP,3475586,30-06-2020,,Adults Infection Control Grant,990400,500222,Expenditure - Adults Infection Control Payments,4791.83,Liability
Northumberland County Council,ALCYONE HEALTHCARE NORTH EAST LTD,3259597,09-06-2020,Adult Social Care & Commissioning,Older PDI Central - PCLB1 - Two,306401,167007,Residential Care,16711.56,Expense
Northumberland County Council,ALCYONE HEALTHCARE NORTH EAST LTD,3259597,09-06-2020,Adult Social Care & Commissioning,Older PDI Central - PCLB1 - Two,306401,167007,Residential Care,835.57,Expense
Northumberland County Council,ALCYONE HEALTHCARE NORTH EAST LTD,3259597,09-06-2020,Adult Social Care & Commissioning,Older MH Central - PCMM1- Two,306404,167007,Residential Care,48381.60,Expense
Northumberland County Council,ALCYONE HEALTHCARE NORTH EAST LTD,3259597,09-06-2020,Adult Social Care & Commissioning,Older MH Central - PCMM1- Two,306404,167007,Residential Care,2419.08,Expense
Northumberland County Council,ALCYONE HEALTHCARE NORTH EAST LTD,3259597,09-06-2020,Adult Social Care & Commissioning,Older PDI South - PSLTC - Two,306410,167007,Residential Care,2463.48,Expense
Northumberland County Council,ALCYONE HEALTHCARE NORTH EAST LTD,3259597,09-06-2020,Adult Social Care & Commissioning,Older PDI South - PSLTC - Two,306410,167007,Residential Care,123.17,Expense
Northumberland County Council,ALCYONE HEALTHCARE NORTH EAST LTD,3259597,09-06-2020,Adult Social Care & Commissioning,Older MH South - PSMB1,306411,167007,Residential Care,7390.44,Expense
Northumberland County Council,ALCYONE HEALTHCARE NORTH EAST LTD,3259597,09-06-2020,Adult Social Care & Commissioning,Older MH South - PSMB1,306411,167007,Residential Care,369.52,Expense
Northumberland County Council,ALCYONE HEALTHCARE NORTH EAST LTD,3272586,10-06-2020,,Adults Infection Control Grant,990400,500222,Expenditure - Adults Infection Control Payments,24784.50,Liability
Northumberland County Council,ALDERSON LAW LLP,300001241196158,04-06-2020,Total Cost Centre,Purchase Budgets,16010,144025,Professional Services,2000.00,Expense
Northumberland County Council,ALICE RICHARDSON-BARRISTER,300001257579588,11-06-2020,,Legal,120001,194000,Legal Advice - External,500.00,Expense
Northumberland County Council,ALL SEASONS INDEPENDENT FUNERAL DIRECTORS LTD,300001252931048,08-06-2020,,Coroners,117001,144013,Body Conveyancing,1221.35,Expense
Northumberland County Council,ALLAN COURT CARE CENTRE,3212840,03-06-2020,Adult Social Care & Commissioning,F.N.C.,306421,167006,Care Homes with Nursing,721.24,Expense
Northumberland County Council,ALLAN COURT CARE CENTRE,3212841,03-06-2020,Adult Social Care & Commissioning,Older PDI South - PSLTC - Two,306410,167006,Care Homes with Nursing,2670.88,Expense
Northumberland County Council,ALLAN COURT CARE CENTRE,3212841,03-06-2020,Adult Social Care & Commissioning,Older PDI South - PSLTC - Two,306410,167006,Care Homes with Nursing,133.54,Expense
Northumberland County Council,ALLANS PROPERTY,300001241196130,04-06-2020,General Fund,NEAT Team North - Alnwick,217100,113000,Rents and Leases,2500.00,Expense
Northumberland County Council,ALLENDALE ESTATES I FUND,300001241196304,04-06-2020,General Fund,Bearl,200870,113000,Rents and Leases,10000.00,Expense
Northumberland County Council,ALLENDALE ESTATES I FUND,300001241196304,04-06-2020,General Fund,Bearl,200870,113000,Rents and Leases,520.55,Expense
Northumberland County Council,ALLIED PUBLICITY SERVICES (MANCHESTER) LIMITED T/A APS GROUP,300001231109574,02-06-2020,Total Cost Centre,Blue Badges Scheme,255500,143000,Printing & Stationery,751.79,Expense
Northumberland County Council,ALLSTAR BUSINESS SOLUTION LTD,300001238863356,03-06-2020,Finance,Engineering Services,30120,130004,Vehicle Fuel,1687.94,Expense
Northumberland County Council,AM HIRE,3207649,02-06-2020,General Fund,Hire Desk,205360,132000,Vehicle hire,20.00,Expense
Northumberland County Council,AM HIRE,3207649,02-06-2020,General Fund,Hire Desk,205360,132001,Plant Hire,390.00,Expense
Northumberland County Council,AM-2-PM,300001235379045,09-06-2020,General Fund,SEN Transport,204190,136000,Pupils - Travel,525.00,Expense
Northumberland County Council,AM-2-PM,300001235379045,09-06-2020,General Fund,SEN Transport,204190,136000,Pupils - Travel,2100.00,Expense
Northumberland County Council,AMBLE TAXIS,300001228677723,03-06-2020,General Fund,SEN Transport,204190,136000,Pupils - Travel,1077.30,Expense
Northumberland County Council,AMBLE TAXIS,300001228677736,03-06-2020,General Fund,SEN Transport,204190,136000,Pupils - Travel,1293.75,Expense
Northumberland County Council,AMBLE TAXIS,300001228677739,03-06-2020,General Fund,SEN Transport,204190,136000,Pupils - Travel,1164.38,Expense
Northumberland County Council,AMBLE TAXIS,300001228677742,03-06-2020,General Fund,SEN Transport,204190,136000,Pupils - Travel,1107.68,Expense
Northumberland County Council,AMBLE TAXIS,300001228677745,03-06-2020,General Fund,SEN Transport,204190,136000,Pupils - Travel,1068.75,Expense
Northumberland County Council,ANDERSON NURSING LIMITED,3198622,01-06-2020,Adult Social Care & Commissioning,CHC Packages,306420,167006,Care Homes with Nursing,1533.32,Expense
Northumberland County Council,ANDERSON NURSING LIMITED,3198622,01-06-2020,Adult Social Care & Commissioning,CHC Packages,306420,167006,Care Homes with Nursing,76.67,Expense
Northumberland County Council,ANDERSON NURSING LIMITED,3198623,01-06-2020,Adult Social Care & Commissioning,CHC Packages,306420,167007,Residential Care,1597.14,Expense
Northumberland County Council,ANDERSON NURSING LIMITED,3198623,01-06-2020,Adult Social Care & Commissioning,CHC Packages,306420,167007,Residential Care,79.86,Expense
Northumberland County Council,ANDERSON NURSING LIMITED,3243606,08-06-2020,Adult Social Care & Commissioning,CHC Packages,306420,167007,Residential Care,904.03,Expense
Northumberland County Council,ANDERSON NURSING LIMITED,3243606,08-06-2020,Adult Social Care & Commissioning,CHC Packages,306420,167007,Residential Care,45.20,Expense
Northumberland County Council,ANDERSON NURSING LIMITED,3254610,08-06-2020,,Adults Infection Control Grant,990400,500222,Expenditure - Adults Infection Control Payments,13383.63,Liability
Northumberland County Council,ANDERSON NURSING LIMITED,3338621,16-06-2020,Adult Social Care & Commissioning,CHC Packages,306420,167006,Care Homes with Nursing,1434.35,Expense
Northumberland County Council,ANDERSON NURSING LIMITED,3338621,16-06-2020,Adult Social Care & Commissioning,CHC Packages,306420,167006,Care Homes with Nursing,71.72,Expense
Northumberland County Council,ANDREW HARDY,300001226209739,01-06-2020,,Fixed Asset Account,990120,500171,CIP - Infrastructure,1865.00,Asset
Northumberland County Council,ANDREW HARDY,300001231109411,02-06-2020,,Fixed Asset Account,990120,500171,CIP - Infrastructure,2445.00,Asset
Northumberland County Council,ANDREW HARDY,300001231109414,02-06-2020,,Fixed Asset Account,990120,500171,CIP - Infrastructure,2445.00,Asset
Northumberland County Council,ANDREW HARDY,300001231109417,02-06-2020,,Fixed Asset Account,990120,500171,CIP - Infrastructure,3330.00,Asset
Northumberland County Council,ANDREW HARDY,300001231109420,02-06-2020,,Fixed Asset Account,990120,500171,CIP - Infrastructure,1665.00,Asset
Northumberland County Council,ANDREW HARDY,300001231109423,02-06-2020,,Fixed Asset Account,990120,500171,CIP - Infrastructure,3330.00,Asset
Northumberland County Council,ANDREW HARDY,300001231109437,02-06-2020,,Fixed Asset Account,990120,500171,CIP - Infrastructure,8325.00,Asset
Northumberland County Council,ANDREW HARDY,300001243948715,05-06-2020,,Fixed Asset Account,990120,500171,CIP - Infrastructure,3330.00,Asset
Northumberland County Council,ANDREW HARDY,300001243948718,05-06-2020,,Fixed Asset Account,990120,500171,CIP - Infrastructure,3330.00,Asset
Northumberland County Council,ANDREW HARDY,300001243948721,05-06-2020,,Fixed Asset Account,990120,500171,CIP - Infrastructure,1665.00,Asset
Northumberland County Council,ANDREW HARDY,300001243948724,08-06-2020,,Fixed Asset Account,990120,500171,CIP - Infrastructure,3330.00,Asset
Northumberland County Council,ANDREW HARDY,300001243948727,08-06-2020,,Fixed Asset Account,990120,500171,CIP - Infrastructure,4890.00,Asset
Northumberland County Council,ANDREW HARDY,300001243948730,08-06-2020,,Fixed Asset Account,990120,500171,CIP - Infrastructure,4890.00,Asset
Northumberland County Council,ANDREW HARDY,300001260248218,11-06-2020,,Fixed Asset Account,990120,500171,CIP - Infrastructure,9780.00,Asset
Northumberland County Council,ANDREW HARDY,300001260248221,11-06-2020,,Fixed Asset Account,990120,500171,CIP - Infrastructure,417.94,Asset
Northumberland County Council,ANDREW HARDY,300001260248221,11-06-2020,,Fixed Asset Account,990120,500171,CIP - Infrastructure,417.93,Asset
Northumberland County Council,ANDREW HARDY,300001260248221,11-06-2020,,Fixed Asset Account,990120,500171,CIP - Infrastructure,417.93,Asset
Northumberland County Council,ANDREW HARDY,300001260248230,11-06-2020,,Fixed Asset Account,990120,500171,CIP - Infrastructure,5190.00,Asset
Northumberland County Council,ANDREW HARDY,300001260609520,12-06-2020,,Fixed Asset Account,990120,500171,CIP - Infrastructure,1665.00,Asset
Northumberland County Council,ANDREW HARDY,300001260609529,12-06-2020,,Fixed Asset Account,990120,500171,CIP - Infrastructure,1865.00,Asset
Northumberland County Council,ANDREW HARDY,300001260609532,12-06-2020,,Fixed Asset Account,990120,500171,CIP - Infrastructure,1865.00,Asset
Northumberland County Council,ANDREW HARDY,300001269315875,15-06-2020,,Fixed Asset Account,990120,500171,CIP - Infrastructure,409.20,Asset
Northumberland County Council,ANDREW HARDY,300001269315875,15-06-2020,,Fixed Asset Account,990120,500171,CIP - Infrastructure,409.20,Asset
Northumberland County Council,ANDREW HARDY,300001269315875,15-06-2020,,Fixed Asset Account,990120,500171,CIP - Infrastructure,421.60,Asset
Northumberland County Council,ANDREW HARDY,300001269315878,16-06-2020,,Fixed Asset Account,990120,500171,CIP - Infrastructure,6800.00,Asset
Northumberland County Council,ANDREW HARDY,300001269315878,16-06-2020,,Fixed Asset Account,990120,500171,CIP - Infrastructure,1510.00,Asset
Northumberland County Council,ANDREW HARDY,300001296337966,30-06-2020,,Fixed Asset Account,990120,500171,CIP - Infrastructure,413.00,Asset
Northumberland County Council,ANDREW HARDY,300001296337966,30-06-2020,,Fixed Asset Account,990120,500171,CIP - Infrastructure,414.00,Asset
Northumberland County Council,ANDREW HARDY,300001296337966,30-06-2020,,Fixed Asset Account,990120,500171,CIP - Infrastructure,413.00,Asset
Northumberland County Council,ANDREW HARDY,300001296337975,30-06-2020,,Fixed Asset Account,990120,500171,CIP - Infrastructure,1665.00,Asset
Northumberland County Council,ANDREW HARDY,300001296337986,30-06-2020,,Fixed Asset Account,990120,500171,CIP - Infrastructure,1665.00,Asset
Northumberland County Council,ANDREW HARDY,300001303901548,30-06-2020,,Fixed Asset Account,990120,500171,CIP - Infrastructure,5195.00,Asset
Northumberland County Council,ANDREW HARDY,300001303901551,30-06-2020,,Fixed Asset Account,990120,500171,CIP - Infrastructure,8310.00,Asset
Northumberland County Council,ANDREW HARDY,300001303901554,30-06-2020,,Fixed Asset Account,990120,500171,CIP - Infrastructure,310.00,Asset
Northumberland County Council,ANDREW HARDY,300001303901554,30-06-2020,,Fixed Asset Account,990120,500171,CIP - Infrastructure,310.00,Asset
Northumberland County Council,ANDREW HARDY,300001303901557,30-06-2020,,Fixed Asset Account,990120,500171,CIP - Infrastructure,4995.00,Asset
Northumberland County Council,ANDREW HARDY,300001303901562,30-06-2020,,Fixed Asset Account,990120,500171,CIP - Infrastructure,2745.00,Asset
Northumberland County Council,ANDREW HARDY,300001303901565,30-06-2020,General Fund,Rechargable Construction - West,200440,167000,Private Contractors,2445.00,Expense
Northumberland County Council,ANDREW HARDY,300001303901572,30-06-2020,,Fixed Asset Account,990120,500171,CIP - Infrastructure,2445.00,Asset
Northumberland County Council,ANDREW HARDY,300001303901575,30-06-2020,,Fixed Asset Account,990120,500171,CIP - Infrastructure,7335.00,Asset
Northumberland County Council,ANDREW HARDY,300001305762006,30-06-2020,,Fixed Asset Account,990120,500171,CIP - Infrastructure,1665.00,Asset
Northumberland County Council,ANDREW HARDY,300001305762018,30-06-2020,,Fixed Asset Account,990120,500171,CIP - Infrastructure,2745.00,Asset
Northumberland County Council,ANDREW HARDY,300001305762021,30-06-2020,,Fixed Asset Account,990120,500171,CIP - Infrastructure,4890.00,Asset
Northumberland County Council,ANDREW HARDY,300001305762025,30-06-2020,,Fixed Asset Account,990120,500171,CIP - Infrastructure,4890.00,Asset
Northumberland County Council,ANDREW HARDY,300001305762028,30-06-2020,,Fixed Asset Account,990120,500171,CIP - Infrastructure,2445.00,Asset
Northumberland County Council,ANDREW RICHARDSON,3386660,22-06-2020,Total Cost Centre,NCC Property Maintenance,128151,140017,Consumable Materials,2696.40,Expense
Northumberland County Council,ANTALIS LIMITED,3348591,17-06-2020,,Central Print,127800,143000,Printing & Stationery,704.00,Expense
Northumberland County Council,APPLE BLOSSOM DAY NURSERY,300001274551962,19-06-2020,Total Cost Centre,North FACT,16017,167009,Day Care,793.00,Expense
Northumberland County Council,APPLE BLOSSOM DAY NURSERY,300001274551965,19-06-2020,Total Cost Centre,North FACT,16017,167009,Day Care,715.00,Expense
Northumberland County Council,APPLE BLOSSOM DAY NURSERY,300001276694507,19-06-2020,Total Cost Centre,North FACT,16017,167009,Day Care,538.50,Expense
Northumberland County Council,APPLE BLOSSOM DAY NURSERY,300001276694510,19-06-2020,Total Cost Centre,North FACT,16017,167009,Day Care,593.50,Expense
Northumberland County Council,APPLEBY CARE HOME (LARCHWOOD CARE HOMES NORTH LTD),3253591,09-06-2020,Adult Social Care & Commissioning,Older MH South - PSMB1,306411,167006,Care Homes with Nursing,2314.56,Expense
Northumberland County Council,APPLEBY CARE HOME (LARCHWOOD CARE HOMES NORTH LTD),3253591,09-06-2020,Adult Social Care & Commissioning,Older MH South - PSMB1,306411,167006,Care Homes with Nursing,115.73,Expense
Northumberland County Council,APPLEBY CARE HOME (LARCHWOOD CARE HOMES NORTH LTD),3253591,09-06-2020,Adult Social Care & Commissioning,CHC Packages,306420,167006,Care Homes with Nursing,3050.24,Expense
Northumberland County Council,APPLEBY CARE HOME (LARCHWOOD CARE HOMES NORTH LTD),3253591,09-06-2020,Adult Social Care & Commissioning,CHC Packages,306420,167006,Care Homes with Nursing,152.51,Expense
Northumberland County Council,APPLEBY CARE HOME (LARCHWOOD CARE HOMES NORTH LTD),3253591,09-06-2020,Adult Social Care & Commissioning,F.N.C.,306421,167006,Care Homes with Nursing,735.68,Expense
Northumberland County Council,APPLEBY CARE HOME (LARCHWOOD CARE HOMES NORTH LTD),3253592,09-06-2020,Adult Social Care & Commissioning,CHC Packages,306420,167006,Care Homes with Nursing,771.21,Expense
Northumberland County Council,APPLEBY CARE HOME (LARCHWOOD CARE HOMES NORTH LTD),3253594,09-06-2020,Adult Social Care & Commissioning,F.N.C.,306421,167006,Care Homes with Nursing,867.05,Expense
Northumberland County Council,AQUEOUS 1ST KWIK FLOW LIMITED,300001274191647,17-06-2020,General Fund,Bearl,200870,167021,Waste Disposal,1200.00,Expense
Northumberland County Council,AQUEOUS 1ST KWIK FLOW LIMITED,300001274191647,17-06-2020,General Fund,Allendale,200890,167021,Waste Disposal,1200.00,Expense
Northumberland County Council,AQUEOUS 1ST KWIK FLOW LIMITED,300001274191647,17-06-2020,General Fund,Bellingham,200900,167021,Waste Disposal,1200.00,Expense
Northumberland County Council,AQUEOUS 1ST KWIK FLOW LIMITED,300001274191647,17-06-2020,General Fund,Otterburn,200910,167021,Waste Disposal,1200.00,Expense
Northumberland County Council,ARC ENVIRONMENTAL LTD,300001240931298,04-06-2020,Finance,Accommodation Moves,128019,144025,Professional Services,8995.00,Expense
Northumberland County Council,ARCO GROUP LIMITED,300001241196115,05-06-2020,Finance,County Hall Running Costs,295060,151000,Other Supplies and Services Expenditure,964.50,Expense
Northumberland County Council,ARGOS BUSINESS SOLUTIONS LTD,3212762,02-06-2020,,Infrastructure - Management,127300,143000,Printing & Stationery,-214.60,Expense
Northumberland County Council,ARGOS BUSINESS SOLUTIONS LTD,3212762,02-06-2020,,Infrastructure - Management,127300,143000,Printing & Stationery,214.60,Expense
Northumberland County Council,ARGOS BUSINESS SOLUTIONS LTD,3212762,02-06-2020,,Infrastructure - Management,127300,145002,Computer hardware,356.00,Expense
Northumberland County Council,ARGOS BUSINESS SOLUTIONS LTD,3212762,02-06-2020,,Infrastructure - Management,127300,145002,Computer hardware,-42944.58,Expense
Northumberland County Council,ARGOS BUSINESS SOLUTIONS LTD,3212762,02-06-2020,,Infrastructure - Management,127300,145002,Computer hardware,42588.58,Expense
Northumberland County Council,ARGOS BUSINESS SOLUTIONS LTD,3212762,02-06-2020,,Infrastructure - Management,127300,145003,Computer software,-130875.00,Expense
Northumberland County Council,ARGOS BUSINESS SOLUTIONS LTD,3212762,02-06-2020,,Infrastructure - Management,127300,145003,Computer software,130875.00,Expense
Northumberland County Council,ARGOS BUSINESS SOLUTIONS LTD,3212762,02-06-2020,,Sundry Debtors,990330,500104,AR Migration Suspense,356.00,Expense
Northumberland County Council,ARJO UK LTD,300001245958239,09-06-2020,General Fund,Estates,300454,140004,Equipment Maintenance,297.01,Expense
Northumberland County Council,ARM PIPETEK LTD,300001269876019,15-06-2020,,Fixed Asset Account,990120,500171,CIP - Infrastructure,4518.00,Asset
Northumberland County Council,ARM PIPETEK LTD,300001269876019,15-06-2020,,Fixed Asset Account,990120,500171,CIP - Infrastructure,1506.00,Asset
Northumberland County Council,ARM PIPETEK LTD,300001269876030,15-06-2020,,Fixed Asset Account,990120,500171,CIP - Infrastructure,2707.00,Asset
Northumberland County Council,ARM PIPETEK LTD,300001269876030,15-06-2020,,Fixed Asset Account,990120,500171,CIP - Infrastructure,2707.00,Asset
Northumberland County Council,ARNDALE GROUP OF COMPANIES,3346615,17-06-2020,,HfN - Stock in Hand,990013,500170,Stock in Hand,286.32,Asset
Northumberland County Council,ARNDALE GROUP OF COMPANIES,3354661,18-06-2020,,HfN - Stock in Hand,990013,500170,Stock in Hand,509.80,Asset
Northumberland County Council,ARNOLD CLARK FINANCE LTD,3207637,02-06-2020,General Fund,Hire Desk,205360,132001,Plant Hire,356.16,Expense
Northumberland County Council,ARNOLD CLARK FINANCE LTD,3335590,16-06-2020,General Fund,Hire Desk,205360,132001,Plant Hire,356.16,Expense
Northumberland County Council,ARRANS CABS,300001228436185,03-06-2020,General Fund,SEN Transport,204190,136000,Pupils - Travel,1335.63,Expense
Northumberland County Council,ARRANS CABS,300001228436193,03-06-2020,General Fund,SEN Transport,204190,136000,Pupils - Travel,435.75,Expense
Northumberland County Council,ARRANS CABS,300001228436201,03-06-2020,General Fund,SEN Transport,204190,136000,Pupils - Travel,530.20,Expense
Northumberland County Council,ARRIVA NORTHUMBRIA LIMITED,300001223793507,10-06-2020,General Fund,Supported Bus Services,204160,136002,Support - rural bus routes,728.19,Expense
Northumberland County Council,ARRIVA NORTHUMBRIA LIMITED,300001256065266,10-06-2020,General Fund,Supported Bus Services,204160,136002,Support - rural bus routes,868.60,Expense
Northumberland County Council,ARRIVA NORTHUMBRIA LIMITED,300001256065320,10-06-2020,General Fund,Supported Bus Services,204160,136002,Support - rural bus routes,387.44,Expense
Northumberland County Council,ARRIVA NORTHUMBRIA LIMITED,300001256065323,18-06-2020,General Fund,Supported Bus Services,204160,136002,Support - rural bus routes,352.20,Expense
Northumberland County Council,ARRIVA NORTHUMBRIA LIMITED,300001293609808,29-06-2020,General Fund,Supported Bus Services,204160,136002,Support - rural bus routes,704.70,Expense
Northumberland County Council,ARRIVA NORTHUMBRIA LIMITED,300001293609834,29-06-2020,General Fund,Supported Bus Services,204160,136002,Support - rural bus routes,10104.60,Expense
Northumberland County Council,ARRIVA NORTHUMBRIA LIMITED,300001293609837,29-06-2020,General Fund,Supported Bus Services,204160,136002,Support - rural bus routes,3941.74,Expense
Northumberland County Council,ARRIVA NORTHUMBRIA LIMITED,300001293609837,29-06-2020,General Fund,Supported Bus Services,204160,136002,Support - rural bus routes,587.00,Expense
Northumberland County Council,ARRIVA NORTHUMBRIA LIMITED,300001293609840,29-06-2020,General Fund,Supported Bus Services,204160,136002,Support - rural bus routes,5535.97,Expense
Northumberland County Council,ARRIVA NORTHUMBRIA LIMITED,300001293609843,29-06-2020,General Fund,Supported Bus Services,204160,136002,Support - rural bus routes,5526.15,Expense
Northumberland County Council,ARRIVA NORTHUMBRIA LIMITED,300001293609846,29-06-2020,General Fund,Supported Bus Services,204160,136002,Support - rural bus routes,1681.68,Expense
Northumberland County Council,ARROW COMMS LTD,300001243678772,05-06-2020,Total Cost Centre,Kyloe House,17010,110003,Repair and Maintenance,320.55,Expense
Northumberland County Council,ARROW COMMS LTD,300001276437446,18-06-2020,General Fund,Hexham,306608,145007,Land Line Telephone Costs,667.98,Expense
Northumberland County Council,ARROW COMMS LTD,300001289430642,24-06-2020,General Fund,Single Point of Access,306367,145007,Land Line Telephone Costs,1962.21,Expense
Northumberland County Council,ARROW COMMS LTD,300001303362588,30-06-2020,General Fund,Adult Services - County Hall,306606,145002,Computer hardware,13883.80,Expense
Northumberland County Council,ARTS AND HERITAGE CIC,300001252931357,08-06-2020,Total Cost Centre,Hirst Park Revival,222504,144025,Professional Services,2500.00,Expense
Northumberland County Council,ASCENTIS,300001286260611,24-06-2020,General Fund,Quality,12006,144005,Exam Fees,381.00,Expense
Northumberland County Council,ASD METAL SERVICES,300001274191112,17-06-2020,General Fund,Sign Shop,200480,140016,Highways Materials,810.00,Expense
Northumberland County Council,ASD METAL SERVICES,300001274191112,17-06-2020,General Fund,Sign Shop,200480,140016,Highways Materials,2559.20,Expense
Northumberland County Council,ASDA STORES LIMITED,3254692,08-06-2020,General Fund,Pharmacists,35121,144034,Commissioned Services,317.05,Expense
Northumberland County Council,ASHDOWN CARE HOMES LIMITED,3205603,01-06-2020,Total Cost Centre,Covid19 - Emergency Payments,306640,167008,Homecare,1930.00,Expense
Northumberland County Council,ASHDOWN CARE HOMES LIMITED,3205604,01-06-2020,Total Cost Centre,Covid19 - Emergency Payments,306640,167008,Homecare,395.00,Expense
Northumberland County Council,ASHDOWN CARE HOMES LIMITED,3212649,02-06-2020,Total Cost Centre,Covid19 - Emergency Payments,306640,167009,Day Care,2325.00,Expense
Northumberland County Council,ASHDOWN CARE HOMES LIMITED,3417600,23-06-2020,Total Cost Centre,Covid19 - Emergency Payments,306640,167009,Day Care,2735.00,Expense
Northumberland County Council,ASHINGTON REMOVALS AND STORAGE LIMITED,3205613,01-06-2020,Adult Social Care & Commissioning,Older MH Central - PCMM1- Two,306404,167002,Other Independent Care,325.00,Expense
Northumberland County Council,ASHINGTON REMOVALS AND STORAGE LIMITED,3306597,12-06-2020,Adult Social Care & Commissioning,Older MH Central - PCMM1- Two,306404,167002,Other Independent Care,335.83,Expense
Northumberland County Council,ASHINGTON REMOVALS AND STORAGE LIMITED,3337615,16-06-2020,Adult Social Care & Commissioning,Older MH Central - PCMM1- Two,306404,167002,Other Independent Care,600.00,Expense
Northumberland County Council,ASHINGTON REMOVALS AND STORAGE LIMITED,300001296337115,26-06-2020,General Fund,Estates,300454,140009,Furniture - not attached to buildings,2799.67,Expense
Northumberland County Council,ASHINGTON TAXIS,300001263045259,15-06-2020,General Fund,SEN Transport,204190,136000,Pupils - Travel,573.75,Expense
Northumberland County Council,ASHINGTON TAXIS,300001263045264,15-06-2020,General Fund,SEN Transport,204190,136000,Pupils - Travel,540.00,Expense
Northumberland County Council,ASHINGTON TAXIS,300001263045267,15-06-2020,General Fund,SEN Transport,204190,136000,Pupils - Travel,1153.13,Expense
Northumberland County Council,ASHINGTON TAXIS,300001263045270,15-06-2020,General Fund,Home to School Transport,204120,136000,Pupils - Travel,315.00,Expense
Northumberland County Council,ASHINGTON TAXIS,300001263045273,15-06-2020,General Fund,SEN Transport,204190,136000,Pupils - Travel,1057.50,Expense
Northumberland County Council,ASHINGTON TAXIS,300001263045370,15-06-2020,Adult Social Care & Commissioning,Older PDI Central - PCLB1 - Two,306401,181000,Client Transport,350.00,Expense
Northumberland County Council,ASHINGTON TAXIS,300001263045387,15-06-2020,Adult Social Care & Commissioning,Older PDI Central - PCLB1 - Two,306401,181000,Client Transport,350.00,Expense
Northumberland County Council,ASHINGTON TAXIS,300001263045393,15-06-2020,Adult Social Care & Commissioning,CHC Packages,306420,167002,Other Independent Care,2081.86,Expense
Northumberland County Council,ASHINGTON TAXIS,300001274990668,19-06-2020,Adult Social Care & Commissioning,CHC Packages,306420,167002,Other Independent Care,1141.86,Expense
Northumberland County Council,ASHINGTON TAXIS,300001274990674,19-06-2020,Adult Social Care & Commissioning,Older PDI Central - PCLB1 - Two,306401,181000,Client Transport,420.00,Expense
Northumberland County Council,ASHINGTON TOWN COUNCIL,300001240967661,05-06-2020,,Sundry Debtors,990330,500104,AR Migration Suspense,2795.00,Expense
Northumberland County Council,ASHTEAD PLANT HIRE CO LTD,300001269876099,15-06-2020,General Fund,Maintenance - North,200200,132001,Plant Hire,414.00,Expense
Northumberland County Council,ASHTEAD PLANT HIRE CO LTD,300001269876108,15-06-2020,General Fund,Maintenance - North,200200,132001,Plant Hire,420.00,Expense
Northumberland County Council,ASHTEAD PLANT HIRE CO LTD,300001269876114,15-06-2020,General Fund,Maintenance - North,200200,132001,Plant Hire,390.00,Expense
Northumberland County Council,ASHTEAD PLANT HIRE CO LTD,300001269876117,15-06-2020,General Fund,Maintenance - South East,200220,132001,Plant Hire,750.00,Expense
Northumberland County Council,ASHTEAD PLANT HIRE CO LTD,300001269876120,15-06-2020,General Fund,Emergency Incidents - North Area,200405,132001,Plant Hire,315.00,Expense
Northumberland County Council,ASHTEAD PLANT HIRE CO LTD,300001269876136,15-06-2020,,Fixed Asset Account,990120,500171,CIP - Infrastructure,2065.00,Asset
Northumberland County Council,ASHTEAD PLANT HIRE CO LTD,300001269876150,15-06-2020,,Fixed Asset Account,990120,500171,CIP - Infrastructure,1032.75,Asset
Northumberland County Council,ASHTEAD PLANT HIRE CO LTD,300001269876153,15-06-2020,General Fund,Maintenance - South East,200220,167000,Private Contractors,3076.00,Expense
Northumberland County Council,ASHTEAD PLANT HIRE CO LTD,300001269876163,15-06-2020,General Fund,Maintenance - North,200200,167000,Private Contractors,485.50,Expense
Northumberland County Council,ASHTEAD PLANT HIRE CO LTD,300001269876175,15-06-2020,General Fund,Rechargable Construction - North,200400,167000,Private Contractors,800.00,Expense
Northumberland County Council,ASHTEAD PLANT HIRE CO LTD,300001269876189,15-06-2020,General Fund,Maintenance - South East,200220,167000,Private Contractors,4040.00,Expense
Northumberland County Council,ASHTEAD PLANT HIRE CO LTD,300001269876209,15-06-2020,General Fund,Maintenance - North,200200,167000,Private Contractors,3585.00,Expense
Northumberland County Council,ASHTEAD PLANT HIRE CO LTD,300001269876221,15-06-2020,General Fund,Rechargable Construction - North,200400,167000,Private Contractors,800.00,Expense
Northumberland County Council,ASHTEAD PLANT HIRE CO LTD,300001269876227,15-06-2020,General Fund,Maintenance - North,200200,167000,Private Contractors,200.00,Expense
Northumberland County Council,ASHTEAD PLANT HIRE CO LTD,300001269876227,15-06-2020,General Fund,Maintenance - South East,200220,167000,Private Contractors,200.00,Expense
Northumberland County Council,ASHTEAD PLANT HIRE CO LTD,300001269876231,15-06-2020,,Fixed Asset Account,990120,500171,CIP - Infrastructure,607.50,Asset
Northumberland County Council,ASHTEAD PLANT HIRE CO LTD,300001269876231,15-06-2020,,Fixed Asset Account,990120,500171,CIP - Infrastructure,607.50,Asset
Northumberland County Council,ASHTEAD PLANT HIRE CO LTD,300001269876235,15-06-2020,,Fixed Asset Account,990120,500171,CIP - Infrastructure,607.50,Asset
Northumberland County Council,ASHTEAD PLANT HIRE CO LTD,300001269876238,15-06-2020,,Fixed Asset Account,990120,500171,CIP - Infrastructure,1215.00,Asset
Northumberland County Council,ASHTEAD PLANT HIRE CO LTD,300001269876248,15-06-2020,,Fixed Asset Account,990120,500171,CIP - Infrastructure,1432.50,Asset
Northumberland County Council,ASHTEAD PLANT HIRE CO LTD,300001269876258,16-06-2020,,Fixed Asset Account,990120,500171,CIP - Infrastructure,1215.00,Asset
Northumberland County Council,ASHTEAD PLANT HIRE CO LTD,300001269876268,16-06-2020,General Fund,Rechargable Construction - North,200400,167000,Private Contractors,3380.00,Expense
Northumberland County Council,ASHTEAD PLANT HIRE CO LTD,300001269876276,16-06-2020,,Fixed Asset Account,990120,500171,CIP - Infrastructure,1822.50,Asset
Northumberland County Council,ASHTEAD PLANT HIRE CO LTD,300001269876279,16-06-2020,General Fund,Countywide Gully Cleansing Operations,200280,167000,Private Contractors,600.00,Expense
Northumberland County Council,ASHTEAD PLANT HIRE CO LTD,300001269876279,16-06-2020,,Fixed Asset Account,990120,500171,CIP - Infrastructure,200.00,Asset
Northumberland County Council,ASHTEAD PLANT HIRE CO LTD,300001269876306,16-06-2020,General Fund,Maintenance - North,200200,167000,Private Contractors,2100.00,Expense
Northumberland County Council,ASHTEAD PLANT HIRE CO LTD,300001269876311,16-06-2020,General Fund,Maintenance - North,200200,167000,Private Contractors,2115.00,Expense
Northumberland County Council,ASHTEAD PLANT HIRE CO LTD,300001269876316,16-06-2020,General Fund,Maintenance - South East,200220,167000,Private Contractors,3305.00,Expense
Northumberland County Council,ASHTEAD PLANT HIRE CO LTD,300001269876323,16-06-2020,General Fund,Rechargable Construction - North,200400,167000,Private Contractors,800.00,Expense
Northumberland County Council,ASHTEAD PLANT HIRE CO LTD,300001269876326,16-06-2020,,Fixed Asset Account,990120,500171,CIP - Infrastructure,800.00,Asset
Northumberland County Council,ASHTEAD PLANT HIRE CO LTD,300001269876332,16-06-2020,General Fund,Rechargable Construction - North,200400,167000,Private Contractors,2800.00,Expense
Northumberland County Council,ASHTEAD PLANT HIRE CO LTD,300001269876337,16-06-2020,General Fund,Maintenance - North,200200,167000,Private Contractors,405.00,Expense
Northumberland County Council,ASHTEAD PLANT HIRE CO LTD,300001276725701,22-06-2020,General Fund,Maintenance - Central,200260,167000,Private Contractors,1940.00,Expense
Northumberland County Council,ASHTEAD PLANT HIRE CO LTD,300001276725730,22-06-2020,,Fixed Asset Account,990120,500171,CIP - Infrastructure,2025.00,Asset
Northumberland County Council,ASHTEAD PLANT HIRE CO LTD,300001276725743,22-06-2020,,Fixed Asset Account,990120,500171,CIP - Infrastructure,1660.50,Asset
Northumberland County Council,ASHTEAD PLANT HIRE CO LTD,300001279141949,22-06-2020,General Fund,Maintenance - Central,200260,167000,Private Contractors,3260.00,Expense
Northumberland County Council,ASHTEAD PLANT HIRE CO LTD,300001279141954,22-06-2020,General Fund,Maintenance - West,200240,0,Budget Load,695.50,Expense
Northumberland County Council,ASHTEAD PLANT HIRE CO LTD,300001279141958,22-06-2020,General Fund,Maintenance - West,200240,0,Budget Load,695.50,Expense
Northumberland County Council,ASHTEAD PLANT HIRE CO LTD,300001279141961,22-06-2020,General Fund,Maintenance - West,200240,0,Budget Load,695.50,Expense
Northumberland County Council,ASHTEAD PLANT HIRE CO LTD,300001279141975,22-06-2020,,Fixed Asset Account,990120,500171,CIP - Infrastructure,425.00,Asset
Northumberland County Council,ASHTEAD PLANT HIRE CO LTD,300001279141978,22-06-2020,General Fund,Maintenance - West,200240,0,Budget Load,470.00,Expense
Northumberland County Council,ASHTEAD PLANT HIRE CO LTD,300001279141981,22-06-2020,General Fund,Maintenance - West,200240,0,Budget Load,470.00,Expense
Northumberland County Council,ASHTEAD PLANT HIRE CO LTD,300001279141984,22-06-2020,General Fund,Maintenance - West,200240,0,Budget Load,470.00,Expense
Northumberland County Council,ASHTEAD PLANT HIRE CO LTD,300001279141987,22-06-2020,,Fixed Asset Account,990120,500171,CIP - Infrastructure,810.00,Asset
Northumberland County Council,ASHTEAD PLANT HIRE CO LTD,300001279141993,22-06-2020,General Fund,Maintenance - West,200240,167000,Private Contractors,1820.00,Expense
Northumberland County Council,ASHTEAD PLANT HIRE CO LTD,300001279141996,22-06-2020,General Fund,Maintenance - West,200240,167000,Private Contractors,1820.00,Expense
Northumberland County Council,ASHTEAD PLANT HIRE CO LTD,300001279501519,19-06-2020,General Fund,A69 NPLG,200550,167000,Private Contractors,5280.00,Expense
Northumberland County Council,ASHTEAD PLANT HIRE CO LTD,300001279501554,19-06-2020,General Fund,A69 NPLG,200550,167000,Private Contractors,1828.75,Expense
Northumberland County Council,ASHTEAD PLANT HIRE CO LTD,300001279501574,19-06-2020,General Fund,A69 NPLG,200550,167000,Private Contractors,600.00,Expense
Northumberland County Council,ASHTEAD PLANT HIRE CO LTD,300001279501590,19-06-2020,,Fixed Asset Account,990120,500171,CIP - Infrastructure,405.00,Asset
Northumberland County Council,ASHTEAD PLANT HIRE CO LTD,300001279501590,19-06-2020,,Fixed Asset Account,990120,500171,CIP - Infrastructure,405.00,Asset
Northumberland County Council,ASHTEAD PLANT HIRE CO LTD,300001279501591,19-06-2020,General Fund,A69 NPLG,200550,167000,Private Contractors,880.00,Expense
Northumberland County Council,ASHTEAD PLANT HIRE CO LTD,300001279501594,19-06-2020,General Fund,A69 NPLG,200550,167000,Private Contractors,3030.50,Expense
Northumberland County Council,ASHTEAD PLANT HIRE CO LTD,300001279501603,19-06-2020,,Fixed Asset Account,990120,500171,CIP - Infrastructure,2430.00,Asset
Northumberland County Council,ASHTEAD PLANT HIRE CO LTD,300001279501604,19-06-2020,General Fund,A69 NPLG,200550,167000,Private Contractors,1600.00,Expense
Northumberland County Council,ASHTEAD PLANT HIRE CO LTD,300001279501615,19-06-2020,General Fund,A69 NPLG,200550,167000,Private Contractors,1800.00,Expense
Northumberland County Council,ASHTEAD PLANT HIRE CO LTD,300001279501616,19-06-2020,,Fixed Asset Account,990120,500171,CIP - Infrastructure,1620.00,Asset
Northumberland County Council,ASHTEAD PLANT HIRE CO LTD,300001279501627,19-06-2020,General Fund,A69 NPLG,200550,167000,Private Contractors,1215.00,Expense
Northumberland County Council,ASHTEAD PLANT HIRE CO LTD,300001279501629,19-06-2020,,Fixed Asset Account,990120,500171,CIP - Infrastructure,425.00,Asset
Northumberland County Council,ASHTEAD PLANT HIRE CO LTD,300001279501640,19-06-2020,General Fund,A69 NPLG,200550,167000,Private Contractors,2392.50,Expense
Northumberland County Council,ASHTEAD PLANT HIRE CO LTD,300001279501647,19-06-2020,General Fund,A69 NPLG,200550,167000,Private Contractors,2025.00,Expense
Northumberland County Council,ASHTEAD PLANT HIRE CO LTD,300001279501653,19-06-2020,General Fund,A69 NPLG,200550,167000,Private Contractors,1620.00,Expense
Northumberland County Council,ASHTEAD PLANT HIRE CO LTD,300001279501654,19-06-2020,,Fixed Asset Account,990120,500171,CIP - Infrastructure,425.00,Asset
Northumberland County Council,ASHTEAD PLANT HIRE CO LTD,300001279501670,19-06-2020,General Fund,A69 NPLG,200550,167000,Private Contractors,405.00,Expense
Northumberland County Council,ASHTEAD PLANT HIRE CO LTD,300001279501672,19-06-2020,,Fixed Asset Account,990120,500171,CIP - Infrastructure,425.00,Asset
Northumberland County Council,ASHTEAD PLANT HIRE CO LTD,300001279501675,19-06-2020,General Fund,A69 NPLG,200550,167000,Private Contractors,1822.50,Expense
Northumberland County Council,ASHTEAD PLANT HIRE CO LTD,300001279501678,19-06-2020,,Fixed Asset Account,990120,500171,CIP - Infrastructure,425.00,Asset
Northumberland County Council,ASHTEAD PLANT HIRE CO LTD,300001279501685,19-06-2020,,Fixed Asset Account,990120,500171,CIP - Infrastructure,425.00,Asset
Northumberland County Council,ASHTEAD PLANT HIRE CO LTD,300001279501686,19-06-2020,General Fund,A69 NPLG,200550,167000,Private Contractors,730.00,Expense
Northumberland County Council,ASHTEAD PLANT HIRE CO LTD,300001279501691,19-06-2020,General Fund,A69 NPLG,200550,167000,Private Contractors,2673.00,Expense
Northumberland County Council,ASHTEAD PLANT HIRE CO LTD,300001279501692,19-06-2020,,Fixed Asset Account,990120,500171,CIP - Infrastructure,425.00,Asset
Northumberland County Council,ASHTEAD PLANT HIRE CO LTD,300001279501697,19-06-2020,,Fixed Asset Account,990120,500171,CIP - Infrastructure,425.00,Asset
Northumberland County Council,ASHTEAD PLANT HIRE CO LTD,300001279501704,19-06-2020,,Fixed Asset Account,990120,500171,CIP - Infrastructure,425.00,Asset
Northumberland County Council,ASHTEAD PLANT HIRE CO LTD,300001279501707,19-06-2020,,Fixed Asset Account,990120,500171,CIP - Infrastructure,425.00,Asset
Northumberland County Council,ASHTEAD PLANT HIRE CO LTD,300001279501710,19-06-2020,,Fixed Asset Account,990120,500171,CIP - Infrastructure,425.00,Asset
Northumberland County Council,ASHTEAD PLANT HIRE CO LTD,300001279501715,19-06-2020,,Fixed Asset Account,990120,500171,CIP - Infrastructure,425.00,Asset
Northumberland County Council,ASHTEAD PLANT HIRE CO LTD,300001279501718,19-06-2020,,Fixed Asset Account,990120,500171,CIP - Infrastructure,425.00,Asset
Northumberland County Council,ASHTEAD PLANT HIRE CO LTD,300001279501721,19-06-2020,,Fixed Asset Account,990120,500171,CIP - Infrastructure,425.00,Asset
Northumberland County Council,ASHTEAD PLANT HIRE CO LTD,300001279501724,19-06-2020,,Fixed Asset Account,990120,500171,CIP - Infrastructure,425.00,Asset
Northumberland County Council,ASHTEAD PLANT HIRE CO LTD,300001279501732,19-06-2020,,Fixed Asset Account,990120,500171,CIP - Infrastructure,425.00,Asset
Northumberland County Council,ASHTEAD PLANT HIRE CO LTD,300001279501735,19-06-2020,,Fixed Asset Account,990120,500171,CIP - Infrastructure,425.00,Asset
Northumberland County Council,ASHTEAD PLANT HIRE CO LTD,300001279501738,19-06-2020,,Fixed Asset Account,990120,500171,CIP - Infrastructure,800.00,Asset
Northumberland County Council,ASHTEAD PLANT HIRE CO LTD,300001279501742,19-06-2020,,Fixed Asset Account,990120,500171,CIP - Infrastructure,1235.25,Asset
Northumberland County Council,ASHTEAD PLANT HIRE CO LTD,300001279501751,19-06-2020,,Fixed Asset Account,990120,500171,CIP - Infrastructure,810.00,Asset
Northumberland County Council,ASHTEAD PLANT HIRE CO LTD,300001279501754,19-06-2020,,Fixed Asset Account,990120,500171,CIP - Infrastructure,405.00,Asset
Northumberland County Council,ASHTEAD PLANT HIRE CO LTD,300001279501754,19-06-2020,,Fixed Asset Account,990120,500171,CIP - Infrastructure,202.50,Asset
Northumberland County Council,ASHTEAD PLANT HIRE CO LTD,300001279501754,19-06-2020,,Fixed Asset Account,990120,500171,CIP - Infrastructure,405.00,Asset
Northumberland County Council,ASHTEAD PLANT HIRE CO LTD,300001279501760,19-06-2020,,Fixed Asset Account,990120,500171,CIP - Infrastructure,600.00,Asset
Northumberland County Council,ASHTEAD PLANT HIRE CO LTD,300001279501763,19-06-2020,General Fund,Maintenance - West,200240,167000,Private Contractors,400.00,Expense
Northumberland County Council,ASHTEAD PLANT HIRE CO LTD,300001279501956,22-06-2020,,Fixed Asset Account,990120,500171,CIP - Infrastructure,800.00,Asset
Northumberland County Council,ASHTEAD PLANT HIRE CO LTD,300001279501972,22-06-2020,General Fund,Maintenance - West,200240,167000,Private Contractors,400.00,Expense
Northumberland County Council,ASHTEAD PLANT HIRE CO LTD,300001279501980,22-06-2020,General Fund,Maintenance - West,200240,167000,Private Contractors,400.00,Expense
Northumberland County Council,ASHTEAD PLANT HIRE CO LTD,300001279774002,22-06-2020,General Fund,Maintenance - West,200240,0,Budget Load,491.00,Expense
Northumberland County Council,ASHTEAD PLANT HIRE CO LTD,300001279774039,22-06-2020,General Fund,Maintenance - Central,200260,167000,Private Contractors,3260.00,Expense
Northumberland County Council,ASHTEAD PLANT HIRE CO LTD,300001279774050,22-06-2020,General Fund,Maintenance - Central,200260,167000,Private Contractors,3020.00,Expense
Northumberland County Council,ASHTEAD PLANT HIRE CO LTD,300001289072130,23-06-2020,,Fixed Asset Account,990120,500171,CIP - Infrastructure,405.00,Asset
Northumberland County Council,ASHTEAD PLANT HIRE CO LTD,300001289072365,23-06-2020,General Fund,Maintenance - South East,200220,167000,Private Contractors,445.50,Expense
Northumberland County Council,ASHTEAD PLANT HIRE CO LTD,300001289072423,23-06-2020,General Fund,Maintenance - North,200200,167000,Private Contractors,445.00,Expense
Northumberland County Council,ASHTEAD PLANT HIRE CO LTD,300001289072517,24-06-2020,,Fixed Asset Account,990120,500171,CIP - Infrastructure,405.00,Asset
Northumberland County Council,ASHTEAD PLANT HIRE CO LTD,300001289072523,24-06-2020,General Fund,Maintenance - North,200200,167000,Private Contractors,445.50,Expense
Northumberland County Council,ASHTEAD PLANT HIRE CO LTD,300001289072526,24-06-2020,,Fixed Asset Account,990120,500171,CIP - Infrastructure,405.00,Asset
Northumberland County Council,ASHTEAD PLANT HIRE CO LTD,300001289072531,24-06-2020,General Fund,Maintenance - North,200200,167000,Private Contractors,485.50,Expense
Northumberland County Council,ASHTEAD PLANT HIRE CO LTD,300001289072534,24-06-2020,General Fund,Maintenance - North,200200,167000,Private Contractors,270.00,Expense
Northumberland County Council,ASHTEAD PLANT HIRE CO LTD,300001289072539,24-06-2020,General Fund,Rechargable Construction - North,200400,167000,Private Contractors,1025.75,Expense
Northumberland County Council,ASHTEAD PLANT HIRE CO LTD,300001289072544,24-06-2020,General Fund,Maintenance - North,200200,167000,Private Contractors,310.00,Expense
Northumberland County Council,ASHTEAD PLANT HIRE CO LTD,300001289072554,24-06-2020,,Fixed Asset Account,990120,500171,CIP - Infrastructure,1235.25,Asset
Northumberland County Council,ASHTEAD PLANT HIRE CO LTD,300001289072557,24-06-2020,,Fixed Asset Account,990120,500171,CIP - Infrastructure,810.00,Asset
Northumberland County Council,ASHTEAD PLANT HIRE CO LTD,300001289072562,24-06-2020,General Fund,Rechargable Construction - North,200400,167000,Private Contractors,2136.75,Expense
Northumberland County Council,ASHTEAD PLANT HIRE CO LTD,300001289072594,24-06-2020,,Fixed Asset Account,990120,500171,CIP - Infrastructure,1215.00,Asset
Northumberland County Council,ASHTEAD PLANT HIRE CO LTD,300001289072601,24-06-2020,,Fixed Asset Account,990120,500171,CIP - Infrastructure,1995.00,Asset
Northumberland County Council,ASHTEAD PLANT HIRE CO LTD,300001289072601,24-06-2020,,Fixed Asset Account,990120,500171,CIP - Infrastructure,1822.50,Asset
Northumberland County Council,ASHTEAD PLANT HIRE CO LTD,300001289072623,24-06-2020,General Fund,Maintenance - South East,200220,167000,Private Contractors,3091.00,Expense
Northumberland County Council,ASHTEAD PLANT HIRE CO LTD,300001289072634,24-06-2020,General Fund,Maintenance - North,200200,167000,Private Contractors,1295.00,Expense
Northumberland County Council,ASHTEAD PLANT HIRE CO LTD,300001289072637,24-06-2020,General Fund,Maintenance - North,200200,167000,Private Contractors,445.50,Expense
Northumberland County Council,ASHTEAD PLANT HIRE CO LTD,300001289072651,24-06-2020,,Fixed Asset Account,990120,500171,CIP - Infrastructure,405.00,Asset
Northumberland County Council,ASHTEAD PLANT HIRE CO LTD,300001296448790,29-06-2020,General Fund,Maintenance - West,200240,167000,Private Contractors,1200.00,Expense
Northumberland County Council,ASL HOLDINGS LIMITED,300001211712273,10-06-2020,,Commercial Team,125045,110003,Repair and Maintenance,388.50,Expense
Northumberland County Council,ASL HOLDINGS LIMITED,300001211712276,10-06-2020,,Commercial Team,125045,110003,Repair and Maintenance,1295.00,Expense
Northumberland County Council,ASL HOLDINGS LIMITED,300001306154054,30-06-2020,,Commercial Team,125045,110003,Repair and Maintenance,4768.00,Expense
Northumberland County Council,ASL TRAINING,300001231109560,02-06-2020,General Fund,Street Lighting Maintenance,200620,140000,Equipment,2700.00,Expense
Northumberland County Council,ASPEN EXECUTIVE CARS,300001238922527,03-06-2020,General Fund,Inclusion,17009,136000,Pupils - Travel,425.00,Expense
Northumberland County Council,ASPEN EXECUTIVE CARS,300001263045256,16-06-2020,General Fund,Inclusion,17009,136000,Pupils - Travel,850.00,Expense
Northumberland County Council,ASPIRE HEALTHCARE,3231590,04-06-2020,Total Cost Centre,Covid19 - Emergency Payments,306640,167008,Homecare,5600.00,Expense
Northumberland County Council,ASPIRE HEALTHCARE,3231591,04-06-2020,Total Cost Centre,Covid19 - Emergency Payments,306640,167008,Homecare,2652.00,Expense
Northumberland County Council,ASPIRE HEALTHCARE,3250602,08-06-2020,Total Cost Centre,Covid19 - Emergency Payments,306640,167008,Homecare,958.75,Expense
Northumberland County Council,ASPIRE HEALTHCARE,3250603,08-06-2020,Total Cost Centre,Covid19 - Emergency Payments,306640,167008,Homecare,915.75,Expense
Northumberland County Council,ASPIRE HEALTHCARE,3250604,08-06-2020,Total Cost Centre,Covid19 - Emergency Payments,306640,167008,Homecare,830.15,Expense
Northumberland County Council,ASPIRE HEALTHCARE,3250605,08-06-2020,Total Cost Centre,Covid19 - Emergency Payments,306640,167008,Homecare,1149.75,Expense
Northumberland County Council,ASPIRE HEALTHCARE,3250606,08-06-2020,Total Cost Centre,Covid19 - Emergency Payments,306640,167008,Homecare,2396.20,Expense
Northumberland County Council,ASPIRE HEALTHCARE,3250607,08-06-2020,Total Cost Centre,Covid19 - Emergency Payments,306640,167008,Homecare,1582.10,Expense
Northumberland County Council,ASPIRE HEALTHCARE,3250608,08-06-2020,Total Cost Centre,Covid19 - Emergency Payments,306640,167008,Homecare,1465.10,Expense
Northumberland County Council,ASPIRE HEALTHCARE,3250609,08-06-2020,Total Cost Centre,Covid19 - Emergency Payments,306640,167008,Homecare,666.05,Expense
Northumberland County Council,ASPIRE HEALTHCARE,3250611,08-06-2020,Total Cost Centre,Covid19 - Emergency Payments,306640,167008,Homecare,376.00,Expense
Northumberland County Council,ASPIRE HEALTHCARE,3250613,08-06-2020,Total Cost Centre,Covid19 - Emergency Payments,306640,167008,Homecare,473.55,Expense
Northumberland County Council,ASPIRE HEALTHCARE,3250614,08-06-2020,Total Cost Centre,Covid19 - Emergency Payments,306640,167008,Homecare,1000.00,Expense
Northumberland County Council,ASPIRE HEALTHCARE,3251598,08-06-2020,Total Cost Centre,Covid19 - Emergency Payments,306640,167008,Homecare,2209.20,Expense
Northumberland County Council,ASPIRE HEALTHCARE,3251599,08-06-2020,Total Cost Centre,Covid19 - Emergency Payments,306640,167008,Homecare,481.28,Expense
Northumberland County Council,ASPIRE HEALTHCARE,3251600,08-06-2020,Total Cost Centre,Covid19 - Emergency Payments,306640,167008,Homecare,938.88,Expense
Northumberland County Council,ASPIRE HEALTHCARE,3251601,08-06-2020,Total Cost Centre,Covid19 - Emergency Payments,306640,167008,Homecare,4648.88,Expense
Northumberland County Council,ASPIRE HEALTHCARE,3251602,08-06-2020,Total Cost Centre,Covid19 - Emergency Payments,306640,167008,Homecare,8859.76,Expense
Northumberland County Council,ASPIRE HEALTHCARE,3251603,08-06-2020,Total Cost Centre,Covid19 - Emergency Payments,306640,167008,Homecare,3729.92,Expense
Northumberland County Council,ASPIRE HEALTHCARE,3251604,08-06-2020,Total Cost Centre,Covid19 - Emergency Payments,306640,167008,Homecare,6438.64,Expense
Northumberland County Council,ASPIRE HEALTHCARE,3251605,08-06-2020,Total Cost Centre,Covid19 - Emergency Payments,306640,167008,Homecare,8868.74,Expense
Northumberland County Council,ASPIRE HEALTHCARE,3251606,08-06-2020,Total Cost Centre,Covid19 - Emergency Payments,306640,167008,Homecare,5128.32,Expense
Northumberland County Council,ASPIRE HEALTHCARE,3251607,08-06-2020,Total Cost Centre,Covid19 - Emergency Payments,306640,167008,Homecare,13418.72,Expense
Northumberland County Council,ASPIRE HEALTHCARE,3251608,08-06-2020,Total Cost Centre,Covid19 - Emergency Payments,306640,167008,Homecare,5368.96,Expense
Northumberland County Council,ASPLI SAFETY LIMITED,300001255497092,09-06-2020,Total Cost Centre,Blyth Coast,203260,119000,Grounds Maintenance,1539.52,Expense
Northumberland County Council,ASTLEY PRIVATE HIRE,300001235379106,09-06-2020,General Fund,Home to School Transport,204120,136000,Pupils - Travel,1020.00,Expense
Northumberland County Council,ATKINS LTD,300001211135398,05-06-2020,,Fixed Asset Account,990120,500171,CIP - Infrastructure,3842.11,Asset
Northumberland County Council,ATLAS CARE HOME LTD,3233590,05-06-2020,Adult Social Care & Commissioning,Older MH South - PSMB1,306411,167006,Care Homes with Nursing,2600.00,Expense
Northumberland County Council,ATLAS CARE HOME LTD,3233590,05-06-2020,Adult Social Care & Commissioning,Older MH South - PSMB1,306411,167006,Care Homes with Nursing,130.00,Expense
Northumberland County Council,ATOS IT SERVICES UK LIMITED,300001274990205,18-06-2020,,Infrastructure - Management,127300,145002,Computer hardware,49899.96,Expense
Northumberland County Council,AUTISM NORTH,3253589,09-06-2020,Adult Social Care & Commissioning,Older PDI South - PSLTC - Two,306410,167007,Residential Care,8154.80,Expense
Northumberland County Council,AUTISM NORTH,3253589,09-06-2020,Adult Social Care & Commissioning,Older PDI South - PSLTC - Two,306410,167007,Residential Care,407.74,Expense
Northumberland County Council,AUTISM NORTH,3253589,09-06-2020,Adult Social Care & Commissioning,CHC Packages,306420,167006,Care Homes with Nursing,7463.68,Expense
Northumberland County Council,AUTISM NORTH,3253589,09-06-2020,Adult Social Care & Commissioning,CHC Packages,306420,167006,Care Homes with Nursing,373.18,Expense
Northumberland County Council,AUTISM NORTH,3253589,09-06-2020,Adult Social Care & Commissioning,CHC Packages,306420,167007,Residential Care,5959.60,Expense
Northumberland County Council,AUTISM NORTH,3253589,09-06-2020,Adult Social Care & Commissioning,CHC Packages,306420,167007,Residential Care,297.98,Expense
Northumberland County Council,AUTISM NORTH,3253589,09-06-2020,,Personnel Allow Payments,990345,500190,Personal Allowances Dr,99.60,Expense
Northumberland County Council,AUTISM NORTH,3253589,09-06-2020,,Personnel Allow Payments,990345,500190,Personal Allowances Dr,4.98,Expense
Northumberland County Council,AUTISM NORTH,3253590,09-06-2020,Adult Social Care & Commissioning,Older PDI Central - PCLB1 - Two,306401,167007,Residential Care,7524.44,Expense
Northumberland County Council,AUTISM NORTH,3253590,09-06-2020,Adult Social Care & Commissioning,Older PDI Central - PCLB1 - Two,306401,167007,Residential Care,376.23,Expense
Northumberland County Council,AUTISM NORTH,3253590,09-06-2020,Adult Social Care & Commissioning,Older PDI South - PSLTC - Two,306410,167007,Residential Care,7712.60,Expense
Northumberland County Council,AUTISM NORTH,3253590,09-06-2020,Adult Social Care & Commissioning,Older PDI South - PSLTC - Two,306410,167007,Residential Care,385.63,Expense
Northumberland County Council,AUTISM NORTH,3253590,09-06-2020,,Personnel Allow Payments,990345,500190,Personal Allowances Dr,99.60,Expense
Northumberland County Council,AUTISM NORTH,3253590,09-06-2020,,Personnel Allow Payments,990345,500190,Personal Allowances Dr,4.98,Expense
Northumberland County Council,AUTISM NORTH,3253597,09-06-2020,Adult Social Care & Commissioning,Older PDI Central - PCLB1 - Two,306401,167007,Residential Care,5942.00,Expense
Northumberland County Council,AUTISM NORTH,3253597,09-06-2020,Adult Social Care & Commissioning,Older PDI Central - PCLB1 - Two,306401,167007,Residential Care,297.10,Expense
Northumberland County Council,AUTISM NORTH,3253597,09-06-2020,Adult Social Care & Commissioning,Older PDI South - PSLTC - Two,306410,167007,Residential Care,5942.00,Expense
Northumberland County Council,AUTISM NORTH,3253597,09-06-2020,Adult Social Care & Commissioning,Older PDI South - PSLTC - Two,306410,167007,Residential Care,297.10,Expense
Northumberland County Council,AUTISM NORTH,3253597,09-06-2020,Adult Social Care & Commissioning,CHC Packages,306420,167007,Residential Care,8576.24,Expense
Northumberland County Council,AUTISM NORTH,3253597,09-06-2020,Adult Social Care & Commissioning,CHC Packages,306420,167007,Residential Care,428.81,Expense
Northumberland County Council,AUTISM NORTH,3253598,09-06-2020,Adult Social Care & Commissioning,Older PDI South - PSLTC - Two,306410,167007,Residential Care,7259.12,Expense
Northumberland County Council,AUTISM NORTH,3253598,09-06-2020,Adult Social Care & Commissioning,Older PDI South - PSLTC - Two,306410,167007,Residential Care,362.96,Expense
Northumberland County Council,AUTISM NORTH,3253598,09-06-2020,Adult Social Care & Commissioning,CHC Packages,306420,167007,Residential Care,6820.12,Expense
Northumberland County Council,AUTISM NORTH,3253598,09-06-2020,Adult Social Care & Commissioning,CHC Packages,306420,167007,Residential Care,341.00,Expense
Northumberland County Council,AUTISM NORTH,3253599,09-06-2020,Adult Social Care & Commissioning,Older PDI Central - PCLB1 - Two,306401,167007,Residential Care,11297.96,Expense
Northumberland County Council,AUTISM NORTH,3253599,09-06-2020,Adult Social Care & Commissioning,Older PDI Central - PCLB1 - Two,306401,167007,Residential Care,564.90,Expense
Northumberland County Council,AUTISM NORTH,3253599,09-06-2020,Adult Social Care & Commissioning,Older Pdi North - PNLTA,306405,167007,Residential Care,5942.00,Expense
Northumberland County Council,AUTISM NORTH,3253599,09-06-2020,Adult Social Care & Commissioning,Older Pdi North - PNLTA,306405,167007,Residential Care,297.10,Expense
Northumberland County Council,AUTISM NORTH,3253599,09-06-2020,Adult Social Care & Commissioning,CHC Packages,306420,167007,Residential Care,7059.44,Expense
Northumberland County Council,AUTISM NORTH,3253599,09-06-2020,Adult Social Care & Commissioning,CHC Packages,306420,167007,Residential Care,352.97,Expense
Northumberland County Council,AUTISM NORTH,3253600,09-06-2020,Adult Social Care & Commissioning,CHC Packages,306420,167007,Residential Care,8549.36,Expense
Northumberland County Council,AUTISM NORTH,3253600,09-06-2020,Adult Social Care & Commissioning,CHC Packages,306420,167007,Residential Care,427.47,Expense
Northumberland County Council,AVERY CARE,3426590,24-06-2020,Adult Social Care & Commissioning,Older PDI South - PSLTC - Two,306410,167006,Care Homes with Nursing,2880.08,Expense
Northumberland County Council,AVERY CARE,3426590,24-06-2020,Adult Social Care & Commissioning,Older PDI South - PSLTC - Two,306410,167006,Care Homes with Nursing,144.00,Expense
Northumberland County Council,AZURE CHARITABLE ENTERPRISES,3424588,24-06-2020,Total Cost Centre,Covid19 - Emergency Payments,306640,167008,Homecare,15325.76,Expense
Northumberland County Council,AZURE CHARITABLE ENTERPRISES,3424594,24-06-2020,Total Cost Centre,Covid19 - Emergency Payments,306640,167008,Homecare,44520.30,Expense
Northumberland County Council,AZURE CHARITABLE ENTERPRISES,3424603,24-06-2020,Total Cost Centre,Covid19 - Emergency Payments,306640,167008,Homecare,21740.32,Expense
Northumberland County Council,AZURE CHARITABLE ENTERPRISES,3433609,25-06-2020,Total Cost Centre,Covid19 - Emergency Payments,306640,167008,Homecare,40705.64,Expense
Northumberland County Council,BALHOUSIE CARE GROUP,3426596,24-06-2020,Adult Social Care & Commissioning,Older Pdi North - PNLTA,306405,167007,Residential Care,2543.16,Expense
Northumberland County Council,BALHOUSIE CARE GROUP,3426596,24-06-2020,Adult Social Care & Commissioning,Older Pdi North - PNLTA,306405,167007,Residential Care,127.16,Expense
Northumberland County Council,BANNER GROUP LTD,300000980420252,05-06-2020,,Infrastructure - Management,127300,145002,Computer hardware,633.80,Expense
Northumberland County Council,BANNER GROUP LTD,300001243711900,08-06-2020,General Fund,Alnwick,306600,143000,Printing & Stationery,7.80,Expense
Northumberland County Council,BANNER GROUP LTD,300001243711900,08-06-2020,General Fund,Alnwick,306600,143000,Printing & Stationery,3.59,Expense
Northumberland County Council,BANNER GROUP LTD,300001243711900,08-06-2020,General Fund,Alnwick,306600,143000,Printing & Stationery,10.56,Expense
Northumberland County Council,BANNER GROUP LTD,300001243711900,08-06-2020,General Fund,Alnwick,306600,143000,Printing & Stationery,10.20,Expense
Northumberland County Council,BANNER GROUP LTD,300001243711900,08-06-2020,General Fund,Alnwick,306600,143000,Printing & Stationery,8.35,Expense
Northumberland County Council,BANNER GROUP LTD,300001243711900,08-06-2020,General Fund,Alnwick,306600,143000,Printing & Stationery,226.05,Expense
Northumberland County Council,BANNER GROUP LTD,300001255497008,18-06-2020,Finance,Fire Support Services,30200,143000,Printing & Stationery,301.00,Expense
Northumberland County Council,BANNER GROUP LTD,300001260625925,17-06-2020,General Fund,Blyth,306604,143000,Printing & Stationery,5.70,Expense
Northumberland County Council,BANNER GROUP LTD,300001260625925,17-06-2020,General Fund,Blyth,306604,143000,Printing & Stationery,301.40,Expense
Northumberland County Council,BANNER GROUP LTD,300001260625925,17-06-2020,General Fund,Blyth,306604,145002,Computer hardware,20.77,Expense
Northumberland County Council,BANNER GROUP LTD,300001271759006,18-06-2020,General Fund,Foundry House Admin,306618,143000,Printing & Stationery,301.00,Expense
Northumberland County Council,BARCHESTER HEALTHCARE HOMES LTD,3198601,01-06-2020,Adult Social Care & Commissioning,Older PDI Central - PCLB1 - Two,306401,167007,Residential Care,1142.94,Expense
Northumberland County Council,BARCHESTER HEALTHCARE HOMES LTD,3198601,01-06-2020,Adult Social Care & Commissioning,Older PDI Central - PCLB1 - Two,306401,167007,Residential Care,57.15,Expense
Northumberland County Council,BARCHESTER HEALTHCARE HOMES LTD,3198605,01-06-2020,Adult Social Care & Commissioning,CHC Packages,306420,167006,Care Homes with Nursing,1579.35,Expense
Northumberland County Council,BARCHESTER HEALTHCARE HOMES LTD,3198605,01-06-2020,Adult Social Care & Commissioning,CHC Packages,306420,167006,Care Homes with Nursing,78.97,Expense
Northumberland County Council,BARCHESTER HEALTHCARE HOMES LTD,3198606,01-06-2020,Adult Social Care & Commissioning,Older MH Central - PCMM1- Two,306404,167007,Residential Care,1231.74,Expense
Northumberland County Council,BARCHESTER HEALTHCARE HOMES LTD,3198606,01-06-2020,Adult Social Care & Commissioning,Older MH Central - PCMM1- Two,306404,167007,Residential Care,61.59,Expense
Northumberland County Council,BARCHESTER HEALTHCARE HOMES LTD,3198607,01-06-2020,Adult Social Care & Commissioning,Older MH Central - PCMM1- Two,306404,167007,Residential Care,615.87,Expense
Northumberland County Council,BARCHESTER HEALTHCARE HOMES LTD,3198607,01-06-2020,Adult Social Care & Commissioning,Older MH Central - PCMM1- Two,306404,167007,Residential Care,30.79,Expense
Northumberland County Council,BARCHESTER HEALTHCARE HOMES LTD,3198608,01-06-2020,Adult Social Care & Commissioning,Older MH Central - PCMM1- Two,306404,167007,Residential Care,615.87,Expense
Northumberland County Council,BARCHESTER HEALTHCARE HOMES LTD,3198608,01-06-2020,Adult Social Care & Commissioning,Older MH Central - PCMM1- Two,306404,167007,Residential Care,30.79,Expense
Northumberland County Council,BARCHESTER HEALTHCARE HOMES LTD,3198610,01-06-2020,Adult Social Care & Commissioning,CHC Packages,306420,167007,Residential Care,1231.74,Expense
Northumberland County Council,BARCHESTER HEALTHCARE HOMES LTD,3198610,01-06-2020,Adult Social Care & Commissioning,CHC Packages,306420,167007,Residential Care,61.59,Expense
Northumberland County Council,BARCHESTER HEALTHCARE HOMES LTD,3198611,01-06-2020,Adult Social Care & Commissioning,Older MH Central - PCMM1- Two,306404,167007,Residential Care,1142.94,Expense
Northumberland County Council,BARCHESTER HEALTHCARE HOMES LTD,3198611,01-06-2020,Adult Social Care & Commissioning,Older MH Central - PCMM1- Two,306404,167007,Residential Care,57.15,Expense
Northumberland County Council,BARCHESTER HEALTHCARE HOMES LTD,3208615,01-06-2020,Adult Social Care & Commissioning,Older MH North - PNMB1 - Two,306408,167006,Care Homes with Nursing,1965.20,Expense
Northumberland County Council,BARCHESTER HEALTHCARE HOMES LTD,3208615,01-06-2020,Adult Social Care & Commissioning,Older MH North - PNMB1 - Two,306408,167006,Care Homes with Nursing,98.26,Expense
Northumberland County Council,BARCHESTER HEALTHCARE HOMES LTD,3217618,03-06-2020,Adult Social Care & Commissioning,Older PDI South - PSLTC - Two,306410,167007,Residential Care,2463.48,Expense
Northumberland County Council,BARCHESTER HEALTHCARE HOMES LTD,3217618,03-06-2020,Adult Social Care & Commissioning,Older PDI South - PSLTC - Two,306410,167007,Residential Care,123.17,Expense
Northumberland County Council,BARCHESTER HEALTHCARE HOMES LTD,3217619,03-06-2020,Adult Social Care & Commissioning,Older MH Central - PCMM1- Two,306404,167007,Residential Care,2463.48,Expense
Northumberland County Council,BARCHESTER HEALTHCARE HOMES LTD,3217619,03-06-2020,Adult Social Care & Commissioning,Older MH Central - PCMM1- Two,306404,167007,Residential Care,123.17,Expense
Northumberland County Council,BARCHESTER HEALTHCARE HOMES LTD,3217620,03-06-2020,Adult Social Care & Commissioning,CHC Packages,306420,167007,Residential Care,2463.48,Expense
Northumberland County Council,BARCHESTER HEALTHCARE HOMES LTD,3217620,03-06-2020,Adult Social Care & Commissioning,CHC Packages,306420,167007,Residential Care,123.17,Expense
Northumberland County Council,BARCHESTER HEALTHCARE HOMES LTD,3217621,03-06-2020,Adult Social Care & Commissioning,Older PDI Central - PCLB1 - Two,306401,167007,Residential Care,2285.88,Expense
Northumberland County Council,BARCHESTER HEALTHCARE HOMES LTD,3217621,03-06-2020,Adult Social Care & Commissioning,Older PDI Central - PCLB1 - Two,306401,167007,Residential Care,114.29,Expense
Northumberland County Council,BARCHESTER HEALTHCARE HOMES LTD,3217622,03-06-2020,Adult Social Care & Commissioning,Older MH South - PSMB1,306411,167007,Residential Care,2463.48,Expense
Northumberland County Council,BARCHESTER HEALTHCARE HOMES LTD,3217622,03-06-2020,Adult Social Care & Commissioning,Older MH South - PSMB1,306411,167007,Residential Care,123.17,Expense
Northumberland County Council,BARCHESTER HEALTHCARE HOMES LTD,3217623,03-06-2020,Adult Social Care & Commissioning,Older MH Central - PCMM1- Two,306404,167007,Residential Care,2463.48,Expense
Northumberland County Council,BARCHESTER HEALTHCARE HOMES LTD,3217623,03-06-2020,Adult Social Care & Commissioning,Older MH Central - PCMM1- Two,306404,167007,Residential Care,123.17,Expense
Northumberland County Council,BARCHESTER HEALTHCARE HOMES LTD,3217624,03-06-2020,Adult Social Care & Commissioning,Older MH Central - PCMM1- Two,306404,167007,Residential Care,2463.48,Expense
Northumberland County Council,BARCHESTER HEALTHCARE HOMES LTD,3217624,03-06-2020,Adult Social Care & Commissioning,Older MH Central - PCMM1- Two,306404,167007,Residential Care,123.17,Expense
Northumberland County Council,BARCHESTER HEALTHCARE HOMES LTD,3217625,03-06-2020,Adult Social Care & Commissioning,Older MH South - PSMB1,306411,167007,Residential Care,2463.48,Expense
Northumberland County Council,BARCHESTER HEALTHCARE HOMES LTD,3217625,03-06-2020,Adult Social Care & Commissioning,Older MH South - PSMB1,306411,167007,Residential Care,123.17,Expense
Northumberland County Council,BARCHESTER HEALTHCARE HOMES LTD,3217626,03-06-2020,Adult Social Care & Commissioning,Older MH Central - PCMM1- Two,306404,167007,Residential Care,2463.48,Expense
Northumberland County Council,BARCHESTER HEALTHCARE HOMES LTD,3217626,03-06-2020,Adult Social Care & Commissioning,Older MH Central - PCMM1- Two,306404,167007,Residential Care,123.17,Expense
Northumberland County Council,BARCHESTER HEALTHCARE HOMES LTD,3217627,03-06-2020,Adult Social Care & Commissioning,Older MH Central - PCMM1- Two,306404,167007,Residential Care,2463.48,Expense
Northumberland County Council,BARCHESTER HEALTHCARE HOMES LTD,3217627,03-06-2020,Adult Social Care & Commissioning,Older MH Central - PCMM1- Two,306404,167007,Residential Care,123.17,Expense
Northumberland County Council,BARCHESTER HEALTHCARE HOMES LTD,3217628,03-06-2020,Adult Social Care & Commissioning,Older PDI Central - PCLB1 - Two,306401,167007,Residential Care,2463.48,Expense
Northumberland County Council,BARCHESTER HEALTHCARE HOMES LTD,3217628,03-06-2020,Adult Social Care & Commissioning,Older PDI Central - PCLB1 - Two,306401,167007,Residential Care,123.17,Expense
Northumberland County Council,BARCHESTER HEALTHCARE HOMES LTD,3217629,03-06-2020,Adult Social Care & Commissioning,Older PDI Central - PCLB1 - Two,306401,167007,Residential Care,1387.86,Expense
Northumberland County Council,BARCHESTER HEALTHCARE HOMES LTD,3217629,03-06-2020,Adult Social Care & Commissioning,Older PDI Central - PCLB1 - Two,306401,167007,Residential Care,69.39,Expense
Northumberland County Council,BARCHESTER HEALTHCARE HOMES LTD,3217630,03-06-2020,Adult Social Care & Commissioning,Older MH Central - PCMM1- Two,306404,167007,Residential Care,2463.48,Expense
Northumberland County Council,BARCHESTER HEALTHCARE HOMES LTD,3217630,03-06-2020,Adult Social Care & Commissioning,Older MH Central - PCMM1- Two,306404,167007,Residential Care,123.17,Expense
Northumberland County Council,BARCHESTER HEALTHCARE HOMES LTD,3217631,03-06-2020,Adult Social Care & Commissioning,Older MH Central - PCMM1- Two,306404,167007,Residential Care,2285.88,Expense
Northumberland County Council,BARCHESTER HEALTHCARE HOMES LTD,3217631,03-06-2020,Adult Social Care & Commissioning,Older MH Central - PCMM1- Two,306404,167007,Residential Care,114.29,Expense
Northumberland County Council,BARCHESTER HEALTHCARE HOMES LTD,3217632,03-06-2020,Adult Social Care & Commissioning,Older MH Central - PCMM1- Two,306404,167007,Residential Care,2285.88,Expense
Northumberland County Council,BARCHESTER HEALTHCARE HOMES LTD,3217632,03-06-2020,Adult Social Care & Commissioning,Older MH Central - PCMM1- Two,306404,167007,Residential Care,114.29,Expense
Northumberland County Council,BARCHESTER HEALTHCARE HOMES LTD,3217633,03-06-2020,Adult Social Care & Commissioning,Older PDI Central - PCLB1 - Two,306401,167007,Residential Care,2463.48,Expense
Northumberland County Council,BARCHESTER HEALTHCARE HOMES LTD,3217633,03-06-2020,Adult Social Care & Commissioning,Older PDI Central - PCLB1 - Two,306401,167007,Residential Care,123.17,Expense
Northumberland County Council,BARCHESTER HEALTHCARE HOMES LTD,3217634,03-06-2020,Adult Social Care & Commissioning,Older MH Central - PCMM1- Two,306404,167007,Residential Care,2463.48,Expense
Northumberland County Council,BARCHESTER HEALTHCARE HOMES LTD,3217634,03-06-2020,Adult Social Care & Commissioning,Older MH Central - PCMM1- Two,306404,167007,Residential Care,123.17,Expense
Northumberland County Council,BARCHESTER HEALTHCARE HOMES LTD,3217635,03-06-2020,Adult Social Care & Commissioning,Older PDI Central - PCLB1 - Two,306401,167007,Residential Care,2285.88,Expense
Northumberland County Council,BARCHESTER HEALTHCARE HOMES LTD,3217635,03-06-2020,Adult Social Care & Commissioning,Older PDI Central - PCLB1 - Two,306401,167007,Residential Care,114.29,Expense
Northumberland County Council,BARCHESTER HEALTHCARE HOMES LTD,3217636,03-06-2020,Adult Social Care & Commissioning,Older MH Central - PCMM1- Two,306404,167007,Residential Care,2463.48,Expense
Northumberland County Council,BARCHESTER HEALTHCARE HOMES LTD,3217636,03-06-2020,Adult Social Care & Commissioning,Older MH Central - PCMM1- Two,306404,167007,Residential Care,123.17,Expense
Northumberland County Council,BARCHESTER HEALTHCARE HOMES LTD,3217637,03-06-2020,Adult Social Care & Commissioning,Older MH Central - PCMM1- Two,306404,167007,Residential Care,2285.88,Expense
Northumberland County Council,BARCHESTER HEALTHCARE HOMES LTD,3217637,03-06-2020,Adult Social Care & Commissioning,Older MH Central - PCMM1- Two,306404,167007,Residential Care,114.29,Expense
Northumberland County Council,BARCHESTER HEALTHCARE HOMES LTD,3217638,03-06-2020,Adult Social Care & Commissioning,Older PDI South - PSLTC - Two,306410,167007,Residential Care,2463.48,Expense
Northumberland County Council,BARCHESTER HEALTHCARE HOMES LTD,3217638,03-06-2020,Adult Social Care & Commissioning,Older PDI South - PSLTC - Two,306410,167007,Residential Care,123.17,Expense
Northumberland County Council,BARCHESTER HEALTHCARE HOMES LTD,3217639,03-06-2020,Adult Social Care & Commissioning,Older MH Central - PCMM1- Two,306404,167007,Residential Care,2463.48,Expense
Northumberland County Council,BARCHESTER HEALTHCARE HOMES LTD,3217639,03-06-2020,Adult Social Care & Commissioning,Older MH Central - PCMM1- Two,306404,167007,Residential Care,123.17,Expense
Northumberland County Council,BARCHESTER HEALTHCARE HOMES LTD,3217640,03-06-2020,Adult Social Care & Commissioning,Older MH Central - PCMM1- Two,306404,167007,Residential Care,2463.48,Expense
Northumberland County Council,BARCHESTER HEALTHCARE HOMES LTD,3217640,03-06-2020,Adult Social Care & Commissioning,Older MH Central - PCMM1- Two,306404,167007,Residential Care,123.17,Expense
Northumberland County Council,BARCHESTER HEALTHCARE HOMES LTD,3217641,03-06-2020,Adult Social Care & Commissioning,Older MH Central - PCMM1- Two,306404,167007,Residential Care,2463.48,Expense
Northumberland County Council,BARCHESTER HEALTHCARE HOMES LTD,3217641,03-06-2020,Adult Social Care & Commissioning,Older MH Central - PCMM1- Two,306404,167007,Residential Care,123.17,Expense
Northumberland County Council,BARCHESTER HEALTHCARE HOMES LTD,3217642,03-06-2020,Adult Social Care & Commissioning,Older PDI South - PSLTC - Two,306410,167007,Residential Care,2463.48,Expense
Northumberland County Council,BARCHESTER HEALTHCARE HOMES LTD,3217642,03-06-2020,Adult Social Care & Commissioning,Older PDI South - PSLTC - Two,306410,167007,Residential Care,123.17,Expense
Northumberland County Council,BARCHESTER HEALTHCARE HOMES LTD,3217643,03-06-2020,Adult Social Care & Commissioning,CHC Packages,306420,167007,Residential Care,2285.88,Expense
Northumberland County Council,BARCHESTER HEALTHCARE HOMES LTD,3217643,03-06-2020,Adult Social Care & Commissioning,CHC Packages,306420,167007,Residential Care,114.29,Expense
Northumberland County Council,BARCHESTER HEALTHCARE HOMES LTD,3217644,03-06-2020,Adult Social Care & Commissioning,Older MH Central - PCMM1- Two,306404,167007,Residential Care,2463.48,Expense
Northumberland County Council,BARCHESTER HEALTHCARE HOMES LTD,3217644,03-06-2020,Adult Social Care & Commissioning,Older MH Central - PCMM1- Two,306404,167007,Residential Care,123.17,Expense
Northumberland County Council,BARCHESTER HEALTHCARE HOMES LTD,3217645,03-06-2020,Adult Social Care & Commissioning,Older PDI Central - PCLB1 - Two,306401,167007,Residential Care,2463.48,Expense
Northumberland County Council,BARCHESTER HEALTHCARE HOMES LTD,3217645,03-06-2020,Adult Social Care & Commissioning,Older PDI Central - PCLB1 - Two,306401,167007,Residential Care,123.17,Expense
Northumberland County Council,BARCHESTER HEALTHCARE HOMES LTD,3217646,03-06-2020,Adult Social Care & Commissioning,Older MH Central - PCMM1- Two,306404,167007,Residential Care,2285.88,Expense
Northumberland County Council,BARCHESTER HEALTHCARE HOMES LTD,3217646,03-06-2020,Adult Social Care & Commissioning,Older MH Central - PCMM1- Two,306404,167007,Residential Care,114.29,Expense
Northumberland County Council,BARCHESTER HEALTHCARE HOMES LTD,3217647,03-06-2020,Adult Social Care & Commissioning,Older MH Central - PCMM1- Two,306404,167007,Residential Care,2285.88,Expense
Northumberland County Council,BARCHESTER HEALTHCARE HOMES LTD,3217647,03-06-2020,Adult Social Care & Commissioning,Older MH Central - PCMM1- Two,306404,167007,Residential Care,114.29,Expense
Northumberland County Council,BARCHESTER HEALTHCARE HOMES LTD,3217648,03-06-2020,Adult Social Care & Commissioning,Older MH Central - PCMM1- Two,306404,167007,Residential Care,2463.48,Expense
Northumberland County Council,BARCHESTER HEALTHCARE HOMES LTD,3217648,03-06-2020,Adult Social Care & Commissioning,Older MH Central - PCMM1- Two,306404,167007,Residential Care,123.17,Expense
Northumberland County Council,BARCHESTER HEALTHCARE HOMES LTD,3217649,03-06-2020,Adult Social Care & Commissioning,Older MH Central - PCMM1- Two,306404,167007,Residential Care,2463.48,Expense
Northumberland County Council,BARCHESTER HEALTHCARE HOMES LTD,3217649,03-06-2020,Adult Social Care & Commissioning,Older MH Central - PCMM1- Two,306404,167007,Residential Care,123.17,Expense
Northumberland County Council,BARCHESTER HEALTHCARE HOMES LTD,3217650,03-06-2020,Adult Social Care & Commissioning,Older MH Central - PCMM1- Two,306404,167007,Residential Care,2463.48,Expense
Northumberland County Council,BARCHESTER HEALTHCARE HOMES LTD,3217650,03-06-2020,Adult Social Care & Commissioning,Older MH Central - PCMM1- Two,306404,167007,Residential Care,123.17,Expense
Northumberland County Council,BARCHESTER HEALTHCARE HOMES LTD,3217651,03-06-2020,Adult Social Care & Commissioning,Older MH Central - PCMM1- Two,306404,167007,Residential Care,2285.88,Expense
Northumberland County Council,BARCHESTER HEALTHCARE HOMES LTD,3217651,03-06-2020,Adult Social Care & Commissioning,Older MH Central - PCMM1- Two,306404,167007,Residential Care,114.29,Expense
Northumberland County Council,BARCHESTER HEALTHCARE HOMES LTD,3217652,03-06-2020,Adult Social Care & Commissioning,Older MH Central - PCMM1- Two,306404,167007,Residential Care,2463.48,Expense
Northumberland County Council,BARCHESTER HEALTHCARE HOMES LTD,3217652,03-06-2020,Adult Social Care & Commissioning,Older MH Central - PCMM1- Two,306404,167007,Residential Care,123.17,Expense
Northumberland County Council,BARCHESTER HEALTHCARE HOMES LTD,3217653,03-06-2020,Adult Social Care & Commissioning,Older PDI Central - PCLB1 - Two,306401,167007,Residential Care,2285.88,Expense
Northumberland County Council,BARCHESTER HEALTHCARE HOMES LTD,3217653,03-06-2020,Adult Social Care & Commissioning,Older PDI Central - PCLB1 - Two,306401,167007,Residential Care,114.29,Expense
Northumberland County Council,BARCHESTER HEALTHCARE HOMES LTD,3217654,03-06-2020,Adult Social Care & Commissioning,Older MH Central - PCMM1- Two,306404,167007,Residential Care,2285.88,Expense
Northumberland County Council,BARCHESTER HEALTHCARE HOMES LTD,3217654,03-06-2020,Adult Social Care & Commissioning,Older MH Central - PCMM1- Two,306404,167007,Residential Care,114.29,Expense
Northumberland County Council,BARCHESTER HEALTHCARE HOMES LTD,3217655,03-06-2020,Adult Social Care & Commissioning,Older MH Central - PCMM1- Two,306404,167007,Residential Care,2285.88,Expense
Northumberland County Council,BARCHESTER HEALTHCARE HOMES LTD,3217655,03-06-2020,Adult Social Care & Commissioning,Older MH Central - PCMM1- Two,306404,167007,Residential Care,114.29,Expense
Northumberland County Council,BARCHESTER HEALTHCARE HOMES LTD,3217656,03-06-2020,Adult Social Care & Commissioning,Older MH Central - PCMM1- Two,306404,167007,Residential Care,2463.48,Expense
Northumberland County Council,BARCHESTER HEALTHCARE HOMES LTD,3217656,03-06-2020,Adult Social Care & Commissioning,Older MH Central - PCMM1- Two,306404,167007,Residential Care,123.17,Expense
Northumberland County Council,BARCHESTER HEALTHCARE HOMES LTD,3217657,03-06-2020,Adult Social Care & Commissioning,Older PDI Central - PCLB1 - Two,306401,167007,Residential Care,2285.88,Expense
Northumberland County Council,BARCHESTER HEALTHCARE HOMES LTD,3217657,03-06-2020,Adult Social Care & Commissioning,Older PDI Central - PCLB1 - Two,306401,167007,Residential Care,114.29,Expense
Northumberland County Council,BARCHESTER HEALTHCARE HOMES LTD,3217658,03-06-2020,Adult Social Care & Commissioning,Older MH Central - PCMM1- Two,306404,167007,Residential Care,2463.48,Expense
Northumberland County Council,BARCHESTER HEALTHCARE HOMES LTD,3217658,03-06-2020,Adult Social Care & Commissioning,Older MH Central - PCMM1- Two,306404,167007,Residential Care,123.17,Expense
Northumberland County Council,BARCHESTER HEALTHCARE HOMES LTD,3217659,03-06-2020,Adult Social Care & Commissioning,CHC Packages,306420,167007,Residential Care,2285.88,Expense
Northumberland County Council,BARCHESTER HEALTHCARE HOMES LTD,3217659,03-06-2020,Adult Social Care & Commissioning,CHC Packages,306420,167007,Residential Care,114.29,Expense
Northumberland County Council,BARCHESTER HEALTHCARE HOMES LTD,3217660,03-06-2020,Adult Social Care & Commissioning,Older PDI Central - PCLB1 - Two,306401,167007,Residential Care,2285.88,Expense
Northumberland County Council,BARCHESTER HEALTHCARE HOMES LTD,3217660,03-06-2020,Adult Social Care & Commissioning,Older PDI Central - PCLB1 - Two,306401,167007,Residential Care,114.29,Expense
Northumberland County Council,BARCHESTER HEALTHCARE HOMES LTD,3217661,03-06-2020,Adult Social Care & Commissioning,Older PDI South - PSLTC - Two,306410,167007,Residential Care,2463.48,Expense
Northumberland County Council,BARCHESTER HEALTHCARE HOMES LTD,3217661,03-06-2020,Adult Social Care & Commissioning,Older PDI South - PSLTC - Two,306410,167007,Residential Care,123.17,Expense
Northumberland County Council,BARCHESTER HEALTHCARE HOMES LTD,3217662,03-06-2020,Adult Social Care & Commissioning,Older MH Central - PCMM1- Two,306404,167007,Residential Care,2463.48,Expense
Northumberland County Council,BARCHESTER HEALTHCARE HOMES LTD,3217662,03-06-2020,Adult Social Care & Commissioning,Older MH Central - PCMM1- Two,306404,167007,Residential Care,123.17,Expense
Northumberland County Council,BARCHESTER HEALTHCARE HOMES LTD,3217663,03-06-2020,Adult Social Care & Commissioning,Older MH Central - PCMM1- Two,306404,167007,Residential Care,2285.88,Expense
Northumberland County Council,BARCHESTER HEALTHCARE HOMES LTD,3217663,03-06-2020,Adult Social Care & Commissioning,Older MH Central - PCMM1- Two,306404,167007,Residential Care,114.29,Expense
Northumberland County Council,BARCHESTER HEALTHCARE HOMES LTD,3217664,03-06-2020,Adult Social Care & Commissioning,Older MH Central - PCMM1- Two,306404,167007,Residential Care,2285.88,Expense
Northumberland County Council,BARCHESTER HEALTHCARE HOMES LTD,3217664,03-06-2020,Adult Social Care & Commissioning,Older MH Central - PCMM1- Two,306404,167007,Residential Care,114.29,Expense
Northumberland County Council,BARCHESTER HEALTHCARE HOMES LTD,3217665,03-06-2020,Adult Social Care & Commissioning,Older MH Central - PCMM1- Two,306404,167007,Residential Care,2463.48,Expense
Northumberland County Council,BARCHESTER HEALTHCARE HOMES LTD,3217665,03-06-2020,Adult Social Care & Commissioning,Older MH Central - PCMM1- Two,306404,167007,Residential Care,123.17,Expense
Northumberland County Council,BARCHESTER HEALTHCARE HOMES LTD,3217666,03-06-2020,Adult Social Care & Commissioning,Older MH South - PSMB1,306411,167007,Residential Care,2463.48,Expense
Northumberland County Council,BARCHESTER HEALTHCARE HOMES LTD,3217666,03-06-2020,Adult Social Care & Commissioning,Older MH South - PSMB1,306411,167007,Residential Care,123.17,Expense
Northumberland County Council,BARCHESTER HEALTHCARE HOMES LTD,3217667,03-06-2020,Adult Social Care & Commissioning,Older MH South - PSMB1,306411,167007,Residential Care,2463.48,Expense
Northumberland County Council,BARCHESTER HEALTHCARE HOMES LTD,3217667,03-06-2020,Adult Social Care & Commissioning,Older MH South - PSMB1,306411,167007,Residential Care,123.17,Expense
Northumberland County Council,BARCHESTER HEALTHCARE HOMES LTD,3217668,03-06-2020,Adult Social Care & Commissioning,Older MH Central - PCMM1- Two,306404,167007,Residential Care,2463.48,Expense
Northumberland County Council,BARCHESTER HEALTHCARE HOMES LTD,3217668,03-06-2020,Adult Social Care & Commissioning,Older MH Central - PCMM1- Two,306404,167007,Residential Care,123.17,Expense
Northumberland County Council,BARCHESTER HEALTHCARE HOMES LTD,3217669,03-06-2020,Adult Social Care & Commissioning,Older MH Central - PCMM1- Two,306404,167007,Residential Care,2463.48,Expense
Northumberland County Council,BARCHESTER HEALTHCARE HOMES LTD,3217669,03-06-2020,Adult Social Care & Commissioning,Older MH Central - PCMM1- Two,306404,167007,Residential Care,123.17,Expense
Northumberland County Council,BARCHESTER HEALTHCARE HOMES LTD,3217670,03-06-2020,Adult Social Care & Commissioning,Older MH Central - PCMM1- Two,306404,167007,Residential Care,2463.48,Expense
Northumberland County Council,BARCHESTER HEALTHCARE HOMES LTD,3217670,03-06-2020,Adult Social Care & Commissioning,Older MH Central - PCMM1- Two,306404,167007,Residential Care,123.17,Expense
Northumberland County Council,BARCHESTER HEALTHCARE HOMES LTD,3217671,03-06-2020,Adult Social Care & Commissioning,Older MH Central - PCMM1- Two,306404,167007,Residential Care,-879.81,Expense
Northumberland County Council,BARCHESTER HEALTHCARE HOMES LTD,3217671,03-06-2020,Adult Social Care & Commissioning,Older MH Central - PCMM1- Two,306404,167007,Residential Care,-43.99,Expense
Northumberland County Council,BARCHESTER HEALTHCARE HOMES LTD,3217672,03-06-2020,Adult Social Care & Commissioning,CHC Packages,306420,167007,Residential Care,571.47,Expense
Northumberland County Council,BARCHESTER HEALTHCARE HOMES LTD,3217672,03-06-2020,Adult Social Care & Commissioning,CHC Packages,306420,167007,Residential Care,28.57,Expense
Northumberland County Council,BARCHESTER HEALTHCARE HOMES LTD,3220699,03-06-2020,Adult Social Care & Commissioning,Older Pdi North - PNLTA,306405,167007,Residential Care,2285.88,Expense
Northumberland County Council,BARCHESTER HEALTHCARE HOMES LTD,3220699,03-06-2020,Adult Social Care & Commissioning,Older Pdi North - PNLTA,306405,167007,Residential Care,114.29,Expense
Northumberland County Council,BARCHESTER HEALTHCARE HOMES LTD,3220700,03-06-2020,Adult Social Care & Commissioning,Older MH Central - PCMM1- Two,306404,167007,Residential Care,2463.48,Expense
Northumberland County Council,BARCHESTER HEALTHCARE HOMES LTD,3220700,03-06-2020,Adult Social Care & Commissioning,Older MH Central - PCMM1- Two,306404,167007,Residential Care,123.17,Expense
Northumberland County Council,BARCHESTER HEALTHCARE HOMES LTD,3220701,03-06-2020,Adult Social Care & Commissioning,Older MH Central - PCMM1- Two,306404,167007,Residential Care,2463.48,Expense
Northumberland County Council,BARCHESTER HEALTHCARE HOMES LTD,3220701,03-06-2020,Adult Social Care & Commissioning,Older MH Central - PCMM1- Two,306404,167007,Residential Care,123.17,Expense
Northumberland County Council,BARCHESTER HEALTHCARE HOMES LTD,3220702,03-06-2020,Adult Social Care & Commissioning,Older MH Central - PCMM1- Two,306404,167007,Residential Care,2463.48,Expense
Northumberland County Council,BARCHESTER HEALTHCARE HOMES LTD,3220702,03-06-2020,Adult Social Care & Commissioning,Older MH Central - PCMM1- Two,306404,167007,Residential Care,123.17,Expense
Northumberland County Council,BARCHESTER HEALTHCARE HOMES LTD,3220703,03-06-2020,Adult Social Care & Commissioning,Older MH South - PSMB1,306411,167007,Residential Care,2463.48,Expense
Northumberland County Council,BARCHESTER HEALTHCARE HOMES LTD,3220703,03-06-2020,Adult Social Care & Commissioning,Older MH South - PSMB1,306411,167007,Residential Care,123.17,Expense
Northumberland County Council,BARCHESTER HEALTHCARE HOMES LTD,3220704,03-06-2020,Adult Social Care & Commissioning,CHC Packages,306420,167007,Residential Care,2463.48,Expense
Northumberland County Council,BARCHESTER HEALTHCARE HOMES LTD,3220704,03-06-2020,Adult Social Care & Commissioning,CHC Packages,306420,167007,Residential Care,123.17,Expense
Northumberland County Council,BARCHESTER HEALTHCARE HOMES LTD,3220705,03-06-2020,Adult Social Care & Commissioning,Older MH Central - PCMM1- Two,306404,167007,Residential Care,2463.48,Expense
Northumberland County Council,BARCHESTER HEALTHCARE HOMES LTD,3220705,03-06-2020,Adult Social Care & Commissioning,Older MH Central - PCMM1- Two,306404,167007,Residential Care,123.17,Expense
Northumberland County Council,BARCHESTER HEALTHCARE HOMES LTD,3220706,03-06-2020,Adult Social Care & Commissioning,Older MH Central - PCMM1- Two,306404,167007,Residential Care,2463.48,Expense
Northumberland County Council,BARCHESTER HEALTHCARE HOMES LTD,3220706,03-06-2020,Adult Social Care & Commissioning,Older MH Central - PCMM1- Two,306404,167007,Residential Care,123.17,Expense
Northumberland County Council,BARCHESTER HEALTHCARE HOMES LTD,3220707,03-06-2020,Adult Social Care & Commissioning,Older MH South - PSMB1,306411,167007,Residential Care,2463.48,Expense
Northumberland County Council,BARCHESTER HEALTHCARE HOMES LTD,3220707,03-06-2020,Adult Social Care & Commissioning,Older MH South - PSMB1,306411,167007,Residential Care,123.17,Expense
Northumberland County Council,BARCHESTER HEALTHCARE HOMES LTD,3220708,03-06-2020,Adult Social Care & Commissioning,Older PDI Central - PCLB1 - Two,306401,167007,Residential Care,2285.88,Expense
Northumberland County Council,BARCHESTER HEALTHCARE HOMES LTD,3220708,03-06-2020,Adult Social Care & Commissioning,Older PDI Central - PCLB1 - Two,306401,167007,Residential Care,114.29,Expense
Northumberland County Council,BARCHESTER HEALTHCARE HOMES LTD,3220709,03-06-2020,Adult Social Care & Commissioning,Older MH Central - PCMM1- Two,306404,167007,Residential Care,2463.48,Expense
Northumberland County Council,BARCHESTER HEALTHCARE HOMES LTD,3220709,03-06-2020,Adult Social Care & Commissioning,Older MH Central - PCMM1- Two,306404,167007,Residential Care,123.17,Expense
Northumberland County Council,BARCHESTER HEALTHCARE HOMES LTD,3220710,03-06-2020,Adult Social Care & Commissioning,Older PDI Central - PCLB1 - Two,306401,167007,Residential Care,2285.88,Expense
Northumberland County Council,BARCHESTER HEALTHCARE HOMES LTD,3220710,03-06-2020,Adult Social Care & Commissioning,Older PDI Central - PCLB1 - Two,306401,167007,Residential Care,114.29,Expense
Northumberland County Council,BARCHESTER HEALTHCARE HOMES LTD,3220711,03-06-2020,Adult Social Care & Commissioning,Older PDI South - PSLTC - Two,306410,167007,Residential Care,2285.88,Expense
Northumberland County Council,BARCHESTER HEALTHCARE HOMES LTD,3220711,03-06-2020,Adult Social Care & Commissioning,Older PDI South - PSLTC - Two,306410,167007,Residential Care,114.29,Expense
Northumberland County Council,BARCHESTER HEALTHCARE HOMES LTD,3220712,03-06-2020,Adult Social Care & Commissioning,Older PDI South - PSLTC - Two,306410,167007,Residential Care,2285.88,Expense
Northumberland County Council,BARCHESTER HEALTHCARE HOMES LTD,3220712,03-06-2020,Adult Social Care & Commissioning,Older PDI South - PSLTC - Two,306410,167007,Residential Care,114.29,Expense
Northumberland County Council,BARCHESTER HEALTHCARE HOMES LTD,3220713,03-06-2020,Adult Social Care & Commissioning,Older PDI Central - PCLB1 - Two,306401,167007,Residential Care,2285.88,Expense
Northumberland County Council,BARCHESTER HEALTHCARE HOMES LTD,3220713,03-06-2020,Adult Social Care & Commissioning,Older PDI Central - PCLB1 - Two,306401,167007,Residential Care,114.29,Expense
Northumberland County Council,BARCHESTER HEALTHCARE HOMES LTD,3220714,03-06-2020,Adult Social Care & Commissioning,Older MH Central - PCMM1- Two,306404,167007,Residential Care,2463.48,Expense
Northumberland County Council,BARCHESTER HEALTHCARE HOMES LTD,3220714,03-06-2020,Adult Social Care & Commissioning,Older MH Central - PCMM1- Two,306404,167007,Residential Care,123.17,Expense
Northumberland County Council,BARCHESTER HEALTHCARE HOMES LTD,3220715,03-06-2020,Adult Social Care & Commissioning,Older MH Central - PCMM1- Two,306404,167007,Residential Care,2463.48,Expense
Northumberland County Council,BARCHESTER HEALTHCARE HOMES LTD,3220715,03-06-2020,Adult Social Care & Commissioning,Older MH Central - PCMM1- Two,306404,167007,Residential Care,123.17,Expense
Northumberland County Council,BARCHESTER HEALTHCARE HOMES LTD,3220716,03-06-2020,Adult Social Care & Commissioning,Older MH South - PSMB1,306411,167007,Residential Care,2463.48,Expense
Northumberland County Council,BARCHESTER HEALTHCARE HOMES LTD,3220716,03-06-2020,Adult Social Care & Commissioning,Older MH South - PSMB1,306411,167007,Residential Care,123.17,Expense
Northumberland County Council,BARCHESTER HEALTHCARE HOMES LTD,3220717,03-06-2020,Adult Social Care & Commissioning,Older MH Central - PCMM1- Two,306404,167007,Residential Care,2463.48,Expense
Northumberland County Council,BARCHESTER HEALTHCARE HOMES LTD,3220717,03-06-2020,Adult Social Care & Commissioning,Older MH Central - PCMM1- Two,306404,167007,Residential Care,123.17,Expense
Northumberland County Council,BARCHESTER HEALTHCARE HOMES LTD,3220718,03-06-2020,Adult Social Care & Commissioning,Older PDI Central - PCLB1 - Two,306401,167007,Residential Care,2285.88,Expense
Northumberland County Council,BARCHESTER HEALTHCARE HOMES LTD,3220718,03-06-2020,Adult Social Care & Commissioning,Older PDI Central - PCLB1 - Two,306401,167007,Residential Care,114.29,Expense
Northumberland County Council,BARCHESTER HEALTHCARE HOMES LTD,3220719,03-06-2020,Adult Social Care & Commissioning,Older MH Central - PCMM1- Two,306404,167007,Residential Care,2463.48,Expense
Northumberland County Council,BARCHESTER HEALTHCARE HOMES LTD,3220719,03-06-2020,Adult Social Care & Commissioning,Older MH Central - PCMM1- Two,306404,167007,Residential Care,123.17,Expense
Northumberland County Council,BARCHESTER HEALTHCARE HOMES LTD,3220720,03-06-2020,Adult Social Care & Commissioning,Older MH Central - PCMM1- Two,306404,167007,Residential Care,2463.48,Expense
Northumberland County Council,BARCHESTER HEALTHCARE HOMES LTD,3220720,03-06-2020,Adult Social Care & Commissioning,Older MH Central - PCMM1- Two,306404,167007,Residential Care,123.17,Expense
Northumberland County Council,BARCHESTER HEALTHCARE HOMES LTD,3220721,03-06-2020,Adult Social Care & Commissioning,Older MH Central - PCMM1- Two,306404,167007,Residential Care,2463.48,Expense
Northumberland County Council,BARCHESTER HEALTHCARE HOMES LTD,3220721,03-06-2020,Adult Social Care & Commissioning,Older MH Central - PCMM1- Two,306404,167007,Residential Care,123.17,Expense
Northumberland County Council,BARCHESTER HEALTHCARE HOMES LTD,3220722,03-06-2020,Adult Social Care & Commissioning,Older MH Central - PCMM1- Two,306404,167007,Residential Care,2463.48,Expense
Northumberland County Council,BARCHESTER HEALTHCARE HOMES LTD,3220722,03-06-2020,Adult Social Care & Commissioning,Older MH Central - PCMM1- Two,306404,167007,Residential Care,123.17,Expense
Northumberland County Council,BARCHESTER HEALTHCARE HOMES LTD,3220723,03-06-2020,Adult Social Care & Commissioning,CHC Packages,306420,167007,Residential Care,2285.88,Expense
Northumberland County Council,BARCHESTER HEALTHCARE HOMES LTD,3220723,03-06-2020,Adult Social Care & Commissioning,CHC Packages,306420,167007,Residential Care,114.29,Expense
Northumberland County Council,BARCHESTER HEALTHCARE HOMES LTD,3220724,03-06-2020,Adult Social Care & Commissioning,Older MH Central - PCMM1- Two,306404,167007,Residential Care,2463.48,Expense
Northumberland County Council,BARCHESTER HEALTHCARE HOMES LTD,3220724,03-06-2020,Adult Social Care & Commissioning,Older MH Central - PCMM1- Two,306404,167007,Residential Care,123.17,Expense
Northumberland County Council,BARCHESTER HEALTHCARE HOMES LTD,3220725,03-06-2020,Adult Social Care & Commissioning,Older MH Central - PCMM1- Two,306404,167007,Residential Care,791.83,Expense
Northumberland County Council,BARCHESTER HEALTHCARE HOMES LTD,3220725,03-06-2020,Adult Social Care & Commissioning,Older MH Central - PCMM1- Two,306404,167007,Residential Care,39.59,Expense
Northumberland County Council,BARCHESTER HEALTHCARE HOMES LTD,3220726,03-06-2020,Adult Social Care & Commissioning,Older MH Central - PCMM1- Two,306404,167007,Residential Care,2463.48,Expense
Northumberland County Council,BARCHESTER HEALTHCARE HOMES LTD,3220726,03-06-2020,Adult Social Care & Commissioning,Older MH Central - PCMM1- Two,306404,167007,Residential Care,123.17,Expense
Northumberland County Council,BARCHESTER HEALTHCARE HOMES LTD,3220727,03-06-2020,Adult Social Care & Commissioning,Older MH Central - PCMM1- Two,306404,167007,Residential Care,2463.48,Expense
Northumberland County Council,BARCHESTER HEALTHCARE HOMES LTD,3220727,03-06-2020,Adult Social Care & Commissioning,Older MH Central - PCMM1- Two,306404,167007,Residential Care,123.17,Expense
Northumberland County Council,BARCHESTER HEALTHCARE HOMES LTD,3220728,03-06-2020,Adult Social Care & Commissioning,Older MH Central - PCMM1- Two,306404,167007,Residential Care,2285.88,Expense
Northumberland County Council,BARCHESTER HEALTHCARE HOMES LTD,3220728,03-06-2020,Adult Social Care & Commissioning,Older MH Central - PCMM1- Two,306404,167007,Residential Care,114.29,Expense
Northumberland County Council,BARCHESTER HEALTHCARE HOMES LTD,3220729,03-06-2020,Adult Social Care & Commissioning,Older MH North - PNMB1 - Two,306408,167007,Residential Care,2463.48,Expense
Northumberland County Council,BARCHESTER HEALTHCARE HOMES LTD,3220729,03-06-2020,Adult Social Care & Commissioning,Older MH North - PNMB1 - Two,306408,167007,Residential Care,123.17,Expense
Northumberland County Council,BARCHESTER HEALTHCARE HOMES LTD,3220730,03-06-2020,Adult Social Care & Commissioning,Older MH South - PSMB1,306411,167007,Residential Care,2463.48,Expense
Northumberland County Council,BARCHESTER HEALTHCARE HOMES LTD,3220730,03-06-2020,Adult Social Care & Commissioning,Older MH South - PSMB1,306411,167007,Residential Care,123.17,Expense
Northumberland County Council,BARCHESTER HEALTHCARE HOMES LTD,3220731,03-06-2020,Adult Social Care & Commissioning,Older MH Central - PCMM1- Two,306404,167007,Residential Care,2463.48,Expense
Northumberland County Council,BARCHESTER HEALTHCARE HOMES LTD,3220731,03-06-2020,Adult Social Care & Commissioning,Older MH Central - PCMM1- Two,306404,167007,Residential Care,123.17,Expense
Northumberland County Council,BARCHESTER HEALTHCARE HOMES LTD,3220732,03-06-2020,Adult Social Care & Commissioning,Older PDI Central - PCLB1 - Two,306401,167007,Residential Care,2285.88,Expense
Northumberland County Council,BARCHESTER HEALTHCARE HOMES LTD,3220732,03-06-2020,Adult Social Care & Commissioning,Older PDI Central - PCLB1 - Two,306401,167007,Residential Care,114.29,Expense
Northumberland County Council,BARCHESTER HEALTHCARE HOMES LTD,3220733,03-06-2020,Adult Social Care & Commissioning,Older MH Central - PCMM1- Two,306404,167007,Residential Care,2463.48,Expense
Northumberland County Council,BARCHESTER HEALTHCARE HOMES LTD,3220733,03-06-2020,Adult Social Care & Commissioning,Older MH Central - PCMM1- Two,306404,167007,Residential Care,123.17,Expense
Northumberland County Council,BARCHESTER HEALTHCARE HOMES LTD,3220734,03-06-2020,Adult Social Care & Commissioning,Older PDI Central - PCLB1 - Two,306401,167007,Residential Care,2285.88,Expense
Northumberland County Council,BARCHESTER HEALTHCARE HOMES LTD,3220734,03-06-2020,Adult Social Care & Commissioning,Older PDI Central - PCLB1 - Two,306401,167007,Residential Care,114.29,Expense
Northumberland County Council,BARCHESTER HEALTHCARE HOMES LTD,3220735,03-06-2020,Adult Social Care & Commissioning,Older PDI Central - PCLB1 - Two,306401,167007,Residential Care,2285.88,Expense
Northumberland County Council,BARCHESTER HEALTHCARE HOMES LTD,3220735,03-06-2020,Adult Social Care & Commissioning,Older PDI Central - PCLB1 - Two,306401,167007,Residential Care,114.29,Expense
Northumberland County Council,BARCHESTER HEALTHCARE HOMES LTD,3220736,03-06-2020,Adult Social Care & Commissioning,Older MH Central - PCMM1- Two,306404,167007,Residential Care,2463.48,Expense
Northumberland County Council,BARCHESTER HEALTHCARE HOMES LTD,3220736,03-06-2020,Adult Social Care & Commissioning,Older MH Central - PCMM1- Two,306404,167007,Residential Care,123.17,Expense
Northumberland County Council,BARCHESTER HEALTHCARE HOMES LTD,3220737,03-06-2020,Adult Social Care & Commissioning,Older MH Central - PCMM1- Two,306404,167007,Residential Care,2463.48,Expense
Northumberland County Council,BARCHESTER HEALTHCARE HOMES LTD,3220737,03-06-2020,Adult Social Care & Commissioning,Older MH Central - PCMM1- Two,306404,167007,Residential Care,123.17,Expense
Northumberland County Council,BARCHESTER HEALTHCARE HOMES LTD,3220738,03-06-2020,Adult Social Care & Commissioning,Older MH Central - PCMM1- Two,306404,167007,Residential Care,2463.48,Expense
Northumberland County Council,BARCHESTER HEALTHCARE HOMES LTD,3220738,03-06-2020,Adult Social Care & Commissioning,Older MH Central - PCMM1- Two,306404,167007,Residential Care,123.17,Expense
Northumberland County Council,BARCHESTER HEALTHCARE HOMES LTD,3220739,03-06-2020,Adult Social Care & Commissioning,Older MH Central - PCMM1- Two,306404,167007,Residential Care,2463.48,Expense
Northumberland County Council,BARCHESTER HEALTHCARE HOMES LTD,3220739,03-06-2020,Adult Social Care & Commissioning,Older MH Central - PCMM1- Two,306404,167007,Residential Care,123.17,Expense
Northumberland County Council,BARCHESTER HEALTHCARE HOMES LTD,3220740,03-06-2020,Adult Social Care & Commissioning,Older MH Central - PCMM1- Two,306404,167007,Residential Care,2463.48,Expense
Northumberland County Council,BARCHESTER HEALTHCARE HOMES LTD,3220740,03-06-2020,Adult Social Care & Commissioning,Older MH Central - PCMM1- Two,306404,167007,Residential Care,123.17,Expense
Northumberland County Council,BARCHESTER HEALTHCARE HOMES LTD,3220741,03-06-2020,Adult Social Care & Commissioning,Older PDI South - PSLTC - Two,306410,167007,Residential Care,1306.22,Expense
Northumberland County Council,BARCHESTER HEALTHCARE HOMES LTD,3220741,03-06-2020,Adult Social Care & Commissioning,Older PDI South - PSLTC - Two,306410,167007,Residential Care,65.31,Expense
Northumberland County Council,BARCHESTER HEALTHCARE HOMES LTD,3220742,03-06-2020,Adult Social Care & Commissioning,Older PDI South - PSLTC - Two,306410,167007,Residential Care,2285.88,Expense
Northumberland County Council,BARCHESTER HEALTHCARE HOMES LTD,3220742,03-06-2020,Adult Social Care & Commissioning,Older PDI South - PSLTC - Two,306410,167007,Residential Care,114.29,Expense
Northumberland County Council,BARCHESTER HEALTHCARE HOMES LTD,3220743,03-06-2020,Adult Social Care & Commissioning,Older MH Central - PCMM1- Two,306404,167007,Residential Care,2463.48,Expense
Northumberland County Council,BARCHESTER HEALTHCARE HOMES LTD,3220743,03-06-2020,Adult Social Care & Commissioning,Older MH Central - PCMM1- Two,306404,167007,Residential Care,123.17,Expense
Northumberland County Council,BARCHESTER HEALTHCARE HOMES LTD,3220744,03-06-2020,Adult Social Care & Commissioning,Older PDI South - PSLTC - Two,306410,167007,Residential Care,2285.88,Expense
Northumberland County Council,BARCHESTER HEALTHCARE HOMES LTD,3220744,03-06-2020,Adult Social Care & Commissioning,Older PDI South - PSLTC - Two,306410,167007,Residential Care,114.29,Expense
Northumberland County Council,BARCHESTER HEALTHCARE HOMES LTD,3243595,08-06-2020,Adult Social Care & Commissioning,Older MH Central - PCMM1- Two,306404,167007,Residential Care,2367.52,Expense
Northumberland County Council,BARCHESTER HEALTHCARE HOMES LTD,3243595,08-06-2020,Adult Social Care & Commissioning,Older MH Central - PCMM1- Two,306404,167007,Residential Care,118.38,Expense
Northumberland County Council,BARCHESTER HEALTHCARE HOMES LTD,3252588,09-06-2020,Adult Social Care & Commissioning,Older PDI West - PWLTH - One,306412,167007,Residential Care,8472.00,Expense
Northumberland County Council,BARCHESTER HEALTHCARE HOMES LTD,3252588,09-06-2020,Adult Social Care & Commissioning,Older PDI West - PWLTH - One,306412,167007,Residential Care,423.60,Expense
Northumberland County Council,BARCHESTER HEALTHCARE HOMES LTD,3254586,08-06-2020,Adult Social Care & Commissioning,Older PDI Central - PCLB1 - Two,306401,167007,Residential Care,2285.88,Expense
Northumberland County Council,BARCHESTER HEALTHCARE HOMES LTD,3254586,08-06-2020,Adult Social Care & Commissioning,Older PDI Central - PCLB1 - Two,306401,167007,Residential Care,114.29,Expense
Northumberland County Council,BARCHESTER HEALTHCARE HOMES LTD,3254587,08-06-2020,Adult Social Care & Commissioning,CHC Packages,306420,167006,Care Homes with Nursing,3021.56,Expense
Northumberland County Council,BARCHESTER HEALTHCARE HOMES LTD,3254587,08-06-2020,Adult Social Care & Commissioning,CHC Packages,306420,167006,Care Homes with Nursing,151.07,Expense
Northumberland County Council,BARCHESTER HEALTHCARE HOMES LTD,3254588,08-06-2020,Adult Social Care & Commissioning,Older PDI South - PSLTC - Two,306410,167007,Residential Care,2285.88,Expense
Northumberland County Council,BARCHESTER HEALTHCARE HOMES LTD,3254588,08-06-2020,Adult Social Care & Commissioning,Older PDI South - PSLTC - Two,306410,167007,Residential Care,114.29,Expense
Northumberland County Council,BARCHESTER HEALTHCARE HOMES LTD,3254589,08-06-2020,Adult Social Care & Commissioning,Older PDI Central - PCLB1 - Two,306401,167006,Care Homes with Nursing,2285.88,Expense
Northumberland County Council,BARCHESTER HEALTHCARE HOMES LTD,3254589,08-06-2020,Adult Social Care & Commissioning,Older PDI Central - PCLB1 - Two,306401,167006,Care Homes with Nursing,114.29,Expense
Northumberland County Council,BARCHESTER HEALTHCARE HOMES LTD,3254589,08-06-2020,Adult Social Care & Commissioning,F.N.C.,306421,167006,Care Homes with Nursing,735.68,Expense
Northumberland County Council,BARCHESTER HEALTHCARE HOMES LTD,3254590,08-06-2020,Adult Social Care & Commissioning,Older MH Central - PCMM1- Two,306404,167007,Residential Care,2285.88,Expense
Northumberland County Council,BARCHESTER HEALTHCARE HOMES LTD,3254590,08-06-2020,Adult Social Care & Commissioning,Older MH Central - PCMM1- Two,306404,167007,Residential Care,114.29,Expense
Northumberland County Council,BARCHESTER HEALTHCARE HOMES LTD,3254591,08-06-2020,Adult Social Care & Commissioning,Older PDI Central - PCLB1 - Two,306401,167006,Care Homes with Nursing,2285.88,Expense
Northumberland County Council,BARCHESTER HEALTHCARE HOMES LTD,3254591,08-06-2020,Adult Social Care & Commissioning,Older PDI Central - PCLB1 - Two,306401,167006,Care Homes with Nursing,114.29,Expense
Northumberland County Council,BARCHESTER HEALTHCARE HOMES LTD,3254591,08-06-2020,Adult Social Care & Commissioning,F.N.C.,306421,167006,Care Homes with Nursing,735.68,Expense
Northumberland County Council,BARCHESTER HEALTHCARE HOMES LTD,3254592,08-06-2020,Adult Social Care & Commissioning,Older PDI Central - PCLB1 - Two,306401,167006,Care Homes with Nursing,2285.88,Expense
Northumberland County Council,BARCHESTER HEALTHCARE HOMES LTD,3254592,08-06-2020,Adult Social Care & Commissioning,Older PDI Central - PCLB1 - Two,306401,167006,Care Homes with Nursing,114.29,Expense
Northumberland County Council,BARCHESTER HEALTHCARE HOMES LTD,3254592,08-06-2020,Adult Social Care & Commissioning,F.N.C.,306421,167006,Care Homes with Nursing,735.68,Expense
Northumberland County Council,BARCHESTER HEALTHCARE HOMES LTD,3254593,08-06-2020,Adult Social Care & Commissioning,Older MH Central - PCMM1- Two,306404,167006,Care Homes with Nursing,2285.88,Expense
Northumberland County Council,BARCHESTER HEALTHCARE HOMES LTD,3254593,08-06-2020,Adult Social Care & Commissioning,Older MH Central - PCMM1- Two,306404,167006,Care Homes with Nursing,114.29,Expense
Northumberland County Council,BARCHESTER HEALTHCARE HOMES LTD,3254593,08-06-2020,Adult Social Care & Commissioning,F.N.C.,306421,167006,Care Homes with Nursing,735.68,Expense
Northumberland County Council,BARCHESTER HEALTHCARE HOMES LTD,3254594,08-06-2020,Adult Social Care & Commissioning,Older PDI West - PWLTH - One,306412,167006,Care Homes with Nursing,2285.88,Expense
Northumberland County Council,BARCHESTER HEALTHCARE HOMES LTD,3254594,08-06-2020,Adult Social Care & Commissioning,Older PDI West - PWLTH - One,306412,167006,Care Homes with Nursing,114.29,Expense
Northumberland County Council,BARCHESTER HEALTHCARE HOMES LTD,3254594,08-06-2020,Adult Social Care & Commissioning,F.N.C.,306421,167006,Care Homes with Nursing,735.68,Expense
Northumberland County Council,BARCHESTER HEALTHCARE HOMES LTD,3254595,08-06-2020,Adult Social Care & Commissioning,Older PDI Central - PCLB1 - Two,306401,167007,Residential Care,2285.88,Expense
Northumberland County Council,BARCHESTER HEALTHCARE HOMES LTD,3254595,08-06-2020,Adult Social Care & Commissioning,Older PDI Central - PCLB1 - Two,306401,167007,Residential Care,114.29,Expense
Northumberland County Council,BARCHESTER HEALTHCARE HOMES LTD,3254596,08-06-2020,Adult Social Care & Commissioning,Older PDI Central - PCLB1 - Two,306401,167006,Care Homes with Nursing,2285.88,Expense
Northumberland County Council,BARCHESTER HEALTHCARE HOMES LTD,3254596,08-06-2020,Adult Social Care & Commissioning,Older PDI Central - PCLB1 - Two,306401,167006,Care Homes with Nursing,114.29,Expense
Northumberland County Council,BARCHESTER HEALTHCARE HOMES LTD,3254596,08-06-2020,Adult Social Care & Commissioning,F.N.C.,306421,167006,Care Homes with Nursing,735.68,Expense
Northumberland County Council,BARCHESTER HEALTHCARE HOMES LTD,3254597,08-06-2020,Adult Social Care & Commissioning,F.N.C.,306421,167006,Care Homes with Nursing,735.68,Expense
Northumberland County Council,BARCHESTER HEALTHCARE HOMES LTD,3254598,08-06-2020,Adult Social Care & Commissioning,CHC Packages,306420,167006,Care Homes with Nursing,647.48,Expense
Northumberland County Council,BARCHESTER HEALTHCARE HOMES LTD,3254598,08-06-2020,Adult Social Care & Commissioning,CHC Packages,306420,167006,Care Homes with Nursing,32.37,Expense
Northumberland County Council,BARCHESTER HEALTHCARE HOMES LTD,3254599,08-06-2020,Adult Social Care & Commissioning,Older PDI Central - PCLB1 - Two,306401,167006,Care Homes with Nursing,2285.88,Expense
Northumberland County Council,BARCHESTER HEALTHCARE HOMES LTD,3254599,08-06-2020,Adult Social Care & Commissioning,Older PDI Central - PCLB1 - Two,306401,167006,Care Homes with Nursing,114.29,Expense
Northumberland County Council,BARCHESTER HEALTHCARE HOMES LTD,3254599,08-06-2020,Adult Social Care & Commissioning,F.N.C.,306421,167006,Care Homes with Nursing,735.68,Expense
Northumberland County Council,BARCHESTER HEALTHCARE HOMES LTD,3254600,08-06-2020,Adult Social Care & Commissioning,Older PDI Central - PCLB1 - Two,306401,167006,Care Homes with Nursing,2285.88,Expense
Northumberland County Council,BARCHESTER HEALTHCARE HOMES LTD,3254600,08-06-2020,Adult Social Care & Commissioning,Older PDI Central - PCLB1 - Two,306401,167006,Care Homes with Nursing,114.29,Expense
Northumberland County Council,BARCHESTER HEALTHCARE HOMES LTD,3254600,08-06-2020,Adult Social Care & Commissioning,F.N.C.,306421,167006,Care Homes with Nursing,735.68,Expense
Northumberland County Council,BARCHESTER HEALTHCARE HOMES LTD,3254601,08-06-2020,Adult Social Care & Commissioning,CHC Packages,306420,167006,Care Homes with Nursing,2697.82,Expense
Northumberland County Council,BARCHESTER HEALTHCARE HOMES LTD,3254601,08-06-2020,Adult Social Care & Commissioning,CHC Packages,306420,167006,Care Homes with Nursing,134.89,Expense
Northumberland County Council,BARCHESTER HEALTHCARE HOMES LTD,3254602,08-06-2020,Adult Social Care & Commissioning,CHC Packages,306420,167006,Care Homes with Nursing,2374.08,Expense
Northumberland County Council,BARCHESTER HEALTHCARE HOMES LTD,3254602,08-06-2020,Adult Social Care & Commissioning,CHC Packages,306420,167006,Care Homes with Nursing,118.70,Expense
Northumberland County Council,BARCHESTER HEALTHCARE HOMES LTD,3254603,08-06-2020,Adult Social Care & Commissioning,Older PDI Central - PCLB1 - Two,306401,167006,Care Homes with Nursing,2285.88,Expense
Northumberland County Council,BARCHESTER HEALTHCARE HOMES LTD,3254603,08-06-2020,Adult Social Care & Commissioning,Older PDI Central - PCLB1 - Two,306401,167006,Care Homes with Nursing,114.29,Expense
Northumberland County Council,BARCHESTER HEALTHCARE HOMES LTD,3254603,08-06-2020,Adult Social Care & Commissioning,F.N.C.,306421,167006,Care Homes with Nursing,735.68,Expense
Northumberland County Council,BARCHESTER HEALTHCARE HOMES LTD,3254604,08-06-2020,Adult Social Care & Commissioning,CHC Packages,306420,167006,Care Homes with Nursing,3021.56,Expense
Northumberland County Council,BARCHESTER HEALTHCARE HOMES LTD,3254604,08-06-2020,Adult Social Care & Commissioning,CHC Packages,306420,167006,Care Homes with Nursing,151.07,Expense
Northumberland County Council,BARCHESTER HEALTHCARE HOMES LTD,3254605,08-06-2020,Adult Social Care & Commissioning,Older PDI Central - PCLB1 - Two,306401,167006,Care Homes with Nursing,2285.88,Expense
Northumberland County Council,BARCHESTER HEALTHCARE HOMES LTD,3254605,08-06-2020,Adult Social Care & Commissioning,Older PDI Central - PCLB1 - Two,306401,167006,Care Homes with Nursing,114.29,Expense
Northumberland County Council,BARCHESTER HEALTHCARE HOMES LTD,3254605,08-06-2020,Adult Social Care & Commissioning,F.N.C.,306421,167006,Care Homes with Nursing,735.68,Expense
Northumberland County Council,BARCHESTER HEALTHCARE HOMES LTD,3254606,08-06-2020,Adult Social Care & Commissioning,Older MH Central - PCMM1- Two,306404,167006,Care Homes with Nursing,2285.88,Expense
Northumberland County Council,BARCHESTER HEALTHCARE HOMES LTD,3254606,08-06-2020,Adult Social Care & Commissioning,Older MH Central - PCMM1- Two,306404,167006,Care Homes with Nursing,114.29,Expense
Northumberland County Council,BARCHESTER HEALTHCARE HOMES LTD,3254606,08-06-2020,Adult Social Care & Commissioning,F.N.C.,306421,167006,Care Homes with Nursing,735.68,Expense
Northumberland County Council,BARCHESTER HEALTHCARE HOMES LTD,3254607,08-06-2020,Adult Social Care & Commissioning,CHC Packages,306420,167006,Care Homes with Nursing,3021.56,Expense
Northumberland County Council,BARCHESTER HEALTHCARE HOMES LTD,3254607,08-06-2020,Adult Social Care & Commissioning,CHC Packages,306420,167006,Care Homes with Nursing,151.07,Expense
Northumberland County Council,BARCHESTER HEALTHCARE HOMES LTD,3254608,08-06-2020,Adult Social Care & Commissioning,CHC Packages,306420,167006,Care Homes with Nursing,3021.56,Expense
Northumberland County Council,BARCHESTER HEALTHCARE HOMES LTD,3254608,08-06-2020,Adult Social Care & Commissioning,CHC Packages,306420,167006,Care Homes with Nursing,151.07,Expense
Northumberland County Council,BARCHESTER HEALTHCARE HOMES LTD,3254609,08-06-2020,Adult Social Care & Commissioning,CHC Packages,306420,167006,Care Homes with Nursing,3345.30,Expense
Northumberland County Council,BARCHESTER HEALTHCARE HOMES LTD,3254609,08-06-2020,Adult Social Care & Commissioning,CHC Packages,306420,167006,Care Homes with Nursing,167.27,Expense
Northumberland County Council,BARCHESTER HEALTHCARE HOMES LTD,3259587,09-06-2020,Adult Social Care & Commissioning,Older PDI Central - PCLB1 - Two,306401,167007,Residential Care,2285.88,Expense
Northumberland County Council,BARCHESTER HEALTHCARE HOMES LTD,3259587,09-06-2020,Adult Social Care & Commissioning,Older PDI Central - PCLB1 - Two,306401,167007,Residential Care,114.29,Expense
Northumberland County Council,BARCHESTER HEALTHCARE HOMES LTD,3259588,09-06-2020,Adult Social Care & Commissioning,CHC Packages,306420,167007,Residential Care,2285.88,Expense
Northumberland County Council,BARCHESTER HEALTHCARE HOMES LTD,3259588,09-06-2020,Adult Social Care & Commissioning,CHC Packages,306420,167007,Residential Care,114.29,Expense
Northumberland County Council,BARCHESTER HEALTHCARE HOMES LTD,3259589,09-06-2020,Adult Social Care & Commissioning,Older MH Central - PCMM1- Two,306404,167007,Residential Care,2463.48,Expense
Northumberland County Council,BARCHESTER HEALTHCARE HOMES LTD,3259589,09-06-2020,Adult Social Care & Commissioning,Older MH Central - PCMM1- Two,306404,167007,Residential Care,123.17,Expense
Northumberland County Council,BARCHESTER HEALTHCARE HOMES LTD,3259590,09-06-2020,Adult Social Care & Commissioning,Older MH Central - PCMM1- Two,306404,167007,Residential Care,2463.48,Expense
Northumberland County Council,BARCHESTER HEALTHCARE HOMES LTD,3259590,09-06-2020,Adult Social Care & Commissioning,Older MH Central - PCMM1- Two,306404,167007,Residential Care,123.17,Expense
Northumberland County Council,BARCHESTER HEALTHCARE HOMES LTD,3259591,09-06-2020,Adult Social Care & Commissioning,Older MH Central - PCMM1- Two,306404,167007,Residential Care,2463.48,Expense
Northumberland County Council,BARCHESTER HEALTHCARE HOMES LTD,3259591,09-06-2020,Adult Social Care & Commissioning,Older MH Central - PCMM1- Two,306404,167007,Residential Care,123.17,Expense
Northumberland County Council,BARCHESTER HEALTHCARE HOMES LTD,3259592,09-06-2020,Adult Social Care & Commissioning,Older MH Central - PCMM1- Two,306404,167007,Residential Care,2463.48,Expense
Northumberland County Council,BARCHESTER HEALTHCARE HOMES LTD,3259592,09-06-2020,Adult Social Care & Commissioning,Older MH Central - PCMM1- Two,306404,167007,Residential Care,123.17,Expense
Northumberland County Council,BARCHESTER HEALTHCARE HOMES LTD,3259593,09-06-2020,Adult Social Care & Commissioning,Older MH Central - PCMM1- Two,306404,167007,Residential Care,2463.48,Expense
Northumberland County Council,BARCHESTER HEALTHCARE HOMES LTD,3259593,09-06-2020,Adult Social Care & Commissioning,Older MH Central - PCMM1- Two,306404,167007,Residential Care,123.17,Expense
Northumberland County Council,BARCHESTER HEALTHCARE HOMES LTD,3259594,09-06-2020,Adult Social Care & Commissioning,Older MH Central - PCMM1- Two,306404,167007,Residential Care,2463.48,Expense
Northumberland County Council,BARCHESTER HEALTHCARE HOMES LTD,3259594,09-06-2020,Adult Social Care & Commissioning,Older MH Central - PCMM1- Two,306404,167007,Residential Care,123.17,Expense
Northumberland County Council,BARCHESTER HEALTHCARE HOMES LTD,3259595,09-06-2020,Adult Social Care & Commissioning,Older MH Central - PCMM1- Two,306404,167007,Residential Care,2463.48,Expense
Northumberland County Council,BARCHESTER HEALTHCARE HOMES LTD,3259595,09-06-2020,Adult Social Care & Commissioning,Older MH Central - PCMM1- Two,306404,167007,Residential Care,123.17,Expense
Northumberland County Council,BARCHESTER HEALTHCARE HOMES LTD,3259596,09-06-2020,Adult Social Care & Commissioning,Older MH Central - PCMM1- Two,306404,167007,Residential Care,2463.48,Expense
Northumberland County Council,BARCHESTER HEALTHCARE HOMES LTD,3259596,09-06-2020,Adult Social Care & Commissioning,Older MH Central - PCMM1- Two,306404,167007,Residential Care,123.17,Expense
Northumberland County Council,BARCHESTER HEALTHCARE HOMES LTD,3259611,09-06-2020,Adult Social Care & Commissioning,Older PDI Central - PCLB1 - Two,306401,167007,Residential Care,2285.88,Expense
Northumberland County Council,BARCHESTER HEALTHCARE HOMES LTD,3259611,09-06-2020,Adult Social Care & Commissioning,Older PDI Central - PCLB1 - Two,306401,167007,Residential Care,114.29,Expense
Northumberland County Council,BARCHESTER HEALTHCARE HOMES LTD,3259612,09-06-2020,Adult Social Care & Commissioning,Older PDI Central - PCLB1 - Two,306401,167007,Residential Care,2285.88,Expense
Northumberland County Council,BARCHESTER HEALTHCARE HOMES LTD,3259612,09-06-2020,Adult Social Care & Commissioning,Older PDI Central - PCLB1 - Two,306401,167007,Residential Care,114.29,Expense
Northumberland County Council,BARCHESTER HEALTHCARE HOMES LTD,3259613,09-06-2020,Adult Social Care & Commissioning,Older PDI Central - PCLB1 - Two,306401,167007,Residential Care,2463.48,Expense
Northumberland County Council,BARCHESTER HEALTHCARE HOMES LTD,3259613,09-06-2020,Adult Social Care & Commissioning,Older PDI Central - PCLB1 - Two,306401,167007,Residential Care,123.17,Expense
Northumberland County Council,BARCHESTER HEALTHCARE HOMES LTD,3259614,09-06-2020,Adult Social Care & Commissioning,Older MH Central - PCMM1- Two,306404,167007,Residential Care,2463.48,Expense
Northumberland County Council,BARCHESTER HEALTHCARE HOMES LTD,3259614,09-06-2020,Adult Social Care & Commissioning,Older MH Central - PCMM1- Two,306404,167007,Residential Care,123.17,Expense
Northumberland County Council,BARCHESTER HEALTHCARE HOMES LTD,3259615,09-06-2020,Adult Social Care & Commissioning,Older PDI Central - PCLB1 - Two,306401,167007,Residential Care,2285.88,Expense
Northumberland County Council,BARCHESTER HEALTHCARE HOMES LTD,3259615,09-06-2020,Adult Social Care & Commissioning,Older PDI Central - PCLB1 - Two,306401,167007,Residential Care,114.29,Expense
Northumberland County Council,BARCHESTER HEALTHCARE HOMES LTD,3259616,09-06-2020,Adult Social Care & Commissioning,Older MH Central - PCMM1- Two,306404,167007,Residential Care,2463.48,Expense
Northumberland County Council,BARCHESTER HEALTHCARE HOMES LTD,3259616,09-06-2020,Adult Social Care & Commissioning,Older MH Central - PCMM1- Two,306404,167007,Residential Care,123.17,Expense
Northumberland County Council,BARCHESTER HEALTHCARE HOMES LTD,3259617,09-06-2020,Adult Social Care & Commissioning,Older PDI Central - PCLB1 - Two,306401,167007,Residential Care,2285.88,Expense
Northumberland County Council,BARCHESTER HEALTHCARE HOMES LTD,3259617,09-06-2020,Adult Social Care & Commissioning,Older PDI Central - PCLB1 - Two,306401,167007,Residential Care,114.29,Expense
Northumberland County Council,BARCHESTER HEALTHCARE HOMES LTD,3259618,09-06-2020,Adult Social Care & Commissioning,Older MH Central - PCMM1- Two,306404,167007,Residential Care,2463.48,Expense
Northumberland County Council,BARCHESTER HEALTHCARE HOMES LTD,3259618,09-06-2020,Adult Social Care & Commissioning,Older MH Central - PCMM1- Two,306404,167007,Residential Care,123.17,Expense
Northumberland County Council,BARCHESTER HEALTHCARE HOMES LTD,3259619,09-06-2020,Adult Social Care & Commissioning,Older PDI Central - PCLB1 - Two,306401,167007,Residential Care,2463.48,Expense
Northumberland County Council,BARCHESTER HEALTHCARE HOMES LTD,3259619,09-06-2020,Adult Social Care & Commissioning,Older PDI Central - PCLB1 - Two,306401,167007,Residential Care,123.17,Expense
Northumberland County Council,BARCHESTER HEALTHCARE HOMES LTD,3259620,09-06-2020,Adult Social Care & Commissioning,Older PDI Central - PCLB1 - Two,306401,167007,Residential Care,2285.88,Expense
Northumberland County Council,BARCHESTER HEALTHCARE HOMES LTD,3259620,09-06-2020,Adult Social Care & Commissioning,Older PDI Central - PCLB1 - Two,306401,167007,Residential Care,114.29,Expense
Northumberland County Council,BARCHESTER HEALTHCARE HOMES LTD,3260587,09-06-2020,Adult Social Care & Commissioning,Older MH Central - PCMM1- Two,306404,167007,Residential Care,2463.48,Expense
Northumberland County Council,BARCHESTER HEALTHCARE HOMES LTD,3260587,09-06-2020,Adult Social Care & Commissioning,Older MH Central - PCMM1- Two,306404,167007,Residential Care,123.17,Expense
Northumberland County Council,BARCHESTER HEALTHCARE HOMES LTD,3260588,09-06-2020,Adult Social Care & Commissioning,Older MH Central - PCMM1- Two,306404,167007,Residential Care,2463.48,Expense
Northumberland County Council,BARCHESTER HEALTHCARE HOMES LTD,3260588,09-06-2020,Adult Social Care & Commissioning,Older MH Central - PCMM1- Two,306404,167007,Residential Care,123.17,Expense
Northumberland County Council,BARCHESTER HEALTHCARE HOMES LTD,3260589,09-06-2020,Adult Social Care & Commissioning,Older MH Central - PCMM1- Two,306404,167007,Residential Care,2463.48,Expense
Northumberland County Council,BARCHESTER HEALTHCARE HOMES LTD,3260589,09-06-2020,Adult Social Care & Commissioning,Older MH Central - PCMM1- Two,306404,167007,Residential Care,123.17,Expense
Northumberland County Council,BARCHESTER HEALTHCARE HOMES LTD,3260590,09-06-2020,Adult Social Care & Commissioning,CHC Packages,306420,167007,Residential Care,2463.48,Expense
Northumberland County Council,BARCHESTER HEALTHCARE HOMES LTD,3260590,09-06-2020,Adult Social Care & Commissioning,CHC Packages,306420,167007,Residential Care,123.17,Expense
Northumberland County Council,BARCHESTER HEALTHCARE HOMES LTD,3260591,09-06-2020,Adult Social Care & Commissioning,Older MH Central - PCMM1- Two,306404,167007,Residential Care,2463.48,Expense
Northumberland County Council,BARCHESTER HEALTHCARE HOMES LTD,3260591,09-06-2020,Adult Social Care & Commissioning,Older MH Central - PCMM1- Two,306404,167007,Residential Care,123.17,Expense
Northumberland County Council,BARCHESTER HEALTHCARE HOMES LTD,3260592,09-06-2020,Adult Social Care & Commissioning,Older MH Central - PCMM1- Two,306404,167007,Residential Care,2463.48,Expense
Northumberland County Council,BARCHESTER HEALTHCARE HOMES LTD,3260592,09-06-2020,Adult Social Care & Commissioning,Older MH Central - PCMM1- Two,306404,167007,Residential Care,123.17,Expense
Northumberland County Council,BARCHESTER HEALTHCARE HOMES LTD,3260593,09-06-2020,Adult Social Care & Commissioning,Older MH Central - PCMM1- Two,306404,167007,Residential Care,2285.88,Expense
Northumberland County Council,BARCHESTER HEALTHCARE HOMES LTD,3260593,09-06-2020,Adult Social Care & Commissioning,Older MH Central - PCMM1- Two,306404,167007,Residential Care,114.29,Expense
Northumberland County Council,BARCHESTER HEALTHCARE HOMES LTD,3260594,09-06-2020,Adult Social Care & Commissioning,Older MH Central - PCMM1- Two,306404,167007,Residential Care,2463.48,Expense
Northumberland County Council,BARCHESTER HEALTHCARE HOMES LTD,3260594,09-06-2020,Adult Social Care & Commissioning,Older MH Central - PCMM1- Two,306404,167007,Residential Care,123.17,Expense
Northumberland County Council,BARCHESTER HEALTHCARE HOMES LTD,3260595,09-06-2020,Adult Social Care & Commissioning,Older PDI Central - PCLB1 - Two,306401,167007,Residential Care,2285.88,Expense
Northumberland County Council,BARCHESTER HEALTHCARE HOMES LTD,3260595,09-06-2020,Adult Social Care & Commissioning,Older PDI Central - PCLB1 - Two,306401,167007,Residential Care,114.29,Expense
Northumberland County Council,BARCHESTER HEALTHCARE HOMES LTD,3260596,09-06-2020,Adult Social Care & Commissioning,Older MH Central - PCMM1- Two,306404,167007,Residential Care,2463.48,Expense
Northumberland County Council,BARCHESTER HEALTHCARE HOMES LTD,3260596,09-06-2020,Adult Social Care & Commissioning,Older MH Central - PCMM1- Two,306404,167007,Residential Care,123.17,Expense
Northumberland County Council,BARCHESTER HEALTHCARE HOMES LTD,3261586,09-06-2020,Adult Social Care & Commissioning,Older MH Central - PCMM1- Two,306404,167007,Residential Care,2463.48,Expense
Northumberland County Council,BARCHESTER HEALTHCARE HOMES LTD,3261586,09-06-2020,Adult Social Care & Commissioning,Older MH Central - PCMM1- Two,306404,167007,Residential Care,123.17,Expense
Northumberland County Council,BARCHESTER HEALTHCARE HOMES LTD,3261587,09-06-2020,Adult Social Care & Commissioning,Older MH Central - PCMM1- Two,306404,167007,Residential Care,2463.48,Expense
Northumberland County Council,BARCHESTER HEALTHCARE HOMES LTD,3261587,09-06-2020,Adult Social Care & Commissioning,Older MH Central - PCMM1- Two,306404,167007,Residential Care,123.17,Expense
Northumberland County Council,BARCHESTER HEALTHCARE HOMES LTD,3261588,09-06-2020,Adult Social Care & Commissioning,Older PDI Central - PCLB1 - Two,306401,167007,Residential Care,2285.88,Expense
Northumberland County Council,BARCHESTER HEALTHCARE HOMES LTD,3261588,09-06-2020,Adult Social Care & Commissioning,Older PDI Central - PCLB1 - Two,306401,167007,Residential Care,114.29,Expense
Northumberland County Council,BARCHESTER HEALTHCARE HOMES LTD,3261589,09-06-2020,Adult Social Care & Commissioning,Older MH North - PNMB1 - Two,306408,167007,Residential Care,2463.48,Expense
Northumberland County Council,BARCHESTER HEALTHCARE HOMES LTD,3261589,09-06-2020,Adult Social Care & Commissioning,Older MH North - PNMB1 - Two,306408,167007,Residential Care,123.17,Expense
Northumberland County Council,BARCHESTER HEALTHCARE HOMES LTD,3261590,09-06-2020,Adult Social Care & Commissioning,Older PDI Central - PCLB1 - Two,306401,167007,Residential Care,2285.88,Expense
Northumberland County Council,BARCHESTER HEALTHCARE HOMES LTD,3261590,09-06-2020,Adult Social Care & Commissioning,Older PDI Central - PCLB1 - Two,306401,167007,Residential Care,114.29,Expense
Northumberland County Council,BARCHESTER HEALTHCARE HOMES LTD,3261591,09-06-2020,Adult Social Care & Commissioning,Older PDI Central - PCLB1 - Two,306401,167007,Residential Care,2463.48,Expense
Northumberland County Council,BARCHESTER HEALTHCARE HOMES LTD,3261591,09-06-2020,Adult Social Care & Commissioning,Older PDI Central - PCLB1 - Two,306401,167007,Residential Care,123.17,Expense
Northumberland County Council,BARCHESTER HEALTHCARE HOMES LTD,3261592,09-06-2020,Adult Social Care & Commissioning,Older MH Central - PCMM1- Two,306404,167007,Residential Care,2285.88,Expense
Northumberland County Council,BARCHESTER HEALTHCARE HOMES LTD,3261592,09-06-2020,Adult Social Care & Commissioning,Older MH Central - PCMM1- Two,306404,167007,Residential Care,114.29,Expense
Northumberland County Council,BARCHESTER HEALTHCARE HOMES LTD,3261593,09-06-2020,Adult Social Care & Commissioning,Older MH Central - PCMM1- Two,306404,167007,Residential Care,2463.48,Expense
Northumberland County Council,BARCHESTER HEALTHCARE HOMES LTD,3261593,09-06-2020,Adult Social Care & Commissioning,Older MH Central - PCMM1- Two,306404,167007,Residential Care,123.17,Expense
Northumberland County Council,BARCHESTER HEALTHCARE HOMES LTD,3261594,09-06-2020,Adult Social Care & Commissioning,Older MH Central - PCMM1- Two,306404,167007,Residential Care,2285.88,Expense
Northumberland County Council,BARCHESTER HEALTHCARE HOMES LTD,3261594,09-06-2020,Adult Social Care & Commissioning,Older MH Central - PCMM1- Two,306404,167007,Residential Care,114.29,Expense
Northumberland County Council,BARCHESTER HEALTHCARE HOMES LTD,3261595,09-06-2020,Adult Social Care & Commissioning,Older MH Central - PCMM1- Two,306404,167007,Residential Care,2463.48,Expense
Northumberland County Council,BARCHESTER HEALTHCARE HOMES LTD,3261595,09-06-2020,Adult Social Care & Commissioning,Older MH Central - PCMM1- Two,306404,167007,Residential Care,123.17,Expense
Northumberland County Council,BARCHESTER HEALTHCARE HOMES LTD,3338596,16-06-2020,Adult Social Care & Commissioning,CHC Packages,306420,167006,Care Homes with Nursing,1402.87,Expense
Northumberland County Council,BARCHESTER HEALTHCARE HOMES LTD,3338596,16-06-2020,Adult Social Care & Commissioning,CHC Packages,306420,167006,Care Homes with Nursing,70.15,Expense
Northumberland County Council,BARCHESTER HEALTHCARE HOMES LTD,3338599,16-06-2020,Adult Social Care & Commissioning,CHC Packages,306420,167007,Residential Care,703.85,Expense
Northumberland County Council,BARCHESTER HEALTHCARE HOMES LTD,3338599,16-06-2020,Adult Social Care & Commissioning,CHC Packages,306420,167007,Residential Care,35.19,Expense
Northumberland County Council,BARCHESTER HEALTHCARE HOMES LTD,3459593,29-06-2020,Adult Social Care & Commissioning,Older MH North - PNMB1 - Two,306408,167006,Care Homes with Nursing,1965.20,Expense
Northumberland County Council,BARCHESTER HEALTHCARE HOMES LTD,3459593,29-06-2020,Adult Social Care & Commissioning,Older MH North - PNMB1 - Two,306408,167006,Care Homes with Nursing,98.26,Expense
Northumberland County Council,BARNABAS SAFE AND SOUND,300001238832071,03-06-2020,General Fund,Accommodation and Support Service,11056,181005,Supported Accommodation,281.64,Expense
Northumberland County Council,BARNABAS SAFE AND SOUND,300001238832071,03-06-2020,General Fund,Accommodation and Support Service,11056,181005,Supported Accommodation,265.50,Expense
Northumberland County Council,BARNABAS SAFE AND SOUND,300001288974660,24-06-2020,General Fund,Accommodation and Support Service,11056,181005,Supported Accommodation,844.92,Expense
Northumberland County Council,BARNABAS SAFE AND SOUND,300001288974660,24-06-2020,General Fund,Accommodation and Support Service,11056,181005,Supported Accommodation,796.50,Expense
Northumberland County Council,BARNABAS SAFE AND SOUND,300001289430960,25-06-2020,General Fund,Accommodation and Support Service,11056,181005,Supported Accommodation,2938.08,Expense
Northumberland County Council,BARNARDOS,300001235963820,02-06-2020,General Fund,SEN Reforms Grant,14017,144025,Professional Services,493.00,Expense
Northumberland County Council,BARNARDOS,300001240360657,03-06-2020,Total Cost Centre,South East Locality FACT,16012,180004,S17/ Prevention Childcare Costs,794.50,Expense
Northumberland County Council,BARNARDOS,300001243948812,08-06-2020,General Fund,Child in Need,16019,151000,Other Supplies and Services Expenditure,939.15,Expense
Northumberland County Council,BARNARDOS,300001245958213,08-06-2020,General Fund,Supporting Families,16042,144025,Professional Services,900.00,Expense
Northumberland County Council,BARNARDOS,300001286260773,23-06-2020,Total Cost Centre,North FACT,16017,180004,S17/ Prevention Childcare Costs,967.75,Expense
Northumberland County Council,BARNARDOS,300001289430914,25-06-2020,General Fund,Accommodation and Support Service,11056,181005,Supported Accommodation,4295.05,Expense
Northumberland County Council,BARNARDOS,300001289430970,25-06-2020,General Fund,Accommodation and Support Service,11056,181005,Supported Accommodation,502.20,Expense
Northumberland County Council,BARNARDOS,300001289430970,25-06-2020,General Fund,Accommodation and Support Service,11056,181005,Supported Accommodation,502.20,Expense
Northumberland County Council,BARNARDOS,300001291489268,24-06-2020,General Fund,External Children's Centres - South East,9430,166000,Other Contributions,216602.50,Expense
Northumberland County Council,BAYNES TRAVEL,300001226209842,03-06-2020,General Fund,Home to School Transport,204120,136000,Pupils - Travel,1665.00,Expense
Northumberland County Council,BAYNES TRAVEL,300001226209866,03-06-2020,General Fund,Home to School Transport,204120,136000,Pupils - Travel,1417.50,Expense
Northumberland County Council,BAYNES TRAVEL,300001226209870,03-06-2020,General Fund,Home to School Transport,204120,136000,Pupils - Travel,1226.25,Expense
Northumberland County Council,BAYNES TRAVEL,300001226209874,03-06-2020,General Fund,Home to School Transport,204120,136000,Pupils - Travel,1035.00,Expense
Northumberland County Council,BAYNES TRAVEL,300001226209879,03-06-2020,General Fund,Home to School Transport,204120,136000,Pupils - Travel,1012.50,Expense
Northumberland County Council,BAYNES TRAVEL,300001226209882,03-06-2020,General Fund,Home to School Transport,204120,136000,Pupils - Travel,1631.25,Expense
Northumberland County Council,BAYNES TRAVEL,300001226209893,03-06-2020,General Fund,Home to School Transport,204120,136000,Pupils - Travel,1260.00,Expense
Northumberland County Council,BAYNES TRAVEL,300001226209904,03-06-2020,General Fund,Home to School Transport,204120,136000,Pupils - Travel,1676.25,Expense
Northumberland County Council,BAYNES TRAVEL,300001226209916,03-06-2020,General Fund,Home to School Transport,204120,136000,Pupils - Travel,753.75,Expense
Northumberland County Council,BAYNES TRAVEL,300001226209923,09-06-2020,General Fund,Home to School Transport,204120,136000,Pupils - Travel,825.00,Expense
Northumberland County Council,BAYNES TRAVEL,300001226209923,09-06-2020,General Fund,Home to School Transport,204120,136000,Pupils - Travel,550.00,Expense
Northumberland County Council,BCE NORTHERN LTD,300001263045303,15-06-2020,,Fixed Asset Account,990120,500172,CIP - Plant and Equipment,3169.60,Asset
Northumberland County Council,BCE NORTHERN LTD,300001263045303,15-06-2020,,Fixed Asset Account,990120,500172,CIP - Plant and Equipment,750.06,Asset
Northumberland County Council,BCE NORTHERN LTD,300001269315667,15-06-2020,,Fixed Asset Account,990120,500172,CIP - Plant and Equipment,1000.08,Asset
Northumberland County Council,BCE NORTHERN LTD,300001269315667,15-06-2020,,Fixed Asset Account,990120,500172,CIP - Plant and Equipment,1333.44,Asset
Northumberland County Council,BCE NORTHERN LTD,300001269315667,15-06-2020,,Fixed Asset Account,990120,500172,CIP - Plant and Equipment,2513.60,Asset
Northumberland County Council,BCE NORTHERN LTD,300001269315667,15-06-2020,,Fixed Asset Account,990120,500172,CIP - Plant and Equipment,656.00,Asset
Northumberland County Council,BCE NORTHERN LTD,300001269315671,15-06-2020,,Fixed Asset Account,990120,500172,CIP - Plant and Equipment,3169.60,Asset
Northumberland County Council,BCE NORTHERN LTD,300001269315677,15-06-2020,,Fixed Asset Account,990120,500172,CIP - Plant and Equipment,1846.88,Asset
Northumberland County Council,BCE NORTHERN LTD,300001274551950,19-06-2020,,Fixed Asset Account,990120,500172,CIP - Plant and Equipment,754.08,Asset
Northumberland County Council,BCE NORTHERN LTD,300001274551950,19-06-2020,,Fixed Asset Account,990120,500172,CIP - Plant and Equipment,754.00,Asset
Northumberland County Council,BCE NORTHERN LTD,300001274551950,19-06-2020,,Fixed Asset Account,990120,500172,CIP - Plant and Equipment,3005.60,Asset
Northumberland County Council,BCE NORTHERN LTD,300001286260984,23-06-2020,,Fixed Asset Account,990120,500172,CIP - Plant and Equipment,2450.76,Asset
Northumberland County Council,BCE NORTHERN LTD,300001289072048,23-06-2020,,Fixed Asset Account,990120,500171,CIP - Infrastructure,4102.02,Asset
Northumberland County Council,BCE NORTHERN LTD,300001289072051,23-06-2020,,Fixed Asset Account,990120,500171,CIP - Infrastructure,3380.20,Asset
Northumberland County Council,BCE NORTHERN LTD,300001296480276,29-06-2020,,Fixed Asset Account,990120,500172,CIP - Plant and Equipment,1225.38,Asset
Northumberland County Council,BCE NORTHERN LTD,300001296480276,29-06-2020,,Fixed Asset Account,990120,500172,CIP - Plant and Equipment,1225.38,Asset
Northumberland County Council,BE CARING LTD,3411610,23-06-2020,Total Cost Centre,Covid19 - Emergency Payments,306640,167008,Homecare,2794.98,Expense
Northumberland County Council,BEACHCROFT LLP,300001243948669,05-06-2020,Total Cost Centre,Human Resources,110001,194000,Legal Advice - External,834.40,Expense
Northumberland County Council,BEACHCROFT LLP,300001255811866,10-06-2020,,New Northumberland Insurance Fund,990301,500100,Insurance Claim Recoveries,507.50,Revenue
Northumberland County Council,BEACHVILLE REST HOME,3222591,03-06-2020,Adult Social Care & Commissioning,Older PDI Central - PCLB1 - Two,306401,167007,Residential Care,2353.68,Expense
Northumberland County Council,BEACHVILLE REST HOME,3222591,03-06-2020,Adult Social Care & Commissioning,Older PDI Central - PCLB1 - Two,306401,167007,Residential Care,117.68,Expense
